Merchant Category,Supplier,Service,Summary of Purpose of Expenditure,invoice_date,net_amount
Social Care Services,LEONARD CHESHIRE DISABILITY,Services to People,Care Payments,17/01/2023,253.96
Social Care Services,LEONARD CHESHIRE DISABILITY,Services to People,Care Payments,17/01/2023,815.4
Social Care Services,LEONARD CHESHIRE DISABILITY,Services to People,Care Payments,17/01/2023,507.36
Social Care Services,LEONARD CHESHIRE DISABILITY,Services to People,Care Payments,17/01/2023,462.06
Social Care Services,LEONARD CHESHIRE DISABILITY,Services to People,Care Payments,17/01/2023,434.88
Social Care Services,LEONARD CHESHIRE DISABILITY,Services to People,Care Payments,17/01/2023,434.88
Social Care Services,LEONARD CHESHIRE DISABILITY,Services to People,Care Payments,17/01/2023,362.4
Social Care Services,LEONARD CHESHIRE DISABILITY,Services to People,Care Payments,17/01/2023,289.92
Social Care Services,LEONARD CHESHIRE DISABILITY,Services to People,Care Payments,17/01/2023,253.68
Social Care Services,LEONARD CHESHIRE DISABILITY,Services to People,Care Payments,17/01/2023,144.96
Social Care Services,LEONARD CHESHIRE DISABILITY,Services to People,Care Payments,17/01/2023,290.24
Social Care Services,LEONARD CHESHIRE DISABILITY,Services to People,Care Payments,22/01/2023,-338.88
Social Care Services,LEONARD CHESHIRE DISABILITY,Services to People,Care Payments,22/01/2023,4224.12
Social Care Services,LEONARD CHESHIRE DISABILITY,Services to People,Care Payments,22/01/2023,235.05
Social Care Services,LEONARD CHESHIRE DISABILITY,Services to People,Care Payments,22/01/2023,-1021.43
Social Care Services,LEONARD CHESHIRE DISABILITY,Services to People,Care Payments,22/01/2023,-2137.24
Foster Care,BARNARDOS NORTH WEST,Services to People,Care Payments,06/02/2023,3449.86
Foster Care,BARNARDOS NORTH WEST,Services to People,Care Payments,06/02/2023,3441
Foster Care,BARNARDOS NORTH WEST,Services to People,Care Payments,06/02/2023,-372
Social Care Services,LEONARD CHESHIRE DISABILITY,Services to People,Care Payments,14/02/2023,253.96
Social Care Services,LEONARD CHESHIRE DISABILITY,Services to People,Care Payments,14/02/2023,779.16
Social Care Services,LEONARD CHESHIRE DISABILITY,Services to People,Care Payments,14/02/2023,579.84
Social Care Services,LEONARD CHESHIRE DISABILITY,Services to People,Care Payments,14/02/2023,507.36
Social Care Services,LEONARD CHESHIRE DISABILITY,Services to People,Care Payments,14/02/2023,434.88
Social Care Services,LEONARD CHESHIRE DISABILITY,Services to People,Care Payments,14/02/2023,380.52
Social Care Services,LEONARD CHESHIRE DISABILITY,Services to People,Care Payments,14/02/2023,362.4
Social Care Services,LEONARD CHESHIRE DISABILITY,Services to People,Care Payments,14/02/2023,289.92
Social Care Services,LEONARD CHESHIRE DISABILITY,Services to People,Care Payments,14/02/2023,289.92
Social Care Services,LEONARD CHESHIRE DISABILITY,Services to People,Care Payments,14/02/2023,144.96
Social Care Services,LEONARD CHESHIRE DISABILITY,Services to People,Care Payments,14/02/2023,290.24
Social Care Services,LEONARD CHESHIRE DISABILITY,Services to People,Care Payments,19/02/2023,-338.88
Social Care Services,LEONARD CHESHIRE DISABILITY,Services to People,Care Payments,19/02/2023,4224.12
Childcare Provision,Practically Family Ltd at Moss Hey,Services to People,Publicity and Promotion,28/02/2023,3440.5
Childcare Provision,BOWDEN HOUSE NURSERY,Services to People,Expenses and Allowances,28/02/2023,720.78
Childcare Provision,BOWDEN HOUSE NURSERY,Services to People,Expenses and Allowances,28/02/2023,720.78
Childcare Provision,BRAMHALL METHODIST CHURCH PRESCHOOL,Services to People,Expenses and Allowances,28/02/2023,1441.56
Childcare Provision,FLEDGLINGS PRE-SCHOOL,Services to People,Expenses and Allowances,28/02/2023,1153.2
Education Services,HULME HALL GRAMMAR SCHOOL,Services to People,Expenses and Allowances,28/02/2023,1153.2
Childcare Provision,CHRISTOPHER ROBYNS PLAYGROUP,Services to People,Expenses and Allowances,28/02/2023,1153.2
Childcare Provision,Little Faces Nursery,Services to People,Expenses and Allowances,28/02/2023,1153.2
Childcare Provision,Little Legends Daycare LLP,Services to People,Expenses and Allowances,28/02/2023,1153.2
Childcare Provision,Nursery Rhymes Children's Day Nurse,Services to People,Expenses and Allowances,28/02/2023,1441.5
Childcare Provision,Ladybird Childcare Brinnington,Services to People,Expenses and Allowances,28/02/2023,1441.56
Childcare Provision,Marple Childcare Company Limited,Services to People,Expenses and Allowances,28/02/2023,873.6
Childcare Provision,Marple Childcare Company Limited,Services to People,Expenses and Allowances,28/02/2023,873.6
Childcare Provision,Marple Childcare Company Limited,Services to People,Expenses and Allowances,28/02/2023,873.6
Childcare Provision,Little Giggles Nursery Great Moor,Services to People,Expenses and Allowances,28/02/2023,1394.85
Childcare Provision,Little Giggles Nursery Great Moor,Services to People,Expenses and Allowances,28/02/2023,1323.13
Childcare Provision,Little Giggles Nursery Great Moor,Services to People,Expenses and Allowances,28/02/2023,661.56
Childcare Provision,Samantha Dignan t/a Little Stars,Services to People,Expenses and Allowances,28/02/2023,873.6
Childcare Provision,"Ladybird Brinnington Limited, Heato",Services to People,Expenses and Allowances,28/02/2023,873.6
Childcare Provision,Kinderview Children's Day Nursery L,Services to People,Expenses and Allowances,28/02/2023,873.6
Childcare Provision,Kinderview Children's Day Nursery L,Services to People,Expenses and Allowances,28/02/2023,864.9
Childcare Provision,Kinderview Children's Day Nursery L,Services to People,Expenses and Allowances,28/02/2023,864.9
Childcare Provision,Kinderview Children's Day Nursery L,Services to People,Expenses and Allowances,28/02/2023,576.6
Childcare Provision,Kids Go Wild Forest School,Services to People,Publicity and Promotion,28/02/2023,1292.53
Childcare Provision,Kids Go Wild Forest School,Services to People,Publicity and Promotion,28/02/2023,150
Social Care Services,Engage Support Ltd,Services to People,Care Payments,28/02/2023,13179.64
Social Care Services,Engage Support Ltd,Services to People,Care Payments,28/02/2023,9021.16
Social Care Services,Engage Support Ltd,Services to People,Care Payments,28/02/2023,-6589.82
Social Care Services,Kind Hearted Care Limited,Services to People,Care Payments,28/02/2023,667
Other Public Sector Organisation,OFSTED FINANCE,Services to People,Fees and Charges,01/03/2023,2836
Client/Customer (Non-Trade),*Redact - Personal Information,Services to People,Third party payments - Private/Voluntary Sector,01/03/2023,666.67
Childcare Provision,Kids Go Wild Forest School,Services to People,Fees and Charges,01/03/2023,664
Childcare Provision,More Play more Often,Services to People,Publicity and Promotion,03/03/2023,2550
Child / Family Support,FIVE RIVERS CHILD CARE LTD,Services to People,Fees and Charges,03/03/2023,7500
Client/Customer (Non-Trade),*Redact - Personal Information,Services to People,Care Payments,03/03/2023,1458.6
Client/Customer (Non-Trade),*Redact - Personal Information,Services to People,Care Payments,03/03/2023,1458.6
Client/Customer (Non-Trade),*Redact - Personal Information,Services to People,Care Payments,03/03/2023,2917.2
Client/Customer (Non-Trade),*Redact - Personal Information,Services to People,Care Payments,03/03/2023,302.96
Client/Customer (Non-Trade),*Redact - Personal Information,Services to People,Care Payments,03/03/2023,227.22
Client/Customer (Non-Trade),*Redact - Personal Information,Services to People,Care Payments,03/03/2023,151.48
Client/Customer (Non-Trade),*Redact - Personal Information,Services to People,Care Payments,03/03/2023,75.74
Client/Customer (Non-Trade),*Redact - Personal Information,Services to People,Care Payments,03/03/2023,62.4
Client/Customer (Non-Trade),*Redact - Personal Information,Services to People,Mileage Claims /Allowances,03/03/2023,60.03
Client/Customer (Non-Trade),*Redact - Personal Information,Services to People,Mileage Claims /Allowances,03/03/2023,33.77
Client/Customer (Non-Trade),*Redact - Personal Information,Services to People,Mileage Claims /Allowances,03/03/2023,15.01
Client/Customer (Non-Trade),*Redact - Personal Information,Services to People,Mileage Claims /Allowances,03/03/2023,9.38
Client/Customer (Non-Trade),*Redact - Personal Information,Services to People,Care Payments,03/03/2023,456.89
Client/Customer (Non-Trade),*Redact - Personal Information,Services to People,Care Payments,03/03/2023,31.22
Client/Customer (Non-Trade),*Redact - Personal Information,Services to People,Publicity and Promotion,03/03/2023,6.5
Client/Customer (Non-Trade),*Redact - Personal Information,Services to People,Mileage Claims /Allowances,03/03/2023,14.07
Client/Customer (Non-Trade),*Redact - Personal Information,Services to People,Care Payments,03/03/2023,1458.6
Client/Customer (Non-Trade),*Redact - Personal Information,Services to People,Care Payments,03/03/2023,37.87
Client/Customer (Non-Trade),*Redact - Personal Information,Services to People,Care Payments,03/03/2023,37.87
Client/Customer (Non-Trade),*Redact - Personal Information,Services to People,Care Payments,03/03/2023,7.8
Client/Customer (Non-Trade),*Redact - Personal Information,Services to People,Mileage Claims /Allowances,03/03/2023,6.8
Client/Customer (Non-Trade),*Redact - Personal Information,Services to People,Care Payments,03/03/2023,1458.6
Client/Customer (Non-Trade),*Redact - Personal Information,Services to People,Care Payments,03/03/2023,37.87
Client/Customer (Non-Trade),*Redact - Personal Information,Services to People,Care Payments,03/03/2023,37.87
Client/Customer (Non-Trade),*Redact - Personal Information,Services to People,Care Payments,03/03/2023,7.8
Client/Customer (Non-Trade),*Redact - Personal Information,Services to People,Mileage Claims /Allowances,03/03/2023,6.8
Client/Customer (Non-Trade),*Redact - Personal Information,Services to People,Care Payments,03/03/2023,419.44
Client/Customer (Non-Trade),*Redact - Personal Information,Services to People,Care Payments,03/03/2023,31.22
Client/Customer (Non-Trade),*Redact - Personal Information,Services to People,Publicity and Promotion,03/03/2023,12.6
Client/Customer (Non-Trade),*Redact - Personal Information,Services to People,Mileage Claims /Allowances,03/03/2023,37.52
Client/Customer (Non-Trade),*Redact - Personal Information,Services to People,Care Payments,03/03/2023,239.68
Client/Customer (Non-Trade),*Redact - Personal Information,Services to People,Care Payments,03/03/2023,239.68
Client/Customer (Non-Trade),*Redact - Personal Information,Services to People,Publicity and Promotion,03/03/2023,35.47
Client/Customer (Non-Trade),*Redact - Personal Information,Services to People,Publicity and Promotion,03/03/2023,35.47
Client/Customer (Non-Trade),*Redact - Personal Information,Services to People,Mileage Claims /Allowances,03/03/2023,42.68
Client/Customer (Non-Trade),*Redact - Personal Information,Services to People,Care Payments,03/03/2023,367.89
Client/Customer (Non-Trade),*Redact - Personal Information,Services to People,Care Payments,03/03/2023,367.89
Client/Customer (Non-Trade),*Redact - Personal Information,Services to People,Care Payments,03/03/2023,-20
Client/Customer (Non-Trade),*Redact - Personal Information,Services to People,Care Payments,03/03/2023,-40
Client/Customer (Non-Trade),*Redact - Personal Information,Services to People,Care Payments,03/03/2023,367.89
Client/Customer (Non-Trade),*Redact - Personal Information,Services to People,Care Payments,03/03/2023,367.89
Client/Customer (Non-Trade),*Redact - Personal Information,Services to People,Care Payments,03/03/2023,-20
Client/Customer (Non-Trade),*Redact - Personal Information,Services to People,Care Payments,03/03/2023,-20
Client/Customer (Non-Trade),*Redact - Personal Information,Services to People,Care Payments,03/03/2023,367.89
Client/Customer (Non-Trade),*Redact - Personal Information,Services to People,Care Payments,03/03/2023,367.89
Client/Customer (Non-Trade),*Redact - Personal Information,Services to People,Care Payments,03/03/2023,-20
Client/Customer (Non-Trade),*Redact - Personal Information,Services to People,Care Payments,03/03/2023,-20
Client/Customer (Non-Trade),*Redact - Personal Information,Services to People,Care Payments,03/03/2023,367.89
Client/Customer (Non-Trade),*Redact - Personal Information,Services to People,Care Payments,03/03/2023,367.89
Client/Customer (Non-Trade),*Redact - Personal Information,Services to People,Care Payments,03/03/2023,100
Client/Customer (Non-Trade),*Redact - Personal Information,Services to People,Care Payments,03/03/2023,100
Client/Customer (Non-Trade),*Redact - Personal Information,Services to People,Care Payments,03/03/2023,100
Client/Customer (Non-Trade),*Redact - Personal Information,Services to People,Care Payments,03/03/2023,100
Client/Customer (Non-Trade),*Redact - Personal Information,Services to People,Care Payments,03/03/2023,100
Client/Customer (Non-Trade),*Redact - Personal Information,Services to People,Care Payments,03/03/2023,-20
Client/Customer (Non-Trade),*Redact - Personal Information,Services to People,Care Payments,03/03/2023,-20
Client/Customer (Non-Trade),*Redact - Personal Information,Services to People,Care Payments,03/03/2023,422
Client/Customer (Non-Trade),*Redact - Personal Information,Services to People,Care Payments,03/03/2023,367.89
Client/Customer (Non-Trade),*Redact - Personal Information,Services to People,Care Payments,03/03/2023,-20
Client/Customer (Non-Trade),*Redact - Personal Information,Services to People,Care Payments,03/03/2023,367.89
Client/Customer (Non-Trade),*Redact - Personal Information,Services to People,Care Payments,03/03/2023,367.89
Client/Customer (Non-Trade),*Redact - Personal Information,Services to People,Care Payments,03/03/2023,367.89
Client/Customer (Non-Trade),*Redact - Personal Information,Services to People,Care Payments,03/03/2023,-20
Client/Customer (Non-Trade),*Redact - Personal Information,Services to People,Care Payments,03/03/2023,-20
Client/Customer (Non-Trade),*Redact - Personal Information,Services to People,Care Payments,03/03/2023,-20
Client/Customer (Non-Trade),*Redact - Personal Information,Services to People,Care Payments,03/03/2023,252
Client/Customer (Non-Trade),*Redact - Personal Information,Services to People,Care Payments,03/03/2023,219.99
Client/Customer (Non-Trade),*Redact - Personal Information,Services to People,Care Payments,03/03/2023,219.99
Client/Customer (Non-Trade),*Redact - Personal Information,Services to People,Care Payments,03/03/2023,211.5
Client/Customer (Non-Trade),*Redact - Personal Information,Services to People,Care Payments,03/03/2023,151.88
Client/Customer (Non-Trade),*Redact - Personal Information,Services to People,Care Payments,03/03/2023,113.22
Client/Customer (Non-Trade),*Redact - Personal Information,Services to People,Care Payments,03/03/2023,424.36
Client/Customer (Non-Trade),*Redact - Personal Information,Services to People,Care Payments,03/03/2023,126
Client/Customer (Non-Trade),*Redact - Personal Information,Services to People,Care Payments,03/03/2023,126
Client/Customer (Non-Trade),*Redact - Personal Information,Services to People,Care Payments,03/03/2023,424.36
Client/Customer (Non-Trade),*Redact - Personal Information,Services to People,Care Payments,03/03/2023,252
Client/Customer (Non-Trade),*Redact - Personal Information,Services to People,Care Payments,03/03/2023,151.88
Client/Customer (Non-Trade),*Redact - Personal Information,Services to People,Care Payments,03/03/2023,113.22
Client/Customer (Non-Trade),*Redact - Personal Information,Services to People,Care Payments,03/03/2023,100
Client/Customer (Non-Trade),*Redact - Personal Information,Services to People,Care Payments,03/03/2023,424.36
Client/Customer (Non-Trade),*Redact - Personal Information,Services to People,Care Payments,03/03/2023,189.56
Client/Customer (Non-Trade),*Redact - Personal Information,Services to People,Care Payments,03/03/2023,166.02
Client/Customer (Non-Trade),*Redact - Personal Information,Services to People,Care Payments,03/03/2023,113.22
Client/Customer (Non-Trade),*Redact - Personal Information,Services to People,Care Payments,03/03/2023,166.02
Client/Customer (Non-Trade),*Redact - Personal Information,Services to People,Care Payments,03/03/2023,151.88
Client/Customer (Non-Trade),*Redact - Personal Information,Services to People,Care Payments,03/03/2023,113.22
Client/Customer (Non-Trade),*Redact - Personal Information,Services to People,Care Payments,03/03/2023,113.22
Client/Customer (Non-Trade),*Redact - Personal Information,Services to People,Care Payments,03/03/2023,582.85
Client/Customer (Non-Trade),*Redact - Personal Information,Services to People,Care Payments,03/03/2023,424.36
Client/Customer (Non-Trade),*Redact - Personal Information,Services to People,Care Payments,03/03/2023,252
Client/Customer (Non-Trade),*Redact - Personal Information,Services to People,Care Payments,03/03/2023,219.99
Client/Customer (Non-Trade),*Redact - Personal Information,Services to People,Care Payments,03/03/2023,211.5
Client/Customer (Non-Trade),*Redact - Personal Information,Services to People,Care Payments,03/03/2023,126
Client/Customer (Non-Trade),*Redact - Personal Information,Services to People,Care Payments,03/03/2023,126
Client/Customer (Non-Trade),*Redact - Personal Information,Services to People,Care Payments,03/03/2023,252
Client/Customer (Non-Trade),*Redact - Personal Information,Services to People,Care Payments,03/03/2023,219.99
Client/Customer (Non-Trade),*Redact - Personal Information,Services to People,Care Payments,03/03/2023,219.99
Client/Customer (Non-Trade),*Redact - Personal Information,Services to People,Care Payments,03/03/2023,189.56
Client/Customer (Non-Trade),*Redact - Personal Information,Services to People,Care Payments,03/03/2023,166.02
Client/Customer (Non-Trade),*Redact - Personal Information,Services to People,Care Payments,03/03/2023,113.22
Client/Customer (Non-Trade),*Redact - Personal Information,Services to People,Care Payments,03/03/2023,252
Client/Customer (Non-Trade),*Redact - Personal Information,Services to People,Care Payments,03/03/2023,252
Client/Customer (Non-Trade),*Redact - Personal Information,Services to People,Care Payments,03/03/2023,219.99
Client/Customer (Non-Trade),*Redact - Personal Information,Services to People,Care Payments,03/03/2023,219.99
Client/Customer (Non-Trade),*Redact - Personal Information,Services to People,Care Payments,03/03/2023,219.99
Client/Customer (Non-Trade),*Redact - Personal Information,Services to People,Care Payments,03/03/2023,219.99
Client/Customer (Non-Trade),*Redact - Personal Information,Services to People,Care Payments,03/03/2023,211.5
Client/Customer (Non-Trade),*Redact - Personal Information,Services to People,Care Payments,03/03/2023,211.5
Client/Customer (Non-Trade),*Redact - Personal Information,Services to People,Care Payments,03/03/2023,582.85
Client/Customer (Non-Trade),*Redact - Personal Information,Services to People,Care Payments,03/03/2023,399.98
Client/Customer (Non-Trade),*Redact - Personal Information,Services to People,Care Payments,03/03/2023,211.5
Client/Customer (Non-Trade),*Redact - Personal Information,Services to People,Care Payments,03/03/2023,424.36
Client/Customer (Non-Trade),*Redact - Personal Information,Services to People,Care Payments,03/03/2023,211.5
Client/Customer (Non-Trade),*Redact - Personal Information,Services to People,Care Payments,03/03/2023,219.99
Client/Customer (Non-Trade),*Redact - Personal Information,Services to People,Care Payments,03/03/2023,219.99
Client/Customer (Non-Trade),*Redact - Personal Information,Services to People,Care Payments,03/03/2023,189.56
Client/Customer (Non-Trade),*Redact - Personal Information,Services to People,Care Payments,03/03/2023,189.56
Client/Customer (Non-Trade),*Redact - Personal Information,Services to People,Care Payments,03/03/2023,166.02
Client/Customer (Non-Trade),*Redact - Personal Information,Services to People,Care Payments,03/03/2023,113.22
Client/Customer (Non-Trade),*Redact - Personal Information,Services to People,Care Payments,03/03/2023,582.85
Client/Customer (Non-Trade),*Redact - Personal Information,Services to People,Care Payments,03/03/2023,424.36
Client/Customer (Non-Trade),*Redact - Personal Information,Services to People,Care Payments,03/03/2023,189.56
Client/Customer (Non-Trade),*Redact - Personal Information,Services to People,Care Payments,03/03/2023,126
Client/Customer (Non-Trade),*Redact - Personal Information,Services to People,Care Payments,03/03/2023,126
Client/Customer (Non-Trade),*Redact - Personal Information,Services to People,Care Payments,03/03/2023,252
Client/Customer (Non-Trade),*Redact - Personal Information,Services to People,Care Payments,03/03/2023,219.99
Client/Customer (Non-Trade),*Redact - Personal Information,Services to People,Care Payments,03/03/2023,219.99
Client/Customer (Non-Trade),*Redact - Personal Information,Services to People,Care Payments,03/03/2023,211.5
Client/Customer (Non-Trade),*Redact - Personal Information,Services to People,Care Payments,03/03/2023,582.85
Client/Customer (Non-Trade),*Redact - Personal Information,Services to People,Care Payments,03/03/2023,252
Client/Customer (Non-Trade),*Redact - Personal Information,Services to People,Care Payments,03/03/2023,636.96
Client/Customer (Non-Trade),*Redact - Personal Information,Services to People,Care Payments,03/03/2023,40.62
Client/Customer (Non-Trade),*Redact - Personal Information,Services to People,Care Payments,03/03/2023,38.46
Client/Customer (Non-Trade),*Redact - Personal Information,Services to People,Care Payments,03/03/2023,35.58
Client/Customer (Non-Trade),*Redact - Personal Information,Services to People,Care Payments,03/03/2023,27.08
Client/Customer (Non-Trade),*Redact - Personal Information,Services to People,Care Payments,03/03/2023,18
Client/Customer (Non-Trade),*Redact - Personal Information,Services to People,Care Payments,03/03/2023,424.36
Client/Customer (Non-Trade),*Redact - Personal Information,Services to People,Care Payments,03/03/2023,166.02
Client/Customer (Non-Trade),*Redact - Personal Information,Services to People,Care Payments,03/03/2023,219.99
Client/Customer (Non-Trade),*Redact - Personal Information,Services to People,Care Payments,03/03/2023,219.99
Client/Customer (Non-Trade),*Redact - Personal Information,Services to People,Care Payments,03/03/2023,105.75
Client/Customer (Non-Trade),*Redact - Personal Information,Services to People,Care Payments,03/03/2023,105.75
Client/Customer (Non-Trade),*Redact - Personal Information,Services to People,Care Payments,03/03/2023,94.78
Client/Customer (Non-Trade),*Redact - Personal Information,Services to People,Care Payments,03/03/2023,94.78
Client/Customer (Non-Trade),*Redact - Personal Information,Services to People,Care Payments,03/03/2023,-14.45
Client/Customer (Non-Trade),*Redact - Personal Information,Services to People,Care Payments,03/03/2023,-21.8
Client/Customer (Non-Trade),*Redact - Personal Information,Services to People,Care Payments,03/03/2023,-53.32
Client/Customer (Non-Trade),*Redact - Personal Information,Services to People,Care Payments,03/03/2023,-63.77
Client/Customer (Non-Trade),*Redact - Personal Information,Services to People,Care Payments,03/03/2023,252
Client/Customer (Non-Trade),*Redact - Personal Information,Services to People,Care Payments,03/03/2023,219.99
Client/Customer (Non-Trade),*Redact - Personal Information,Services to People,Care Payments,03/03/2023,166.02
Client/Customer (Non-Trade),*Redact - Personal Information,Services to People,Care Payments,03/03/2023,113.22
Client/Customer (Non-Trade),*Redact - Personal Information,Services to People,Care Payments,03/03/2023,424.36
Client/Customer (Non-Trade),*Redact - Personal Information,Services to People,Care Payments,03/03/2023,300
Client/Customer (Non-Trade),*Redact - Personal Information,Services to People,Care Payments,03/03/2023,166.02
Client/Customer (Non-Trade),*Redact - Personal Information,Services to People,Care Payments,03/03/2023,424.36
Client/Customer (Non-Trade),*Redact - Personal Information,Services to People,Care Payments,03/03/2023,166.02
Client/Customer (Non-Trade),*Redact - Personal Information,Services to People,Care Payments,03/03/2023,166.02
Client/Customer (Non-Trade),*Redact - Personal Information,Services to People,Care Payments,03/03/2023,113.22
Client/Customer (Non-Trade),*Redact - Personal Information,Services to People,Care Payments,03/03/2023,219.99
Client/Customer (Non-Trade),*Redact - Personal Information,Services to People,Care Payments,03/03/2023,219.99
Client/Customer (Non-Trade),*Redact - Personal Information,Services to People,Care Payments,03/03/2023,211.5
Client/Customer (Non-Trade),*Redact - Personal Information,Services to People,Care Payments,03/03/2023,211.5
Client/Customer (Non-Trade),*Redact - Personal Information,Services to People,Care Payments,03/03/2023,252
Client/Customer (Non-Trade),*Redact - Personal Information,Services to People,Care Payments,03/03/2023,219.99
Client/Customer (Non-Trade),*Redact - Personal Information,Services to People,Care Payments,03/03/2023,219.99
Client/Customer (Non-Trade),*Redact - Personal Information,Services to People,Care Payments,03/03/2023,211.5
Client/Customer (Non-Trade),*Redact - Personal Information,Services to People,Care Payments,03/03/2023,51.12
Client/Customer (Non-Trade),*Redact - Personal Information,Services to People,Care Payments,03/03/2023,151.88
Client/Customer (Non-Trade),*Redact - Personal Information,Services to People,Care Payments,03/03/2023,151.88
Client/Customer (Non-Trade),*Redact - Personal Information,Services to People,Care Payments,03/03/2023,113.22
Client/Customer (Non-Trade),*Redact - Personal Information,Services to People,Care Payments,03/03/2023,113.22
Client/Customer (Non-Trade),*Redact - Personal Information,Services to People,Care Payments,03/03/2023,65.09
Client/Customer (Non-Trade),*Redact - Personal Information,Services to People,Care Payments,03/03/2023,48.52
Client/Customer (Non-Trade),*Redact - Personal Information,Services to People,Care Payments,03/03/2023,424.36
Client/Customer (Non-Trade),*Redact - Personal Information,Services to People,Care Payments,03/03/2023,211.5
Client/Customer (Non-Trade),*Redact - Personal Information,Services to People,Care Payments,03/03/2023,252
Client/Customer (Non-Trade),*Redact - Personal Information,Services to People,Care Payments,03/03/2023,219.99
Client/Customer (Non-Trade),*Redact - Personal Information,Services to People,Care Payments,03/03/2023,219.99
Client/Customer (Non-Trade),*Redact - Personal Information,Services to People,Care Payments,03/03/2023,219.99
Client/Customer (Non-Trade),*Redact - Personal Information,Services to People,Care Payments,03/03/2023,219.99
Client/Customer (Non-Trade),*Redact - Personal Information,Services to People,Care Payments,03/03/2023,211.5
Client/Customer (Non-Trade),*Redact - Personal Information,Services to People,Care Payments,03/03/2023,211.5
Client/Customer (Non-Trade),*Redact - Personal Information,Services to People,Care Payments,03/03/2023,189.56
Client/Customer (Non-Trade),*Redact - Personal Information,Services to People,Care Payments,03/03/2023,252
Client/Customer (Non-Trade),*Redact - Personal Information,Services to People,Care Payments,03/03/2023,252
Client/Customer (Non-Trade),*Redact - Personal Information,Services to People,Care Payments,03/03/2023,219.99
Client/Customer (Non-Trade),*Redact - Personal Information,Services to People,Care Payments,03/03/2023,219.99
Client/Customer (Non-Trade),*Redact - Personal Information,Services to People,Care Payments,03/03/2023,219.99
Client/Customer (Non-Trade),*Redact - Personal Information,Services to People,Care Payments,03/03/2023,211.5
Client/Customer (Non-Trade),*Redact - Personal Information,Services to People,Care Payments,03/03/2023,424.36
Client/Customer (Non-Trade),*Redact - Personal Information,Services to People,Care Payments,03/03/2023,424.36
Client/Customer (Non-Trade),*Redact - Personal Information,Services to People,Care Payments,03/03/2023,252
Client/Customer (Non-Trade),*Redact - Personal Information,Services to People,Care Payments,03/03/2023,211.5
Client/Customer (Non-Trade),*Redact - Personal Information,Services to People,Care Payments,03/03/2023,211.5
Client/Customer (Non-Trade),*Redact - Personal Information,Services to People,Care Payments,03/03/2023,189.56
Client/Customer (Non-Trade),*Redact - Personal Information,Services to People,Care Payments,03/03/2023,166.02
Client/Customer (Non-Trade),*Redact - Personal Information,Services to People,Care Payments,03/03/2023,126
Client/Customer (Non-Trade),*Redact - Personal Information,Services to People,Care Payments,03/03/2023,126
Client/Customer (Non-Trade),*Redact - Personal Information,Services to People,Care Payments,03/03/2023,-14.45
Client/Customer (Non-Trade),*Redact - Personal Information,Services to People,Care Payments,03/03/2023,-14.45
Client/Customer (Non-Trade),*Redact - Personal Information,Services to People,Care Payments,03/03/2023,-14.45
Client/Customer (Non-Trade),*Redact - Personal Information,Services to People,Care Payments,03/03/2023,-21.8
Client/Customer (Non-Trade),*Redact - Personal Information,Services to People,Care Payments,03/03/2023,241.55
Client/Customer (Non-Trade),*Redact - Personal Information,Services to People,Care Payments,03/03/2023,166.02
Client/Customer (Non-Trade),*Redact - Personal Information,Services to People,Care Payments,03/03/2023,165.51
Client/Customer (Non-Trade),*Redact - Personal Information,Services to People,Care Payments,03/03/2023,113.22
Client/Customer (Non-Trade),*Redact - Personal Information,Services to People,Care Payments,03/03/2023,252
Client/Customer (Non-Trade),*Redact - Personal Information,Services to People,Care Payments,03/03/2023,219.99
Client/Customer (Non-Trade),*Redact - Personal Information,Services to People,Care Payments,03/03/2023,219.99
Client/Customer (Non-Trade),*Redact - Personal Information,Services to People,Care Payments,03/03/2023,211.5
Client/Customer (Non-Trade),*Redact - Personal Information,Services to People,Care Payments,03/03/2023,219.99
Client/Customer (Non-Trade),*Redact - Personal Information,Services to People,Care Payments,03/03/2023,189.56
Client/Customer (Non-Trade),*Redact - Personal Information,Services to People,Care Payments,03/03/2023,151.88
Client/Customer (Non-Trade),*Redact - Personal Information,Services to People,Care Payments,03/03/2023,113.22
Client/Customer (Non-Trade),*Redact - Personal Information,Services to People,Care Payments,03/03/2023,424.36
Client/Customer (Non-Trade),*Redact - Personal Information,Services to People,Care Payments,03/03/2023,219.99
Client/Customer (Non-Trade),*Redact - Personal Information,Services to People,Care Payments,03/03/2023,211.5
Client/Customer (Non-Trade),*Redact - Personal Information,Services to People,Care Payments,03/03/2023,189.56
Client/Customer (Non-Trade),*Redact - Personal Information,Services to People,Care Payments,03/03/2023,424.36
Client/Customer (Non-Trade),*Redact - Personal Information,Services to People,Care Payments,03/03/2023,211.5
Client/Customer (Non-Trade),*Redact - Personal Information,Services to People,Care Payments,03/03/2023,151.88
Client/Customer (Non-Trade),*Redact - Personal Information,Services to People,Care Payments,03/03/2023,151.88
Client/Customer (Non-Trade),*Redact - Personal Information,Services to People,Care Payments,03/03/2023,113.22
Client/Customer (Non-Trade),*Redact - Personal Information,Services to People,Care Payments,03/03/2023,113.22
Client/Customer (Non-Trade),*Redact - Personal Information,Services to People,Care Payments,03/03/2023,219.99
Client/Customer (Non-Trade),*Redact - Personal Information,Services to People,Care Payments,03/03/2023,211.5
Client/Customer (Non-Trade),*Redact - Personal Information,Services to People,Care Payments,03/03/2023,166.02
Client/Customer (Non-Trade),*Redact - Personal Information,Services to People,Care Payments,03/03/2023,114.91
Client/Customer (Non-Trade),*Redact - Personal Information,Services to People,Care Payments,03/03/2023,113.22
Client/Customer (Non-Trade),*Redact - Personal Information,Services to People,Care Payments,03/03/2023,37.88
Client/Customer (Non-Trade),*Redact - Personal Information,Services to People,Care Payments,03/03/2023,37.88
Client/Customer (Non-Trade),*Redact - Personal Information,Services to People,Care Payments,03/03/2023,37.88
Client/Customer (Non-Trade),*Redact - Personal Information,Services to People,Care Payments,03/03/2023,37.88
Client/Customer (Non-Trade),*Redact - Personal Information,Services to People,Care Payments,03/03/2023,37.88
Client/Customer (Non-Trade),*Redact - Personal Information,Services to People,Care Payments,03/03/2023,18.94
Client/Customer (Non-Trade),*Redact - Personal Information,Services to People,Care Payments,03/03/2023,18.94
Client/Customer (Non-Trade),*Redact - Personal Information,Services to People,Care Payments,03/03/2023,18.94
Client/Customer (Non-Trade),*Redact - Personal Information,Services to People,Care Payments,03/03/2023,18.94
Client/Customer (Non-Trade),*Redact - Personal Information,Services to People,Care Payments,03/03/2023,18.94
Client/Customer (Non-Trade),*Redact - Personal Information,Services to People,Care Payments,03/03/2023,18.94
Client/Customer (Non-Trade),*Redact - Personal Information,Services to People,Care Payments,03/03/2023,18.94
Client/Customer (Non-Trade),*Redact - Personal Information,Services to People,Care Payments,03/03/2023,18.94
Client/Customer (Non-Trade),*Redact - Personal Information,Services to People,Care Payments,03/03/2023,1000
Client/Customer (Non-Trade),*Redact - Personal Information,Services to People,Care Payments,03/03/2023,582.85
Client/Customer (Non-Trade),*Redact - Personal Information,Services to People,Care Payments,03/03/2023,252
Client/Customer (Non-Trade),*Redact - Personal Information,Services to People,Care Payments,03/03/2023,219.99
Client/Customer (Non-Trade),*Redact - Personal Information,Services to People,Care Payments,03/03/2023,94.78
Client/Customer (Non-Trade),*Redact - Personal Information,Services to People,Care Payments,03/03/2023,94.78
Client/Customer (Non-Trade),*Redact - Personal Information,Services to People,Care Payments,03/03/2023,219.99
Client/Customer (Non-Trade),*Redact - Personal Information,Services to People,Care Payments,03/03/2023,219.99
Client/Customer (Non-Trade),*Redact - Personal Information,Services to People,Care Payments,03/03/2023,219.99
Client/Customer (Non-Trade),*Redact - Personal Information,Services to People,Care Payments,03/03/2023,211.5
Client/Customer (Non-Trade),*Redact - Personal Information,Services to People,Care Payments,03/03/2023,211.5
Client/Customer (Non-Trade),*Redact - Personal Information,Services to People,Care Payments,03/03/2023,189.56
Client/Customer (Non-Trade),*Redact - Personal Information,Services to People,Care Payments,03/03/2023,424.36
Client/Customer (Non-Trade),*Redact - Personal Information,Services to People,Care Payments,03/03/2023,252
Client/Customer (Non-Trade),*Redact - Personal Information,Services to People,Care Payments,03/03/2023,166.02
Client/Customer (Non-Trade),*Redact - Personal Information,Services to People,Care Payments,03/03/2023,166.02
Client/Customer (Non-Trade),*Redact - Personal Information,Services to People,Care Payments,03/03/2023,113.22
Client/Customer (Non-Trade),*Redact - Personal Information,Services to People,Care Payments,03/03/2023,113.22
Client/Customer (Non-Trade),*Redact - Personal Information,Services to People,Care Payments,03/03/2023,-14.45
Client/Customer (Non-Trade),*Redact - Personal Information,Services to People,Care Payments,03/03/2023,-21.8
Client/Customer (Non-Trade),*Redact - Personal Information,Services to People,Care Payments,03/03/2023,614.08
Client/Customer (Non-Trade),*Redact - Personal Information,Services to People,Care Payments,03/03/2023,105.75
Client/Customer (Non-Trade),*Redact - Personal Information,Services to People,Care Payments,03/03/2023,105.75
Client/Customer (Non-Trade),*Redact - Personal Information,Services to People,Care Payments,03/03/2023,624.48
Client/Customer (Non-Trade),*Redact - Personal Information,Services to People,Care Payments,03/03/2023,105.75
Client/Customer (Non-Trade),*Redact - Personal Information,Services to People,Care Payments,03/03/2023,105.75
Client/Customer (Non-Trade),*Redact - Personal Information,Services to People,Care Payments,03/03/2023,252
Client/Customer (Non-Trade),*Redact - Personal Information,Services to People,Care Payments,03/03/2023,252
Client/Customer (Non-Trade),*Redact - Personal Information,Services to People,Care Payments,03/03/2023,211.5
Client/Customer (Non-Trade),*Redact - Personal Information,Services to People,Care Payments,03/03/2023,189.56
Client/Customer (Non-Trade),*Redact - Personal Information,Services to People,Care Payments,03/03/2023,-14.45
Client/Customer (Non-Trade),*Redact - Personal Information,Services to People,Care Payments,03/03/2023,-14.45
Client/Customer (Non-Trade),*Redact - Personal Information,Services to People,Care Payments,03/03/2023,-14.45
Client/Customer (Non-Trade),*Redact - Personal Information,Services to People,Care Payments,03/03/2023,-51.08
Client/Customer (Non-Trade),*Redact - Personal Information,Services to People,Care Payments,03/03/2023,-51.08
Client/Customer (Non-Trade),*Redact - Personal Information,Services to People,Care Payments,03/03/2023,-51.08
Client/Customer (Non-Trade),*Redact - Personal Information,Services to People,Care Payments,03/03/2023,-56.28
Client/Customer (Non-Trade),*Redact - Personal Information,Services to People,Care Payments,03/03/2023,582.85
Client/Customer (Non-Trade),*Redact - Personal Information,Services to People,Care Payments,03/03/2023,453
Client/Customer (Non-Trade),*Redact - Personal Information,Services to People,Care Payments,03/03/2023,211.5
Client/Customer (Non-Trade),*Redact - Personal Information,Services to People,Care Payments,03/03/2023,219.99
Client/Customer (Non-Trade),*Redact - Personal Information,Services to People,Care Payments,03/03/2023,189.56
Client/Customer (Non-Trade),*Redact - Personal Information,Services to People,Care Payments,03/03/2023,166.02
Client/Customer (Non-Trade),*Redact - Personal Information,Services to People,Care Payments,03/03/2023,113.22
Client/Customer (Non-Trade),*Redact - Personal Information,Services to People,Care Payments,03/03/2023,252
Client/Customer (Non-Trade),*Redact - Personal Information,Services to People,Care Payments,03/03/2023,219.99
Client/Customer (Non-Trade),*Redact - Personal Information,Services to People,Care Payments,03/03/2023,219.99
Client/Customer (Non-Trade),*Redact - Personal Information,Services to People,Care Payments,03/03/2023,211.5
Client/Customer (Non-Trade),*Redact - Personal Information,Services to People,Care Payments,03/03/2023,252
Client/Customer (Non-Trade),*Redact - Personal Information,Services to People,Care Payments,03/03/2023,219.99
Client/Customer (Non-Trade),*Redact - Personal Information,Services to People,Care Payments,03/03/2023,151.88
Client/Customer (Non-Trade),*Redact - Personal Information,Services to People,Care Payments,03/03/2023,113.22
Client/Customer (Non-Trade),*Redact - Personal Information,Services to People,Care Payments,03/03/2023,219.99
Client/Customer (Non-Trade),*Redact - Personal Information,Services to People,Care Payments,03/03/2023,211.5
Client/Customer (Non-Trade),*Redact - Personal Information,Services to People,Care Payments,03/03/2023,166.02
Client/Customer (Non-Trade),*Redact - Personal Information,Services to People,Care Payments,03/03/2023,113.22
Client/Customer (Non-Trade),*Redact - Personal Information,Services to People,Care Payments,03/03/2023,582.85
Client/Customer (Non-Trade),*Redact - Personal Information,Services to People,Care Payments,03/03/2023,166.02
Client/Customer (Non-Trade),*Redact - Personal Information,Services to People,Care Payments,03/03/2023,166.02
Client/Customer (Non-Trade),*Redact - Personal Information,Services to People,Care Payments,03/03/2023,166.02
Client/Customer (Non-Trade),*Redact - Personal Information,Services to People,Care Payments,03/03/2023,113.22
Client/Customer (Non-Trade),*Redact - Personal Information,Services to People,Care Payments,03/03/2023,113.22
Client/Customer (Non-Trade),*Redact - Personal Information,Services to People,Care Payments,03/03/2023,219.99
Client/Customer (Non-Trade),*Redact - Personal Information,Services to People,Care Payments,03/03/2023,219.99
Client/Customer (Non-Trade),*Redact - Personal Information,Services to People,Care Payments,03/03/2023,211.5
Client/Customer (Non-Trade),*Redact - Personal Information,Services to People,Care Payments,03/03/2023,189.56
Client/Customer (Non-Trade),*Redact - Personal Information,Services to People,Care Payments,03/03/2023,219.99
Client/Customer (Non-Trade),*Redact - Personal Information,Services to People,Care Payments,03/03/2023,219.99
Client/Customer (Non-Trade),*Redact - Personal Information,Services to People,Care Payments,03/03/2023,189.56
Client/Customer (Non-Trade),*Redact - Personal Information,Services to People,Care Payments,03/03/2023,189.56
Client/Customer (Non-Trade),*Redact - Personal Information,Services to People,Care Payments,03/03/2023,431.36
Client/Customer (Non-Trade),*Redact - Personal Information,Services to People,Care Payments,03/03/2023,424.36
Client/Customer (Non-Trade),*Redact - Personal Information,Services to People,Care Payments,03/03/2023,189.56
Client/Customer (Non-Trade),*Redact - Personal Information,Services to People,Care Payments,03/03/2023,12.99
Client/Customer (Non-Trade),*Redact - Personal Information,Services to People,Care Payments,03/03/2023,219.99
Client/Customer (Non-Trade),*Redact - Personal Information,Services to People,Care Payments,03/03/2023,189.56
Client/Customer (Non-Trade),*Redact - Personal Information,Services to People,Care Payments,03/03/2023,166.02
Client/Customer (Non-Trade),*Redact - Personal Information,Services to People,Care Payments,03/03/2023,113.22
Client/Customer (Non-Trade),*Redact - Personal Information,Services to People,Care Payments,03/03/2023,582.85
Client/Customer (Non-Trade),*Redact - Personal Information,Services to People,Care Payments,03/03/2023,582.85
Client/Customer (Non-Trade),*Redact - Personal Information,Services to People,Care Payments,03/03/2023,211.5
Client/Customer (Non-Trade),*Redact - Personal Information,Services to People,Care Payments,03/03/2023,105.75
Client/Customer (Non-Trade),*Redact - Personal Information,Services to People,Care Payments,03/03/2023,105.75
Client/Customer (Non-Trade),*Redact - Personal Information,Services to People,Care Payments,03/03/2023,211.5
Client/Customer (Non-Trade),*Redact - Personal Information,Services to People,Care Payments,03/03/2023,166.02
Client/Customer (Non-Trade),*Redact - Personal Information,Services to People,Care Payments,03/03/2023,166.02
Client/Customer (Non-Trade),*Redact - Personal Information,Services to People,Care Payments,03/03/2023,166.02
Client/Customer (Non-Trade),*Redact - Personal Information,Services to People,Care Payments,03/03/2023,-14.45
Client/Customer (Non-Trade),*Redact - Personal Information,Services to People,Care Payments,03/03/2023,-14.45
Client/Customer (Non-Trade),*Redact - Personal Information,Services to People,Care Payments,03/03/2023,-14.45
Client/Customer (Non-Trade),*Redact - Personal Information,Services to People,Care Payments,03/03/2023,-21.8
Client/Customer (Non-Trade),*Redact - Personal Information,Services to People,Care Payments,03/03/2023,-24.4
Client/Customer (Non-Trade),*Redact - Personal Information,Services to People,Care Payments,03/03/2023,-24.4
Client/Customer (Non-Trade),*Redact - Personal Information,Services to People,Care Payments,03/03/2023,-24.4
Client/Customer (Non-Trade),*Redact - Personal Information,Services to People,Care Payments,03/03/2023,-24.4
Client/Customer (Non-Trade),*Redact - Personal Information,Services to People,Care Payments,03/03/2023,582.85
Client/Customer (Non-Trade),*Redact - Personal Information,Services to People,Care Payments,03/03/2023,219.99
Client/Customer (Non-Trade),*Redact - Personal Information,Services to People,Care Payments,03/03/2023,219.99
Client/Customer (Non-Trade),*Redact - Personal Information,Services to People,Care Payments,03/03/2023,211.5
Client/Customer (Non-Trade),*Redact - Personal Information,Services to People,Care Payments,03/03/2023,189.56
Client/Customer (Non-Trade),*Redact - Personal Information,Services to People,Care Payments,03/03/2023,582.85
Client/Customer (Non-Trade),*Redact - Personal Information,Services to People,Care Payments,03/03/2023,219.99
Client/Customer (Non-Trade),*Redact - Personal Information,Services to People,Care Payments,03/03/2023,211.5
Client/Customer (Non-Trade),*Redact - Personal Information,Services to People,Care Payments,03/03/2023,166.02
Client/Customer (Non-Trade),*Redact - Personal Information,Services to People,Care Payments,03/03/2023,166.02
Client/Customer (Non-Trade),*Redact - Personal Information,Services to People,Care Payments,03/03/2023,113.22
Client/Customer (Non-Trade),*Redact - Personal Information,Services to People,Care Payments,03/03/2023,252
Client/Customer (Non-Trade),*Redact - Personal Information,Services to People,Care Payments,03/03/2023,219.99
Client/Customer (Non-Trade),*Redact - Personal Information,Services to People,Care Payments,03/03/2023,219.99
Client/Customer (Non-Trade),*Redact - Personal Information,Services to People,Care Payments,03/03/2023,211.5
Client/Customer (Non-Trade),*Redact - Personal Information,Services to People,Care Payments,03/03/2023,166.02
Client/Customer (Non-Trade),*Redact - Personal Information,Services to People,Care Payments,03/03/2023,166.02
Client/Customer (Non-Trade),*Redact - Personal Information,Services to People,Care Payments,03/03/2023,151.88
Client/Customer (Non-Trade),*Redact - Personal Information,Services to People,Care Payments,03/03/2023,113.22
Client/Customer (Non-Trade),*Redact - Personal Information,Services to People,Care Payments,03/03/2023,113.22
Client/Customer (Non-Trade),*Redact - Personal Information,Services to People,Care Payments,03/03/2023,86.79
Client/Customer (Non-Trade),*Redact - Personal Information,Services to People,Care Payments,03/03/2023,64.7
Client/Customer (Non-Trade),*Redact - Personal Information,Services to People,Care Payments,03/03/2023,188.56
Client/Customer (Non-Trade),*Redact - Personal Information,Services to People,Care Payments,03/03/2023,166.02
Client/Customer (Non-Trade),*Redact - Personal Information,Services to People,Care Payments,03/03/2023,162.48
Client/Customer (Non-Trade),*Redact - Personal Information,Services to People,Care Payments,03/03/2023,113.22
Client/Customer (Non-Trade),*Redact - Personal Information,Services to People,Care Payments,03/03/2023,23.72
Client/Customer (Non-Trade),*Redact - Personal Information,Services to People,Care Payments,03/03/2023,16.17
Client/Customer (Non-Trade),*Redact - Personal Information,Services to People,Care Payments,03/03/2023,151.88
Client/Customer (Non-Trade),*Redact - Personal Information,Services to People,Care Payments,03/03/2023,151.88
Client/Customer (Non-Trade),*Redact - Personal Information,Services to People,Care Payments,03/03/2023,113.22
Client/Customer (Non-Trade),*Redact - Personal Information,Services to People,Care Payments,03/03/2023,113.22
Client/Customer (Non-Trade),*Redact - Personal Information,Services to People,Care Payments,03/03/2023,252
Client/Customer (Non-Trade),*Redact - Personal Information,Services to People,Care Payments,03/03/2023,219.99
Client/Customer (Non-Trade),*Redact - Personal Information,Services to People,Care Payments,03/03/2023,219.99
Client/Customer (Non-Trade),*Redact - Personal Information,Services to People,Care Payments,03/03/2023,211.5
Client/Customer (Non-Trade),*Redact - Personal Information,Services to People,Care Payments,03/03/2023,67.07
Client/Customer (Non-Trade),*Redact - Personal Information,Services to People,Care Payments,03/03/2023,14.3
Client/Customer (Non-Trade),*Redact - Personal Information,Services to People,Care Payments,03/03/2023,151.88
Client/Customer (Non-Trade),*Redact - Personal Information,Services to People,Care Payments,03/03/2023,151.88
Client/Customer (Non-Trade),*Redact - Personal Information,Services to People,Care Payments,03/03/2023,113.22
Client/Customer (Non-Trade),*Redact - Personal Information,Services to People,Care Payments,03/03/2023,113.22
Client/Customer (Non-Trade),*Redact - Personal Information,Services to People,Care Payments,03/03/2023,252
Client/Customer (Non-Trade),*Redact - Personal Information,Services to People,Care Payments,03/03/2023,219.99
Client/Customer (Non-Trade),*Redact - Personal Information,Services to People,Care Payments,03/03/2023,28.37
Client/Customer (Non-Trade),*Redact - Personal Information,Services to People,Care Payments,03/03/2023,25.33
Client/Customer (Non-Trade),*Redact - Personal Information,Services to People,Care Payments,03/03/2023,166.02
Client/Customer (Non-Trade),*Redact - Personal Information,Services to People,Care Payments,03/03/2023,151.88
Client/Customer (Non-Trade),*Redact - Personal Information,Services to People,Care Payments,03/03/2023,151.88
Client/Customer (Non-Trade),*Redact - Personal Information,Services to People,Care Payments,03/03/2023,113.22
Client/Customer (Non-Trade),*Redact - Personal Information,Services to People,Care Payments,03/03/2023,113.22
Client/Customer (Non-Trade),*Redact - Personal Information,Services to People,Care Payments,03/03/2023,113.22
Client/Customer (Non-Trade),*Redact - Personal Information,Services to People,Care Payments,03/03/2023,582.85
Client/Customer (Non-Trade),*Redact - Personal Information,Services to People,Care Payments,03/03/2023,211.5
Client/Customer (Non-Trade),*Redact - Personal Information,Services to People,Care Payments,03/03/2023,219.99
Client/Customer (Non-Trade),*Redact - Personal Information,Services to People,Care Payments,03/03/2023,211.5
Client/Customer (Non-Trade),*Redact - Personal Information,Services to People,Care Payments,03/03/2023,189.56
Client/Customer (Non-Trade),*Redact - Personal Information,Services to People,Care Payments,03/03/2023,177.75
Client/Customer (Non-Trade),*Redact - Personal Information,Services to People,Care Payments,03/03/2023,159.6
Client/Customer (Non-Trade),*Redact - Personal Information,Services to People,Care Payments,03/03/2023,159.6
Client/Customer (Non-Trade),*Redact - Personal Information,Services to People,Care Payments,03/03/2023,109.75
Client/Customer (Non-Trade),*Redact - Personal Information,Services to People,Care Payments,03/03/2023,109.28
Client/Customer (Non-Trade),*Redact - Personal Information,Services to People,Care Payments,03/03/2023,47.84
Client/Customer (Non-Trade),*Redact - Personal Information,Services to People,Care Payments,03/03/2023,1340.7
Client/Customer (Non-Trade),*Redact - Personal Information,Services to People,Care Payments,03/03/2023,1083.39
Client/Customer (Non-Trade),*Redact - Personal Information,Services to People,Care Payments,03/03/2023,582.85
Client/Customer (Non-Trade),*Redact - Personal Information,Services to People,Care Payments,03/03/2023,582.85
Client/Customer (Non-Trade),*Redact - Personal Information,Services to People,Care Payments,03/03/2023,211.5
Client/Customer (Non-Trade),*Redact - Personal Information,Services to People,Care Payments,03/03/2023,189.56
Client/Customer (Non-Trade),*Redact - Personal Information,Services to People,Care Payments,03/03/2023,219.99
Client/Customer (Non-Trade),*Redact - Personal Information,Services to People,Care Payments,03/03/2023,219.99
Client/Customer (Non-Trade),*Redact - Personal Information,Services to People,Care Payments,03/03/2023,189.56
Client/Customer (Non-Trade),*Redact - Personal Information,Services to People,Care Payments,03/03/2023,189.56
Client/Customer (Non-Trade),*Redact - Personal Information,Services to People,Care Payments,03/03/2023,251.38
Client/Customer (Non-Trade),*Redact - Personal Information,Services to People,Care Payments,03/03/2023,219.99
Client/Customer (Non-Trade),*Redact - Personal Information,Services to People,Care Payments,03/03/2023,219.99
Client/Customer (Non-Trade),*Redact - Personal Information,Services to People,Care Payments,03/03/2023,211.5
Client/Customer (Non-Trade),*Redact - Personal Information,Services to People,Care Payments,03/03/2023,211.5
Client/Customer (Non-Trade),*Redact - Personal Information,Services to People,Care Payments,03/03/2023,219.99
Client/Customer (Non-Trade),*Redact - Personal Information,Services to People,Care Payments,03/03/2023,219.99
Client/Customer (Non-Trade),*Redact - Personal Information,Services to People,Care Payments,03/03/2023,211.5
Client/Customer (Non-Trade),*Redact - Personal Information,Services to People,Care Payments,03/03/2023,189.56
Client/Customer (Non-Trade),*Redact - Personal Information,Services to People,Care Payments,03/03/2023,166.02
Client/Customer (Non-Trade),*Redact - Personal Information,Services to People,Care Payments,03/03/2023,166.02
Client/Customer (Non-Trade),*Redact - Personal Information,Services to People,Care Payments,03/03/2023,162.56
Client/Customer (Non-Trade),*Redact - Personal Information,Services to People,Care Payments,03/03/2023,113.22
Client/Customer (Non-Trade),*Redact - Personal Information,Services to People,Care Payments,03/03/2023,113.22
Client/Customer (Non-Trade),*Redact - Personal Information,Services to People,Care Payments,03/03/2023,252
Client/Customer (Non-Trade),*Redact - Personal Information,Services to People,Care Payments,03/03/2023,219.99
Client/Customer (Non-Trade),*Redact - Personal Information,Services to People,Care Payments,03/03/2023,166.02
Client/Customer (Non-Trade),*Redact - Personal Information,Services to People,Care Payments,03/03/2023,113.22
Client/Customer (Non-Trade),*Redact - Personal Information,Services to People,Care Payments,03/03/2023,-14.45
Client/Customer (Non-Trade),*Redact - Personal Information,Services to People,Care Payments,03/03/2023,-21.8
Client/Customer (Non-Trade),*Redact - Personal Information,Services to People,Care Payments,03/03/2023,-117.15
Client/Customer (Non-Trade),*Redact - Personal Information,Services to People,Care Payments,03/03/2023,219.99
Client/Customer (Non-Trade),*Redact - Personal Information,Services to People,Care Payments,03/03/2023,189.56
Client/Customer (Non-Trade),*Redact - Personal Information,Services to People,Care Payments,03/03/2023,166.02
Client/Customer (Non-Trade),*Redact - Personal Information,Services to People,Care Payments,03/03/2023,113.22
Client/Customer (Non-Trade),*Redact - Personal Information,Services to People,Care Payments,03/03/2023,394.98
Client/Customer (Non-Trade),*Redact - Personal Information,Services to People,Care Payments,03/03/2023,219.99
Client/Customer (Non-Trade),*Redact - Personal Information,Services to People,Care Payments,03/03/2023,219.99
Client/Customer (Non-Trade),*Redact - Personal Information,Services to People,Care Payments,03/03/2023,189.56
Client/Customer (Non-Trade),*Redact - Personal Information,Services to People,Care Payments,03/03/2023,189.56
Client/Customer (Non-Trade),*Redact - Personal Information,Services to People,Care Payments,03/03/2023,166.02
Client/Customer (Non-Trade),*Redact - Personal Information,Services to People,Care Payments,03/03/2023,151.88
Client/Customer (Non-Trade),*Redact - Personal Information,Services to People,Care Payments,03/03/2023,113.22
Client/Customer (Non-Trade),*Redact - Personal Information,Services to People,Care Payments,03/03/2023,113.22
Client/Customer (Non-Trade),*Redact - Personal Information,Services to People,Care Payments,03/03/2023,424.36
Client/Customer (Non-Trade),*Redact - Personal Information,Services to People,Care Payments,03/03/2023,189.56
Client/Customer (Non-Trade),*Redact - Personal Information,Services to People,Care Payments,03/03/2023,-21.8
Client/Customer (Non-Trade),*Redact - Personal Information,Services to People,Care Payments,03/03/2023,-51.02
Client/Customer (Non-Trade),*Redact - Personal Information,Services to People,Care Payments,03/03/2023,219.99
Client/Customer (Non-Trade),*Redact - Personal Information,Services to People,Care Payments,03/03/2023,189.56
Client/Customer (Non-Trade),*Redact - Personal Information,Services to People,Care Payments,03/03/2023,166.02
Client/Customer (Non-Trade),*Redact - Personal Information,Services to People,Care Payments,03/03/2023,113.22
Client/Customer (Non-Trade),*Redact - Personal Information,Services to People,Care Payments,03/03/2023,252
Client/Customer (Non-Trade),*Redact - Personal Information,Services to People,Care Payments,03/03/2023,219.99
Client/Customer (Non-Trade),*Redact - Personal Information,Services to People,Care Payments,03/03/2023,75
Client/Customer (Non-Trade),*Redact - Personal Information,Services to People,Care Payments,03/03/2023,57.95
Client/Customer (Non-Trade),*Redact - Personal Information,Services to People,Care Payments,03/03/2023,252
Client/Customer (Non-Trade),*Redact - Personal Information,Services to People,Care Payments,03/03/2023,252
Client/Customer (Non-Trade),*Redact - Personal Information,Services to People,Care Payments,03/03/2023,219.99
Client/Customer (Non-Trade),*Redact - Personal Information,Services to People,Care Payments,03/03/2023,219.99
Client/Customer (Non-Trade),*Redact - Personal Information,Services to People,Care Payments,03/03/2023,219.99
Client/Customer (Non-Trade),*Redact - Personal Information,Services to People,Care Payments,03/03/2023,211.5
Client/Customer (Non-Trade),*Redact - Personal Information,Services to People,Care Payments,03/03/2023,151.88
Client/Customer (Non-Trade),*Redact - Personal Information,Services to People,Care Payments,03/03/2023,113.22
Client/Customer (Non-Trade),*Redact - Personal Information,Services to People,Care Payments,03/03/2023,582.85
Client/Customer (Non-Trade),*Redact - Personal Information,Services to People,Care Payments,03/03/2023,252
Client/Customer (Non-Trade),*Redact - Personal Information,Services to People,Care Payments,03/03/2023,332.04
Client/Customer (Non-Trade),*Redact - Personal Information,Services to People,Care Payments,03/03/2023,303.76
Client/Customer (Non-Trade),*Redact - Personal Information,Services to People,Care Payments,03/03/2023,166.02
Client/Customer (Non-Trade),*Redact - Personal Information,Services to People,Care Payments,03/03/2023,151.88
Client/Customer (Non-Trade),*Redact - Personal Information,Services to People,Care Payments,03/03/2023,113.22
Client/Customer (Non-Trade),*Redact - Personal Information,Services to People,Care Payments,03/03/2023,113.22
Client/Customer (Non-Trade),*Redact - Personal Information,Services to People,Care Payments,03/03/2023,166.02
Client/Customer (Non-Trade),*Redact - Personal Information,Services to People,Care Payments,03/03/2023,166.02
Client/Customer (Non-Trade),*Redact - Personal Information,Services to People,Care Payments,03/03/2023,113.22
Client/Customer (Non-Trade),*Redact - Personal Information,Services to People,Care Payments,03/03/2023,113.22
Client/Customer (Non-Trade),*Redact - Personal Information,Services to People,Care Payments,03/03/2023,151.88
Client/Customer (Non-Trade),*Redact - Personal Information,Services to People,Care Payments,03/03/2023,151.88
Client/Customer (Non-Trade),*Redact - Personal Information,Services to People,Care Payments,03/03/2023,113.22
Client/Customer (Non-Trade),*Redact - Personal Information,Services to People,Care Payments,03/03/2023,113.22
Client/Customer (Non-Trade),*Redact - Personal Information,Services to People,Care Payments,03/03/2023,166.02
Client/Customer (Non-Trade),*Redact - Personal Information,Services to People,Care Payments,03/03/2023,166.02
Client/Customer (Non-Trade),*Redact - Personal Information,Services to People,Care Payments,03/03/2023,166.02
Client/Customer (Non-Trade),*Redact - Personal Information,Services to People,Care Payments,03/03/2023,113.22
Client/Customer (Non-Trade),*Redact - Personal Information,Services to People,Care Payments,03/03/2023,113.22
Client/Customer (Non-Trade),*Redact - Personal Information,Services to People,Care Payments,03/03/2023,424.36
Client/Customer (Non-Trade),*Redact - Personal Information,Services to People,Care Payments,03/03/2023,219.99
Client/Customer (Non-Trade),*Redact - Personal Information,Services to People,Care Payments,03/03/2023,211.5
Client/Customer (Non-Trade),*Redact - Personal Information,Services to People,Care Payments,03/03/2023,189.56
Client/Customer (Non-Trade),*Redact - Personal Information,Services to People,Care Payments,03/03/2023,166.02
Client/Customer (Non-Trade),*Redact - Personal Information,Services to People,Care Payments,03/03/2023,166.02
Client/Customer (Non-Trade),*Redact - Personal Information,Services to People,Care Payments,03/03/2023,113.22
Client/Customer (Non-Trade),*Redact - Personal Information,Services to People,Care Payments,03/03/2023,113.22
Client/Customer (Non-Trade),*Redact - Personal Information,Services to People,Care Payments,03/03/2023,219.99
Client/Customer (Non-Trade),*Redact - Personal Information,Services to People,Care Payments,03/03/2023,189.56
Client/Customer (Non-Trade),*Redact - Personal Information,Services to People,Care Payments,03/03/2023,166.02
Client/Customer (Non-Trade),*Redact - Personal Information,Services to People,Care Payments,03/03/2023,113.22
Client/Customer (Non-Trade),*Redact - Personal Information,Services to People,Care Payments,03/03/2023,166.02
Client/Customer (Non-Trade),*Redact - Personal Information,Services to People,Care Payments,03/03/2023,166.02
Client/Customer (Non-Trade),*Redact - Personal Information,Services to People,Care Payments,03/03/2023,151.88
Client/Customer (Non-Trade),*Redact - Personal Information,Services to People,Care Payments,03/03/2023,113.22
Client/Customer (Non-Trade),*Redact - Personal Information,Services to People,Care Payments,03/03/2023,113.22
Client/Customer (Non-Trade),*Redact - Personal Information,Services to People,Care Payments,03/03/2023,113.22
Client/Customer (Non-Trade),*Redact - Personal Information,Services to People,Care Payments,03/03/2023,219.99
Client/Customer (Non-Trade),*Redact - Personal Information,Services to People,Care Payments,03/03/2023,189.56
Client/Customer (Non-Trade),*Redact - Personal Information,Services to People,Care Payments,03/03/2023,166.02
Client/Customer (Non-Trade),*Redact - Personal Information,Services to People,Care Payments,03/03/2023,113.22
Client/Customer (Non-Trade),*Redact - Personal Information,Services to People,Care Payments,03/03/2023,417.41
Client/Customer (Non-Trade),*Redact - Personal Information,Services to People,Care Payments,03/03/2023,252
Client/Customer (Non-Trade),*Redact - Personal Information,Services to People,Care Payments,03/03/2023,219.99
Client/Customer (Non-Trade),*Redact - Personal Information,Services to People,Care Payments,03/03/2023,219.99
Client/Customer (Non-Trade),*Redact - Personal Information,Services to People,Care Payments,03/03/2023,211.5
Client/Customer (Non-Trade),*Redact - Personal Information,Services to People,Care Payments,03/03/2023,166.02
Client/Customer (Non-Trade),*Redact - Personal Information,Services to People,Care Payments,03/03/2023,119.26
Client/Customer (Non-Trade),*Redact - Personal Information,Services to People,Care Payments,03/03/2023,119.26
Client/Customer (Non-Trade),*Redact - Personal Information,Services to People,Care Payments,03/03/2023,119.26
Client/Customer (Non-Trade),*Redact - Personal Information,Services to People,Care Payments,03/03/2023,119.26
Client/Customer (Non-Trade),*Redact - Personal Information,Services to People,Care Payments,03/03/2023,119.26
Client/Customer (Non-Trade),*Redact - Personal Information,Services to People,Care Payments,03/03/2023,119.26
Client/Customer (Non-Trade),*Redact - Personal Information,Services to People,Care Payments,03/03/2023,119.26
Client/Customer (Non-Trade),*Redact - Personal Information,Services to People,Care Payments,03/03/2023,119.26
Client/Customer (Non-Trade),*Redact - Personal Information,Services to People,Care Payments,03/03/2023,113.22
Client/Customer (Non-Trade),*Redact - Personal Information,Services to People,Care Payments,03/03/2023,30.82
Client/Customer (Non-Trade),*Redact - Personal Information,Services to People,Care Payments,03/03/2023,30.82
Client/Customer (Non-Trade),*Redact - Personal Information,Services to People,Care Payments,03/03/2023,582.85
Client/Customer (Non-Trade),*Redact - Personal Information,Services to People,Care Payments,03/03/2023,189.56
Client/Customer (Non-Trade),*Redact - Personal Information,Services to People,Care Payments,03/03/2023,37.99
Client/Customer (Non-Trade),*Redact - Personal Information,Services to People,Care Payments,03/03/2023,219.99
Client/Customer (Non-Trade),*Redact - Personal Information,Services to People,Care Payments,03/03/2023,219.99
Client/Customer (Non-Trade),*Redact - Personal Information,Services to People,Care Payments,03/03/2023,219.99
Client/Customer (Non-Trade),*Redact - Personal Information,Services to People,Care Payments,03/03/2023,211.5
Client/Customer (Non-Trade),*Redact - Personal Information,Services to People,Care Payments,03/03/2023,189.56
Client/Customer (Non-Trade),*Redact - Personal Information,Services to People,Care Payments,03/03/2023,189.56
Client/Customer (Non-Trade),*Redact - Personal Information,Services to People,Care Payments,03/03/2023,605.12
Client/Customer (Non-Trade),*Redact - Personal Information,Services to People,Care Payments,03/03/2023,35.18
Client/Customer (Non-Trade),*Redact - Personal Information,Services to People,Care Payments,03/03/2023,30.22
Client/Customer (Non-Trade),*Redact - Personal Information,Services to People,Care Payments,03/03/2023,30.22
Client/Customer (Non-Trade),*Redact - Personal Information,Services to People,Care Payments,03/03/2023,23.14
Client/Customer (Non-Trade),*Redact - Personal Information,Services to People,Care Payments,03/03/2023,10.85
Client/Customer (Non-Trade),*Redact - Personal Information,Services to People,Care Payments,03/03/2023,204.26
Client/Customer (Non-Trade),*Redact - Personal Information,Services to People,Care Payments,03/03/2023,166.02
Client/Customer (Non-Trade),*Redact - Personal Information,Services to People,Care Payments,03/03/2023,113.22
Client/Customer (Non-Trade),*Redact - Personal Information,Services to People,Care Payments,03/03/2023,55.81
Client/Customer (Non-Trade),*Redact - Personal Information,Services to People,Care Payments,03/03/2023,48.78
Client/Customer (Non-Trade),*Redact - Personal Information,Services to People,Care Payments,03/03/2023,38.55
Client/Customer (Non-Trade),*Redact - Personal Information,Services to People,Care Payments,03/03/2023,605.12
Client/Customer (Non-Trade),*Redact - Personal Information,Services to People,Care Payments,03/03/2023,33.99
Client/Customer (Non-Trade),*Redact - Personal Information,Services to People,Care Payments,03/03/2023,18.76
Client/Customer (Non-Trade),*Redact - Personal Information,Services to People,Care Payments,03/03/2023,252
Client/Customer (Non-Trade),*Redact - Personal Information,Services to People,Care Payments,03/03/2023,219.99
Client/Customer (Non-Trade),*Redact - Personal Information,Services to People,Care Payments,03/03/2023,211.5
Client/Customer (Non-Trade),*Redact - Personal Information,Services to People,Care Payments,03/03/2023,166.02
Client/Customer (Non-Trade),*Redact - Personal Information,Services to People,Care Payments,03/03/2023,166.02
Client/Customer (Non-Trade),*Redact - Personal Information,Services to People,Care Payments,03/03/2023,113.22
Client/Customer (Non-Trade),*Redact - Personal Information,Services to People,Care Payments,03/03/2023,113.22
Client/Customer (Non-Trade),*Redact - Personal Information,Services to People,Care Payments,03/03/2023,166.02
Client/Customer (Non-Trade),*Redact - Personal Information,Services to People,Care Payments,03/03/2023,151.88
Client/Customer (Non-Trade),*Redact - Personal Information,Services to People,Care Payments,03/03/2023,113.22
Client/Customer (Non-Trade),*Redact - Personal Information,Services to People,Care Payments,03/03/2023,113.22
Client/Customer (Non-Trade),*Redact - Personal Information,Services to People,Care Payments,03/03/2023,166.02
Client/Customer (Non-Trade),*Redact - Personal Information,Services to People,Care Payments,03/03/2023,151.88
Client/Customer (Non-Trade),*Redact - Personal Information,Services to People,Care Payments,03/03/2023,113.22
Client/Customer (Non-Trade),*Redact - Personal Information,Services to People,Care Payments,03/03/2023,113.22
Client/Customer (Non-Trade),*Redact - Personal Information,Services to People,Care Payments,03/03/2023,166.02
Client/Customer (Non-Trade),*Redact - Personal Information,Services to People,Care Payments,03/03/2023,166.02
Client/Customer (Non-Trade),*Redact - Personal Information,Services to People,Care Payments,03/03/2023,113.22
Client/Customer (Non-Trade),*Redact - Personal Information,Services to People,Care Payments,03/03/2023,113.22
Client/Customer (Non-Trade),*Redact - Personal Information,Services to People,Care Payments,03/03/2023,223.62
Client/Customer (Non-Trade),*Redact - Personal Information,Services to People,Care Payments,03/03/2023,166.02
Client/Customer (Non-Trade),*Redact - Personal Information,Services to People,Care Payments,03/03/2023,113.22
Client/Customer (Non-Trade),*Redact - Personal Information,Services to People,Care Payments,03/03/2023,252
Client/Customer (Non-Trade),*Redact - Personal Information,Services to People,Care Payments,03/03/2023,219.99
Client/Customer (Non-Trade),*Redact - Personal Information,Services to People,Care Payments,03/03/2023,219.99
Client/Customer (Non-Trade),*Redact - Personal Information,Services to People,Care Payments,03/03/2023,211.5
Client/Customer (Non-Trade),*Redact - Personal Information,Services to People,Care Payments,03/03/2023,125.71
Client/Customer (Non-Trade),*Redact - Personal Information,Services to People,Care Payments,03/03/2023,120.86
Client/Customer (Non-Trade),*Redact - Personal Information,Services to People,Care Payments,03/03/2023,252
Client/Customer (Non-Trade),*Redact - Personal Information,Services to People,Care Payments,03/03/2023,252
Client/Customer (Non-Trade),*Redact - Personal Information,Services to People,Care Payments,03/03/2023,219.99
Client/Customer (Non-Trade),*Redact - Personal Information,Services to People,Care Payments,03/03/2023,166.02
Client/Customer (Non-Trade),*Redact - Personal Information,Services to People,Care Payments,03/03/2023,151.88
Client/Customer (Non-Trade),*Redact - Personal Information,Services to People,Care Payments,03/03/2023,113.22
Client/Customer (Non-Trade),*Redact - Personal Information,Services to People,Care Payments,03/03/2023,113.22
Client/Customer (Non-Trade),*Redact - Personal Information,Services to People,Care Payments,03/03/2023,79.8
Client/Customer (Non-Trade),*Redact - Personal Information,Services to People,Care Payments,03/03/2023,79.8
Client/Customer (Non-Trade),*Redact - Personal Information,Services to People,Care Payments,03/03/2023,219.99
Client/Customer (Non-Trade),*Redact - Personal Information,Services to People,Care Payments,03/03/2023,189.56
Client/Customer (Non-Trade),*Redact - Personal Information,Services to People,Care Payments,03/03/2023,166.02
Client/Customer (Non-Trade),*Redact - Personal Information,Services to People,Care Payments,03/03/2023,151.88
Client/Customer (Non-Trade),*Redact - Personal Information,Services to People,Care Payments,03/03/2023,113.22
Client/Customer (Non-Trade),*Redact - Personal Information,Services to People,Care Payments,03/03/2023,113.22
Client/Customer (Non-Trade),*Redact - Personal Information,Services to People,Care Payments,03/03/2023,166.02
Client/Customer (Non-Trade),*Redact - Personal Information,Services to People,Care Payments,03/03/2023,151.88
Client/Customer (Non-Trade),*Redact - Personal Information,Services to People,Care Payments,03/03/2023,151.88
Client/Customer (Non-Trade),*Redact - Personal Information,Services to People,Care Payments,03/03/2023,113.22
Client/Customer (Non-Trade),*Redact - Personal Information,Services to People,Care Payments,03/03/2023,113.22
Client/Customer (Non-Trade),*Redact - Personal Information,Services to People,Care Payments,03/03/2023,113.22
Client/Customer (Non-Trade),*Redact - Personal Information,Services to People,Care Payments,03/03/2023,424.36
Client/Customer (Non-Trade),*Redact - Personal Information,Services to People,Care Payments,03/03/2023,424.36
Client/Customer (Non-Trade),*Redact - Personal Information,Services to People,Care Payments,03/03/2023,166.02
Client/Customer (Non-Trade),*Redact - Personal Information,Services to People,Care Payments,03/03/2023,166.02
Client/Customer (Non-Trade),*Redact - Personal Information,Services to People,Care Payments,03/03/2023,105.75
Client/Customer (Non-Trade),*Redact - Personal Information,Services to People,Care Payments,03/03/2023,105.75
Client/Customer (Non-Trade),*Redact - Personal Information,Services to People,Care Payments,03/03/2023,94.78
Client/Customer (Non-Trade),*Redact - Personal Information,Services to People,Care Payments,03/03/2023,94.78
Client/Customer (Non-Trade),*Redact - Personal Information,Services to People,Care Payments,03/03/2023,94.78
Client/Customer (Non-Trade),*Redact - Personal Information,Services to People,Care Payments,03/03/2023,94.78
Client/Customer (Non-Trade),*Redact - Personal Information,Services to People,Care Payments,03/03/2023,604.29
Foster Care,Alpha Plus Fostering Ltd,Services to People,Care Payments,06/03/2023,3335
Foster Care,BARNARDOS NORTH WEST,Services to People,Care Payments,06/03/2023,3116
Foster Care,BARNARDOS NORTH WEST,Services to People,Care Payments,06/03/2023,2997
Foster Care,BARNARDOS NORTH WEST,Services to People,Care Payments,06/03/2023,-324
Childcare Provision,CHOICES HOME FOR CHILDREN LTD,Services to People,Care Payments,06/03/2023,11600
Childcare Provision,CHOICES HOME FOR CHILDREN LTD,Services to People,Care Payments,06/03/2023,11600
Foster Care,CORE ASSETS FOSTERING,Services to People,Care Payments,06/03/2023,7077.84
Foster Care,CORE ASSETS FOSTERING,Services to People,Care Payments,06/03/2023,3769.64
Foster Care,CORE ASSETS FOSTERING,Services to People,Care Payments,06/03/2023,3536.12
Foster Care,CORE ASSETS FOSTERING,Services to People,Care Payments,06/03/2023,3500.38
Foster Care,CORE ASSETS FOSTERING,Services to People,Care Payments,06/03/2023,3333.4
Foster Care,CORE ASSETS FOSTERING,Services to People,Care Payments,06/03/2023,1823.2
Foster Care,CORE ASSETS FOSTERING,Services to People,Care Payments,06/03/2023,253.82
Foster Care,CORE ASSETS FOSTERING,Services to People,Care Payments,06/03/2023,-70.13
Foster Care,CORE ASSETS FOSTERING,Services to People,Care Payments,06/03/2023,-270.36
Foster Care,CORE ASSETS FOSTERING,Services to People,Care Payments,06/03/2023,-454.48
Foster Care,FOSTERING SOLUTIONS LTD,Services to People,Care Payments,06/03/2023,3396.32
Foster Care,FOSTERING SOLUTIONS LTD,Services to People,Care Payments,06/03/2023,3319.96
Foster Care,FOSTERING SOLUTIONS LTD,Services to People,Care Payments,06/03/2023,3260.04
Foster Care,FOSTERING SOLUTIONS LTD,Services to People,Care Payments,06/03/2023,2900.24
Foster Care,FOSTERING SOLUTIONS LTD,Services to People,Care Payments,06/03/2023,1728.16
Foster Care,FOSTERING SOLUTIONS LTD,Services to People,Care Payments,06/03/2023,-244.5
Foster Care,FOSTERING SOLUTIONS LTD,Services to People,Care Payments,06/03/2023,-504.8
Childcare Provision,Fresh Start Independence Project,Services to People,Care Payments,06/03/2023,6600
Childcare Provision,Fresh Start Independence Project,Services to People,Care Payments,06/03/2023,6600
Childcare Provision,Fresh Start Independence Project,Services to People,Care Payments,06/03/2023,5185.71
Childcare Provision,Fresh Start Independence Project,Services to People,Care Payments,06/03/2023,4200
Childcare Provision,Fresh Start Independence Project,Services to People,Care Payments,06/03/2023,1940
Childcare Provision,Fresh Start Independence Project,Services to People,Care Payments,06/03/2023,415.71
Childcare Provision,Fresh Start Independence Project,Services to People,Care Payments,06/03/2023,69.29
Childcare Provision,Fresh Start Independence Project,Services to People,Care Payments,06/03/2023,1740
Childcare Provision,Fresh Start Independence Project,Services to People,Care Payments,06/03/2023,1740
Childcare Provision,Fresh Start Independence Project,Services to People,Care Payments,06/03/2023,1740
Childcare Provision,Fresh Start Independence Project,Services to People,Care Payments,06/03/2023,1740
Childcare Provision,Fresh Start Independence Project,Services to People,Care Payments,06/03/2023,1740
Childcare Provision,Fresh Start Independence Project,Services to People,Care Payments,06/03/2023,1740
Childcare Provision,Fresh Start Independence Project,Services to People,Care Payments,06/03/2023,1740
Childcare Provision,Fresh Start Independence Project,Services to People,Care Payments,06/03/2023,1118.57
Childcare Provision,Fresh Start Independence Project,Services to People,Care Payments,06/03/2023,942.86
Childcare Provision,Cambian Group plc,Services to People,Care Payments,06/03/2023,23800
Childcare Provision,Cambian Group plc,Services to People,Care Payments,06/03/2023,18600
Foster Care,PARALLEL PARENTS (FF),Services to People,Care Payments,06/03/2023,3079.69
Education Services,PONTVILLE SCHOOL,Services to People,Care Payments,06/03/2023,12634.71
Education Services,PONTVILLE SCHOOL,Services to People,Fees and Charges,06/03/2023,8480.05
Social Care Services,Seashell Trust,Services to People,Fees and Charges,06/03/2023,9002.36
Social Care Services,Seashell Trust,Services to People,Fees and Charges,06/03/2023,6971.79
Social Care Services,Seashell Trust,Services to People,Fees and Charges,06/03/2023,6771.66
Social Care Services,Seashell Trust,Services to People,Fees and Charges,06/03/2023,6653.74
Social Care Services,Seashell Trust,Services to People,Fees and Charges,06/03/2023,5779
Social Care Services,Seashell Trust,Services to People,Fees and Charges,06/03/2023,5697.47
Social Care Services,Seashell Trust,Services to People,Fees and Charges,06/03/2023,5684.69
Social Care Services,Seashell Trust,Services to People,Fees and Charges,06/03/2023,5646.23
School (Other Local Authority),ST JOHN VIANNEY,Services to People,Fees and Charges,06/03/2023,2721.27
School (Other Local Authority),ST JOHN VIANNEY,Services to People,Fees and Charges,06/03/2023,1818.18
School (Other Local Authority),ST JOHN VIANNEY,Services to People,Fees and Charges,06/03/2023,1818.18
School (Other Local Authority),ST JOHN VIANNEY,Services to People,Fees and Charges,06/03/2023,1818.18
School (Other Local Authority),ST JOHN VIANNEY,Services to People,Fees and Charges,06/03/2023,1818.18
School (Other Local Authority),ST JOHN VIANNEY,Services to People,Fees and Charges,06/03/2023,1818.18
School (Other Local Authority),ST JOHN VIANNEY,Services to People,Fees and Charges,06/03/2023,1818.18
School (Other Local Authority),ST JOHN VIANNEY,Services to People,Fees and Charges,06/03/2023,1818.18
School (Other Local Authority),ST JOHN VIANNEY,Services to People,Fees and Charges,06/03/2023,1818.18
School (Other Local Authority),ST JOHN VIANNEY,Services to People,Fees and Charges,06/03/2023,1818.18
School (Other Local Authority),ST JOHN VIANNEY,Services to People,Fees and Charges,06/03/2023,1713.45
Foster Care,SWIIS FOSTERCARE LTD,Services to People,Care Payments,06/03/2023,3531.4
Foster Care,SWIIS FOSTERCARE LTD,Services to People,Care Payments,06/03/2023,3306.4
Foster Care,SWIIS FOSTERCARE LTD,Services to People,Care Payments,06/03/2023,3306.4
Foster Care,SWIIS FOSTERCARE LTD,Services to People,Care Payments,06/03/2023,3232
Foster Care,SWIIS FOSTERCARE LTD,Services to People,Care Payments,06/03/2023,3232
Foster Care,SWIIS FOSTERCARE LTD,Services to People,Care Payments,06/03/2023,3232
Foster Care,SWIIS FOSTERCARE LTD,Services to People,Care Payments,06/03/2023,118.09
Foster Care,SWIIS FOSTERCARE LTD,Services to People,Care Payments,06/03/2023,118.09
Foster Care,SWIIS FOSTERCARE LTD,Services to People,Care Payments,06/03/2023,-2.95
Foster Care,SWIIS FOSTERCARE LTD,Services to People,Care Payments,06/03/2023,-82.66
Foster Care,SWIIS FOSTERCARE LTD,Services to People,Care Payments,06/03/2023,-492
Foster Care,SWIIS FOSTERCARE LTD,Services to People,Care Payments,06/03/2023,-615.4
Foster Care,SWIIS FOSTERCARE LTD,Services to People,Care Payments,06/03/2023,-781
Foster Care,SWIIS FOSTERCARE LTD,Services to People,Care Payments,06/03/2023,-836
Childcare Provision,CARE HAVEN (UK) T/A PENARTH HOUSE,Services to People,Care Payments,06/03/2023,15200
Childcare Provision,CARE HAVEN (UK) T/A PENARTH HOUSE,Services to People,Care Payments,06/03/2023,15200
Childcare Provision,CARE HAVEN (UK) T/A PENARTH HOUSE,Services to People,Care Payments,06/03/2023,13600
Foster Care,CAPSTONE FOSTER CARE,Services to People,Care Payments,06/03/2023,6302.92
Childcare Provision,CARE TODAY CHILDRENS SERVICE,Services to People,Care Payments,06/03/2023,10844.52
Childcare Provision,CARE TODAY CHILDRENS SERVICE,Services to People,Care Payments,06/03/2023,10844.52
Social Care Services,THE TOGETHER TRUST CENTRE,Services to People,Fees and Charges,06/03/2023,7945.46
Social Care Services,THE TOGETHER TRUST CENTRE,Services to People,Fees and Charges,06/03/2023,5624.98
Social Care Services,THE TOGETHER TRUST CENTRE,Services to People,Fees and Charges,06/03/2023,4534.09
Social Care Services,THE TOGETHER TRUST CENTRE,Services to People,Fees and Charges,06/03/2023,4330.43
Social Care Services,THE TOGETHER TRUST CENTRE,Services to People,Fees and Charges,06/03/2023,4330.4
Social Care Services,THE TOGETHER TRUST CENTRE,Services to People,Fees and Charges,06/03/2023,4330.4
Social Care Services,THE TOGETHER TRUST CENTRE,Services to People,Fees and Charges,06/03/2023,4330.4
Social Care Services,THE TOGETHER TRUST CENTRE,Services to People,Fees and Charges,06/03/2023,4318.18
Social Care Services,THE TOGETHER TRUST CENTRE,Services to People,Fees and Charges,06/03/2023,4318.18
Social Care Services,THE TOGETHER TRUST CENTRE,Services to People,Fees and Charges,06/03/2023,3972.73
Social Care Services,THE TOGETHER TRUST CENTRE,Services to People,Fees and Charges,06/03/2023,3972.73
Social Care Services,THE TOGETHER TRUST CENTRE,Services to People,Fees and Charges,06/03/2023,3972.73
Social Care Services,THE TOGETHER TRUST CENTRE,Services to People,Fees and Charges,06/03/2023,3972.73
Social Care Services,THE TOGETHER TRUST CENTRE,Services to People,Fees and Charges,06/03/2023,3972.73
Social Care Services,THE TOGETHER TRUST CENTRE,Services to People,Fees and Charges,06/03/2023,3972.73
Social Care Services,THE TOGETHER TRUST CENTRE,Services to People,Fees and Charges,06/03/2023,3972.73
Social Care Services,THE TOGETHER TRUST CENTRE,Services to People,Fees and Charges,06/03/2023,3878.73
Social Care Services,THE TOGETHER TRUST CENTRE,Services to People,Fees and Charges,06/03/2023,3878.73
Social Care Services,THE TOGETHER TRUST CENTRE,Services to People,Fees and Charges,06/03/2023,20208.75
Social Care Services,THE TOGETHER TRUST CENTRE,Services to People,Fees and Charges,06/03/2023,6634.47
Social Care Services,THE TOGETHER TRUST CENTRE,Services to People,Fees and Charges,06/03/2023,6634.47
Social Care Services,THE TOGETHER TRUST CENTRE,Services to People,Fees and Charges,06/03/2023,6243
Social Care Services,THE TOGETHER TRUST CENTRE,Services to People,Fees and Charges,06/03/2023,6243
Social Care Services,THE TOGETHER TRUST CENTRE,Services to People,Fees and Charges,06/03/2023,6243
Social Care Services,THE TOGETHER TRUST CENTRE,Services to People,Fees and Charges,06/03/2023,6243
Social Care Services,THE TOGETHER TRUST CENTRE,Services to People,Fees and Charges,06/03/2023,6243
Social Care Services,THE TOGETHER TRUST CENTRE,Services to People,Fees and Charges,06/03/2023,6218.92
Social Care Services,THE TOGETHER TRUST CENTRE,Services to People,Fees and Charges,06/03/2023,6197.59
Social Care Services,THE TOGETHER TRUST CENTRE,Services to People,Fees and Charges,06/03/2023,6197.58
Social Care Services,THE TOGETHER TRUST CENTRE,Services to People,Fees and Charges,06/03/2023,6189.48
Social Care Services,THE TOGETHER TRUST CENTRE,Services to People,Fees and Charges,06/03/2023,6138.79
Social Care Services,THE TOGETHER TRUST CENTRE,Services to People,Fees and Charges,06/03/2023,6138.79
Social Care Services,THE TOGETHER TRUST CENTRE,Services to People,Fees and Charges,06/03/2023,5725.36
Social Care Services,THE TOGETHER TRUST CENTRE,Services to People,Fees and Charges,06/03/2023,5725.36
Social Care Services,THE TOGETHER TRUST CENTRE,Services to People,Fees and Charges,06/03/2023,5725.36
Social Care Services,THE TOGETHER TRUST CENTRE,Services to People,Fees and Charges,06/03/2023,5677.57
Social Care Services,THE TOGETHER TRUST CENTRE,Services to People,Fees and Charges,06/03/2023,5621.88
Social Care Services,THE TOGETHER TRUST CENTRE,Services to People,Fees and Charges,06/03/2023,5025.81
Social Care Services,THE TOGETHER TRUST CENTRE,Services to People,Fees and Charges,06/03/2023,2497.26
Social Care Services,THE TOGETHER TRUST CENTRE,Services to People,Care Payments,06/03/2023,16800
Social Care Services,THE TOGETHER TRUST CENTRE,Services to People,Care Payments,06/03/2023,11960
Social Care Services,THE TOGETHER TRUST CENTRE,Services to People,Care Payments,06/03/2023,11960
Social Care Services,THE TOGETHER TRUST CENTRE,Services to People,Care Payments,06/03/2023,10247.88
Social Care Services,THE TOGETHER TRUST CENTRE,Services to People,Care Payments,06/03/2023,10247.84
Social Care Services,THE TOGETHER TRUST CENTRE,Services to People,Care Payments,06/03/2023,8400
Social Care Services,THE TOGETHER TRUST CENTRE,Services to People,Care Payments,06/03/2023,8400
Social Care Services,THE TOGETHER TRUST CENTRE,Services to People,Care Payments,06/03/2023,1677
Social Care Services,THE TOGETHER TRUST CENTRE,Services to People,Care Payments,06/03/2023,1677
Social Care Services,THE TOGETHER TRUST CENTRE,Services to People,Care Payments,06/03/2023,295.63
Social Care Services,THE TOGETHER TRUST CENTRE,Services to People,Care Payments,06/03/2023,295.63
Social Care Services,Appletree Treatment Centre Ltd,Services to People,Care Payments,06/03/2023,9308
Social Care Services,Appletree Treatment Centre Ltd,Services to People,Care Payments,06/03/2023,1772
Social Care Services,Appletree Treatment Centre Ltd,Services to People,Fees and Charges,06/03/2023,5232
Social Care Services,Rite Directions (Foundation ac),Services to People,Care Payments,06/03/2023,5540
Social Care Services,Rite Directions (Foundation ac),Services to People,Care Payments,06/03/2023,5540
Client/Customer (Non-Trade),*Redact - Personal Information,Services to People,Care Payments,06/03/2023,3304.6
Property Management,Intact Projects Ltd,Services to People,Care Payments,06/03/2023,3180
Property Management,Intact Projects Ltd,Services to People,Care Payments,06/03/2023,3180
Property Management,Intact Projects Ltd,Services to People,Care Payments,06/03/2023,3180
Property Management,Intact Projects Ltd,Services to People,Care Payments,06/03/2023,3180
Property Management,Intact Projects Ltd,Services to People,Care Payments,06/03/2023,3180
Property Management,Intact Projects Ltd,Services to People,Care Payments,06/03/2023,3180
Property Management,Intact Projects Ltd,Services to People,Care Payments,06/03/2023,3180
Property Management,Intact Projects Ltd,Services to People,Care Payments,06/03/2023,3180
Property Management,Intact Projects Ltd,Services to People,Care Payments,06/03/2023,3066.43
Property Management,Intact Projects Ltd,Services to People,Care Payments,06/03/2023,2952.86
Property Management,Intact Projects Ltd,Services to People,Care Payments,06/03/2023,2725.71
Property Management,Intact Projects Ltd,Services to People,Care Payments,06/03/2023,3180
Property Management,Intact Projects Ltd,Services to People,Care Payments,06/03/2023,454.29
Social Care Services,Social care Services (The Deacons),Services to People,Care Payments,06/03/2023,4000
Social Care Services,Social care Services (The Deacons),Services to People,Care Payments,06/03/2023,18000
Social Care Services,Social care Services (The Deacons),Services to People,Care Payments,06/03/2023,15170
Social Care Services,Social care Services (The Deacons),Services to People,Fees and Charges,06/03/2023,450
Childcare Provision,Enabling Futures,Services to People,Care Payments,06/03/2023,15000
Foster Care,Three Circles Fostering Ltd,Services to People,Care Payments,06/03/2023,3114.72
Foster Care,Three Circles Fostering Ltd,Services to People,Care Payments,06/03/2023,3114.72
Foster Care,Three Circles Fostering Ltd,Services to People,Care Payments,06/03/2023,3114.72
Foster Care,Three Circles Fostering Ltd,Services to People,Care Payments,06/03/2023,3114.72
Foster Care,Three Circles Fostering Ltd,Services to People,Care Payments,06/03/2023,2972.32
Foster Care,Three Circles Fostering Ltd,Services to People,Care Payments,06/03/2023,2972.32
Foster Care,Three Circles Fostering Ltd,Services to People,Care Payments,06/03/2023,778.68
Foster Care,Three Circles Fostering Ltd,Services to People,Care Payments,06/03/2023,775.68
Foster Care,Three Circles Fostering Ltd,Services to People,Care Payments,06/03/2023,775.68
Foster Care,Three Circles Fostering Ltd,Services to People,Care Payments,06/03/2023,763.12
Foster Care,Three Circles Fostering Ltd,Services to People,Care Payments,06/03/2023,743.08
Foster Care,Three Circles Fostering Ltd,Services to People,Care Payments,06/03/2023,728.2
Foster Care,Three Circles Fostering Ltd,Services to People,Care Payments,06/03/2023,-11.92
Foster Care,Three Circles Fostering Ltd,Services to People,Care Payments,06/03/2023,-11.92
Foster Care,Three Circles Fostering Ltd,Services to People,Care Payments,06/03/2023,-59.44
Foster Care,Three Circles Fostering Ltd,Services to People,Care Payments,06/03/2023,-62.32
Social Care Services,Casicare,Services to People,Care Payments,06/03/2023,2000
Social Care Services,Horizon Care & Education Group Ltd,Services to People,Fees and Charges,06/03/2023,9871.78
Social Care Services,Horizon Care & Education Group Ltd,Services to People,Care Payments,06/03/2023,27168
Foster Care,UK Fostering Ltd,Services to People,Care Payments,06/03/2023,3314.52
Foster Care,Foster Careline Ltd,Services to People,Care Payments,06/03/2023,3544
Foster Care,Foster Careline Ltd,Services to People,Care Payments,06/03/2023,-354.4
Social Care Services,Hexagon Care Services,Services to People,Care Payments,06/03/2023,15390
Social Care Services,Hexagon Care Services,Services to People,Care Payments,06/03/2023,7360.71
Social Care Services,Hexagon Care Services,Services to People,Care Payments,06/03/2023,3750
Social Care Services,Hexagon Care Services,Services to People,Care Payments,06/03/2023,3600
Social Care Services,Inicio Group Ltd,Services to People,Care Payments,06/03/2023,660
Social Care Services,Inicio Group Ltd,Services to People,Care Payments,06/03/2023,4780
Social Care Services,Inicio Group Ltd,Services to People,Care Payments,06/03/2023,682.86
Social Care Services,Caretech Community Services Ltd,Services to People,Care Payments,06/03/2023,10721.43
Social Care Services,Caretech Community Services Ltd,Services to People,Care Payments,06/03/2023,5078.57
Social Care Services,Caretech Community Services Ltd,Services to People,Care Payments,06/03/2023,610.71
Social Care Services,Caretech Community Services Ltd,Services to People,Care Payments,06/03/2023,347.14
Welfare Services,Rossie - Young Peoples Trust,Services to People,Care Payments,06/03/2023,26436
Social Care Services,Your Chapter Limited,Services to People,Care Payments,06/03/2023,4800
Social Care Services,Your Chapter Limited,Services to People,Care Payments,06/03/2023,3555
Social Care Services,Your Chapter Limited,Services to People,Care Payments,06/03/2023,3555
Social Care Services,Your Chapter Limited,Services to People,Care Payments,06/03/2023,3375
Social Care Services,Your Chapter Limited,Services to People,Care Payments,06/03/2023,-35.55
Social Care Services,Your Chapter Limited,Services to People,Care Payments,06/03/2023,-35.55
Social Care Services,Your Chapter Limited,Services to People,Care Payments,06/03/2023,-360
Social Care Services,Safehouses Fostering,Services to People,Care Payments,06/03/2023,3596
Social Care Services,Safehouses Fostering,Services to People,Care Payments,06/03/2023,3396
Social Care Services,Safehouses Fostering,Services to People,Care Payments,06/03/2023,3396
Social Care Services,Safehouses Fostering,Services to People,Care Payments,06/03/2023,3396
Social Care Services,Safehouses Fostering,Services to People,Care Payments,06/03/2023,-71.92
Social Care Services,Safehouses Fostering,Services to People,Care Payments,06/03/2023,-169.8
Social Care Services,Safehouses Fostering,Services to People,Care Payments,06/03/2023,-254.7
Social Care Services,Safehouses Fostering,Services to People,Care Payments,06/03/2023,-269.7
Social Care Services,Safehouses Fostering,Services to People,Care Payments,06/03/2023,-331.12
Social Care Services,Courtyard Care Ltd,Services to People,Care Payments,06/03/2023,9501.43
Social Care Services,Courtyard Care Ltd,Services to People,Care Payments,06/03/2023,7390
Social Care Services,Courtyard Care Ltd,Services to People,Care Payments,06/03/2023,7390
Social Care Services,Courtyard Care Ltd,Services to People,Care Payments,06/03/2023,2639.29
Social Care Services,Courtyard Care Ltd,Services to People,Care Payments,06/03/2023,2639.29
Social Care Services,ROC Northwest Ltd,Services to People,Care Payments,06/03/2023,13499.52
Social Care Services,Oakfields,Services to People,Care Payments,06/03/2023,12000
Social Care Services,Oakfields,Services to People,Care Payments,06/03/2023,9980
Social Care Services,Oakfields,Services to People,Care Payments,06/03/2023,9980
Social Care Services,Oakfields,Services to People,Care Payments,06/03/2023,5571.43
Social Care Services,Oakfields,Services to People,Care Payments,06/03/2023,712.86
Social Care Services,Olive Branch Fostering Ltd,Services to People,Care Payments,06/03/2023,5600
Social Care Services,Olive Branch Fostering Ltd,Services to People,Care Payments,06/03/2023,2988
Social Care Services,Olive Branch Fostering Ltd,Services to People,Care Payments,06/03/2023,2796
Social Care Services,Olive Branch Fostering Ltd,Services to People,Care Payments,06/03/2023,2796
Social Care Services,Olive Branch Fostering Ltd,Services to People,Care Payments,06/03/2023,-27.96
Social Care Services,Olive Branch Fostering Ltd,Services to People,Care Payments,06/03/2023,-29.88
Social Care Services,Fusion Fostering Ltd,Services to People,Care Payments,06/03/2023,3720
Social Care Services,Fusion Fostering Ltd,Services to People,Care Payments,06/03/2023,3540
Social Care Services,Fusion Fostering Ltd,Services to People,Care Payments,06/03/2023,3540
Social Care Services,Fusion Fostering Ltd,Services to People,Care Payments,06/03/2023,553.75
Social Care Services,Fusion Fostering Ltd,Services to People,Care Payments,06/03/2023,57.92
Social Care Services,Fusion Fostering Ltd,Services to People,Care Payments,06/03/2023,17.86
Social Care Services,Fusion Fostering Ltd,Services to People,Care Payments,06/03/2023,-23.29
Social Care Services,Fusion Fostering Ltd,Services to People,Care Payments,06/03/2023,-354
Social Care Services,Fusion Fostering Ltd,Services to People,Care Payments,06/03/2023,-372
Social Care Services,Fusion Fostering Ltd,Services to People,Care Payments,06/03/2023,-652.16
Social Care Services,Fusion Fostering Ltd,Services to People,Care Payments,06/03/2023,-722.03
Social Care Services,Bedspace Resource Ltd,Services to People,Care Payments,06/03/2023,5000
Social Care Services,Bedspace Resource Ltd,Services to People,Care Payments,06/03/2023,1500
Social Care Services,Bedspace Resource Ltd,Services to People,Care Payments,06/03/2023,1080
Social Care Services,Bedspace Resource Ltd,Services to People,Care Payments,06/03/2023,1071.43
Social Care Services,Bedspace Resource Ltd,Services to People,Care Payments,06/03/2023,1071.43
Social Care Services,Bedspace Resource Ltd,Services to People,Care Payments,06/03/2023,771.43
Social Care Services,Bedspace Resource Ltd,Services to People,Care Payments,06/03/2023,771.43
Social Care Services,Bedspace Resource Ltd,Services to People,Care Payments,06/03/2023,428.57
Social Care Services,Bedspace Resource Ltd,Services to People,Care Payments,06/03/2023,308.57
Social Care Services,Bedspace Resource Ltd,Services to People,Care Payments,06/03/2023,1500
Social Care Services,Bedspace Resource Ltd,Services to People,Care Payments,06/03/2023,1400
Social Care Services,Bedspace Resource Ltd,Services to People,Care Payments,06/03/2023,1080
Social Care Services,Bedspace Resource Ltd,Services to People,Care Payments,06/03/2023,400
Social Care Services,Bedspace Resource Ltd,Services to People,Care Payments,06/03/2023,300
Social Care Services,Bedspace Resource Ltd,Services to People,Care Payments,06/03/2023,154.29
Social Care Services,Stepping Stone Projects,Services to People,Care Payments,06/03/2023,1364.18
Social Care Services,Stepping Stone Projects,Services to People,Care Payments,06/03/2023,1364.18
Social Care Services,Stepping Stone Projects,Services to People,Care Payments,06/03/2023,1300
Social Care Services,Stepping Stone Projects,Services to People,Care Payments,06/03/2023,1232.16
Social Care Services,Stepping Stone Projects,Services to People,Care Payments,06/03/2023,1140
Social Care Services,Stepping Stone Projects,Services to People,Care Payments,06/03/2023,616.08
Social Care Services,Stepping Stone Projects,Services to People,Care Payments,06/03/2023,530
Social Care Services,Stepping Stone Projects,Services to People,Care Payments,06/03/2023,-726.58
Social Care Services,Stepping Stone Projects,Services to People,Care Payments,06/03/2023,-1608.86
Social Care Services,Stepping Stone Projects,Services to People,Care Payments,06/03/2023,-1608.86
Social Care Services,Keys PCE Ltd,Services to People,Care Payments,06/03/2023,16360
Education Services,Progress Schools Limited,Services to People,Fees and Charges,06/03/2023,25000
Social Care Services,*Redact - Personal Information,Services to People,Care Payments,06/03/2023,18480
Social Care Services,*Redact - Personal Information,Services to People,Care Payments,06/03/2023,6000
Social Care Services,By The Bridge with Cambian,Services to People,Care Payments,06/03/2023,4403
Social Care Services,A Triangle Care,Services to People,Care Payments,06/03/2023,27980
Foster Care,TACT Fostering,Services to People,Care Payments,06/03/2023,3472
Foster Care,TACT Fostering,Services to People,Care Payments,06/03/2023,2408
Foster Care,TACT Fostering,Services to People,Care Payments,06/03/2023,-120.4
Foster Care,TACT Fostering,Services to People,Care Payments,06/03/2023,-173.6
Social Care Services,Northern Community Pathways,Services to People,Care Payments,06/03/2023,4028
Social Care Services,Northern Community Pathways,Services to People,Care Payments,06/03/2023,1500
Social Care Services,Northern Community Pathways,Services to People,Care Payments,06/03/2023,1324
Social Care Services,Northern Community Pathways,Services to People,Care Payments,06/03/2023,1103.14
Social Care Services,Northern Community Pathways,Services to People,Care Payments,06/03/2023,785.71
Social Care Services,Cathmor Limited,Services to People,Care Payments,06/03/2023,5400
Social Care Services,Avensis Support Ltd,Services to People,Care Payments,06/03/2023,3400
Social Care Services,Avensis Support Ltd,Services to People,Care Payments,06/03/2023,2850
Social Care Services,Avensis Support Ltd,Services to People,Care Payments,06/03/2023,2307.14
Social Care Services,Avensis Support Ltd,Services to People,Care Payments,06/03/2023,1092.86
Social Care Services,Bright Futures Care Ltd,Services to People,Care Payments,06/03/2023,8874.68
Social Care Services,Bright Futures Care Ltd,Services to People,Fees and Charges,06/03/2023,8874.68
Social Care Services,Bright Futures Care Ltd,Services to People,Professional Fees,06/03/2023,8874.64
Social Care Services,Stepping Stones Childrens Homes Ltd,Services to People,Care Payments,06/03/2023,20000
Social Care Services,Paramount Childrens Services Ltd,Services to People,Care Payments,06/03/2023,21000
Social Care Services,Infinity Care Home Ltd,Services to People,Care Payments,06/03/2023,14396
Social Care Services,Infinity Care Home Ltd,Services to People,Care Payments,06/03/2023,14396
Social Care Services,Infinity Care Home Ltd,Services to People,Care Payments,06/03/2023,13996
Social Care Services,Right Step Ltd,Services to People,Care Payments,06/03/2023,4600
Social Care Services,Shield Support Hub Ltd,Services to People,Care Payments,06/03/2023,5200
Social Care Services,Oakfield Psychological Services,Services to People,Care Payments,06/03/2023,19950
Social Care Services,Oakfield Psychological Services,Services to People,Care Payments,06/03/2023,19950
Social Care Services,Sunbeam Fostering Agency Ltd,Services to People,Care Payments,06/03/2023,3300
Social Care Services,Sunbeam Fostering Agency Ltd,Services to People,Care Payments,06/03/2023,3182.14
Social Care Services,Twentyfour Seven,Services to People,Care Payments,06/03/2023,17604
Social Care Services,Homescope Independent Living,Services to People,Care Payments,06/03/2023,9642.86
Social Care Services,Homescope Independent Living,Services to People,Care Payments,06/03/2023,8357.14
Social Care Services,Homescope Independent Living,Services to People,Care Payments,06/03/2023,4914
Social Care Services,Clyde House ISF,Services to People,Care Payments,06/03/2023,2954.64
Social Care Services,Clyde House ISF,Services to People,Care Payments,06/03/2023,227.28
Social Care Services,Clyde House ISF,Services to People,Care Payments,06/03/2023,-348.52
Social Care Services,Clyde House ISF,Services to People,Care Payments,06/03/2023,3137.98
Social Care Services,Clyde House ISF,Services to People,Care Payments,06/03/2023,2771.23
Social Care Services,Clyde House ISF,Services to People,Care Payments,06/03/2023,2771.23
Social Care Services,Clyde House ISF,Services to People,Care Payments,06/03/2023,2771.23
Social Care Services,Clyde House ISF,Services to People,Care Payments,06/03/2023,2771.23
Social Care Services,Clyde House ISF,Services to People,Care Payments,06/03/2023,2771.23
Social Care Services,Clyde House ISF,Services to People,Care Payments,06/03/2023,2771.23
Social Care Services,Clyde House ISF,Services to People,Care Payments,06/03/2023,2771.23
Social Care Services,Clyde House ISF,Services to People,Care Payments,06/03/2023,2396.57
Social Care Services,Clyde House ISF,Services to People,Care Payments,06/03/2023,241.38
Social Care Services,Clyde House ISF,Services to People,Care Payments,06/03/2023,213.17
Social Care Services,Clyde House ISF,Services to People,Care Payments,06/03/2023,213.17
Social Care Services,Clyde House ISF,Services to People,Care Payments,06/03/2023,213.17
Social Care Services,Clyde House ISF,Services to People,Care Payments,06/03/2023,213.17
Social Care Services,Clyde House ISF,Services to People,Care Payments,06/03/2023,213.17
Social Care Services,Clyde House ISF,Services to People,Care Payments,06/03/2023,213.17
Social Care Services,Clyde House ISF,Services to People,Care Payments,06/03/2023,213.17
Social Care Services,Clyde House ISF,Services to People,Care Payments,06/03/2023,184.35
Social Care Services,Select Support Partnerships ISF,Services to People,Care Payments,06/03/2023,3614.3
Social Care Services,Select Support Partnerships ISF,Services to People,Care Payments,06/03/2023,278.02
Client/Customer (Non-Trade),*Redact - Personal Information,Services to People,Care Payments,07/03/2023,76.84
Client/Customer (Non-Trade),*Redact - Personal Information,Services to People,Care Payments,07/03/2023,76.84
Client/Customer (Non-Trade),*Redact - Personal Information,Services to People,Care Payments,07/03/2023,76.84
Client/Customer (Non-Trade),*Redact - Personal Information,Services to People,Care Payments,07/03/2023,76.84
Client/Customer (Non-Trade),*Redact - Personal Information,Services to People,Care Payments,07/03/2023,76.84
Client/Customer (Non-Trade),*Redact - Personal Information,Services to People,Care Payments,07/03/2023,76.84
Client/Customer (Non-Trade),*Redact - Personal Information,Services to People,Care Payments,07/03/2023,38.42
Client/Customer (Non-Trade),*Redact - Personal Information,Services to People,Care Payments,07/03/2023,-38.42
Client/Customer (Non-Trade),*Redact - Personal Information,Services to People,Care Payments,07/03/2023,-76.84
Client/Customer (Non-Trade),*Redact - Personal Information,Services to People,Care Payments,07/03/2023,-76.84
Client/Customer (Non-Trade),*Redact - Personal Information,Services to People,Care Payments,07/03/2023,-76.84
Client/Customer (Non-Trade),*Redact - Personal Information,Services to People,Care Payments,07/03/2023,-76.84
Client/Customer (Non-Trade),*Redact - Personal Information,Services to People,Care Payments,07/03/2023,-76.84
Client/Customer (Non-Trade),*Redact - Personal Information,Services to People,Care Payments,07/03/2023,-76.84
Client/Customer (Non-Trade),*Redact - Personal Information,Services to People,Care Payments,07/03/2023,5083.2
Client/Customer (Non-Trade),*Redact - Personal Information,Services to People,Care Payments,07/03/2023,5083.2
Client/Customer (Non-Trade),*Redact - Personal Information,Services to People,Care Payments,07/03/2023,5083.2
Client/Customer (Non-Trade),*Redact - Personal Information,Services to People,Care Payments,07/03/2023,5083.2
Client/Customer (Non-Trade),*Redact - Personal Information,Services to People,Care Payments,07/03/2023,5083.2
Client/Customer (Non-Trade),*Redact - Personal Information,Services to People,Care Payments,07/03/2023,5083.2
Client/Customer (Non-Trade),*Redact - Personal Information,Services to People,Care Payments,07/03/2023,2720
Client/Customer (Non-Trade),*Redact - Personal Information,Services to People,Care Payments,07/03/2023,2541.6
Client/Customer (Non-Trade),*Redact - Personal Information,Services to People,Care Payments,07/03/2023,-882
Client/Customer (Non-Trade),*Redact - Personal Information,Services to People,Care Payments,07/03/2023,-1764
Client/Customer (Non-Trade),*Redact - Personal Information,Services to People,Care Payments,07/03/2023,-1764
Client/Customer (Non-Trade),*Redact - Personal Information,Services to People,Care Payments,07/03/2023,-1764
Client/Customer (Non-Trade),*Redact - Personal Information,Services to People,Care Payments,07/03/2023,-1764
Client/Customer (Non-Trade),*Redact - Personal Information,Services to People,Care Payments,07/03/2023,-1764
Client/Customer (Non-Trade),*Redact - Personal Information,Services to People,Care Payments,07/03/2023,-1764
Social Care Services,ASSURED CARE (STOCKPORT) LTD,Services to People,Care Payments,07/03/2023,915.84
Social Care Services,ASSURED CARE (STOCKPORT) LTD,Services to People,Care Payments,07/03/2023,267.12
Social Care Services,ASSURED CARE (STOCKPORT) LTD,Services to People,Care Payments,07/03/2023,143.1
Social Care Services,ASSURED CARE (STOCKPORT) LTD,Services to People,Care Payments,07/03/2023,133.56
Social Care Services,ASSURED CARE (STOCKPORT) LTD,Services to People,Care Payments,07/03/2023,534.24
Social Care Services,ASSURED CARE (STOCKPORT) LTD,Services to People,Care Payments,07/03/2023,515.16
Social Care Services,ASSURED CARE (STOCKPORT) LTD,Services to People,Care Payments,07/03/2023,457.92
Social Care Services,ASSURED CARE (STOCKPORT) LTD,Services to People,Care Payments,07/03/2023,400.68
Social Care Services,ASSURED CARE (STOCKPORT) LTD,Services to People,Care Payments,07/03/2023,400.68
Social Care Services,ASSURED CARE (STOCKPORT) LTD,Services to People,Care Payments,07/03/2023,267.12
Social Care Services,ASSURED CARE (STOCKPORT) LTD,Services to People,Care Payments,07/03/2023,267.12
Social Care Services,ASSURED CARE (STOCKPORT) LTD,Services to People,Care Payments,07/03/2023,267.12
Social Care Services,ASSURED CARE (STOCKPORT) LTD,Services to People,Care Payments,07/03/2023,233.73
Social Care Services,ASSURED CARE (STOCKPORT) LTD,Services to People,Care Payments,07/03/2023,228.96
Social Care Services,ASSURED CARE (STOCKPORT) LTD,Services to People,Care Payments,07/03/2023,209.88
Social Care Services,ASSURED CARE (STOCKPORT) LTD,Services to People,Care Payments,07/03/2023,133.56
Social Care Services,ASSURED CARE (STOCKPORT) LTD,Services to People,Care Payments,07/03/2023,133.56
Social Care Services,ASSURED CARE (STOCKPORT) LTD,Services to People,Care Payments,07/03/2023,114.48
Social Care Services,ASSURED CARE (STOCKPORT) LTD,Services to People,Care Payments,07/03/2023,114.48
Social Care Services,ASSURED CARE (STOCKPORT) LTD,Services to People,Care Payments,07/03/2023,95.4
Social Care Services,ASSURED CARE (STOCKPORT) LTD,Services to People,Care Payments,07/03/2023,85.86
Social Care Services,ASSURED CARE (STOCKPORT) LTD,Services to People,Care Payments,07/03/2023,629.64
Social Care Services,ASSURED CARE (STOCKPORT) LTD,Services to People,Care Payments,07/03/2023,553.32
Social Care Services,ASSURED CARE (STOCKPORT) LTD,Services to People,Care Payments,07/03/2023,553.32
Social Care Services,ASSURED CARE (STOCKPORT) LTD,Services to People,Care Payments,07/03/2023,534.24
Social Care Services,ASSURED CARE (STOCKPORT) LTD,Services to People,Care Payments,07/03/2023,534.24
Social Care Services,ASSURED CARE (STOCKPORT) LTD,Services to People,Care Payments,07/03/2023,496.08
Social Care Services,ASSURED CARE (STOCKPORT) LTD,Services to People,Care Payments,07/03/2023,467.46
Social Care Services,ASSURED CARE (STOCKPORT) LTD,Services to People,Care Payments,07/03/2023,400.68
Social Care Services,ASSURED CARE (STOCKPORT) LTD,Services to People,Care Payments,07/03/2023,400.68
Social Care Services,ASSURED CARE (STOCKPORT) LTD,Services to People,Care Payments,07/03/2023,267.12
Social Care Services,ASSURED CARE (STOCKPORT) LTD,Services to People,Care Payments,07/03/2023,209.88
Social Care Services,ASSURED CARE (STOCKPORT) LTD,Services to People,Care Payments,07/03/2023,200.34
Social Care Services,ASSURED CARE (STOCKPORT) LTD,Services to People,Care Payments,07/03/2023,200.34
Social Care Services,ASSURED CARE (STOCKPORT) LTD,Services to People,Care Payments,07/03/2023,171.72
Social Care Services,ASSURED CARE (STOCKPORT) LTD,Services to People,Care Payments,07/03/2023,133.56
Social Care Services,ASSURED CARE (STOCKPORT) LTD,Services to People,Care Payments,07/03/2023,133.56
Social Care Services,ASSURED CARE (STOCKPORT) LTD,Services to People,Care Payments,07/03/2023,133.56
Social Care Services,ASSURED CARE (STOCKPORT) LTD,Services to People,Care Payments,07/03/2023,133.56
Social Care Services,ASSURED CARE (STOCKPORT) LTD,Services to People,Care Payments,07/03/2023,133.56
Social Care Services,ASSURED CARE (STOCKPORT) LTD,Services to People,Care Payments,07/03/2023,133.56
Social Care Services,ASSURED CARE (STOCKPORT) LTD,Services to People,Care Payments,07/03/2023,66.78
Social Care Services,ASSURED CARE (STOCKPORT) LTD,Services to People,Care Payments,07/03/2023,19.08
Social Care Services,ASSURED CARE (STOCKPORT) LTD,Services to People,Care Payments,07/03/2023,763.2
Social Care Services,ASSURED CARE (STOCKPORT) LTD,Services to People,Care Payments,07/03/2023,648.72
Social Care Services,ASSURED CARE (STOCKPORT) LTD,Services to People,Care Payments,07/03/2023,639.18
Social Care Services,ASSURED CARE (STOCKPORT) LTD,Services to People,Care Payments,07/03/2023,639.18
Social Care Services,ASSURED CARE (STOCKPORT) LTD,Services to People,Care Payments,07/03/2023,639.18
Social Care Services,ASSURED CARE (STOCKPORT) LTD,Services to People,Care Payments,07/03/2023,534.24
Social Care Services,ASSURED CARE (STOCKPORT) LTD,Services to People,Care Payments,07/03/2023,534.24
Social Care Services,ASSURED CARE (STOCKPORT) LTD,Services to People,Care Payments,07/03/2023,534.24
Social Care Services,ASSURED CARE (STOCKPORT) LTD,Services to People,Care Payments,07/03/2023,515.16
Social Care Services,ASSURED CARE (STOCKPORT) LTD,Services to People,Care Payments,07/03/2023,505.62
Social Care Services,ASSURED CARE (STOCKPORT) LTD,Services to People,Care Payments,07/03/2023,486.54
Social Care Services,ASSURED CARE (STOCKPORT) LTD,Services to People,Care Payments,07/03/2023,467.46
Social Care Services,ASSURED CARE (STOCKPORT) LTD,Services to People,Care Payments,07/03/2023,467.46
Social Care Services,ASSURED CARE (STOCKPORT) LTD,Services to People,Care Payments,07/03/2023,467.46
Social Care Services,ASSURED CARE (STOCKPORT) LTD,Services to People,Care Payments,07/03/2023,467.46
Social Care Services,ASSURED CARE (STOCKPORT) LTD,Services to People,Care Payments,07/03/2023,467.46
Social Care Services,ASSURED CARE (STOCKPORT) LTD,Services to People,Care Payments,07/03/2023,467.46
Social Care Services,ASSURED CARE (STOCKPORT) LTD,Services to People,Care Payments,07/03/2023,467.46
Social Care Services,ASSURED CARE (STOCKPORT) LTD,Services to People,Care Payments,07/03/2023,467.46
Social Care Services,ASSURED CARE (STOCKPORT) LTD,Services to People,Care Payments,07/03/2023,467.46
Social Care Services,ASSURED CARE (STOCKPORT) LTD,Services to People,Care Payments,07/03/2023,467.46
Social Care Services,ASSURED CARE (STOCKPORT) LTD,Services to People,Care Payments,07/03/2023,467.46
Social Care Services,ASSURED CARE (STOCKPORT) LTD,Services to People,Care Payments,07/03/2023,467.46
Social Care Services,ASSURED CARE (STOCKPORT) LTD,Services to People,Care Payments,07/03/2023,448.38
Social Care Services,ASSURED CARE (STOCKPORT) LTD,Services to People,Care Payments,07/03/2023,391.14
Social Care Services,ASSURED CARE (STOCKPORT) LTD,Services to People,Care Payments,07/03/2023,333.9
Social Care Services,ASSURED CARE (STOCKPORT) LTD,Services to People,Care Payments,07/03/2023,333.9
Social Care Services,ASSURED CARE (STOCKPORT) LTD,Services to People,Care Payments,07/03/2023,319.59
Social Care Services,ASSURED CARE (STOCKPORT) LTD,Services to People,Care Payments,07/03/2023,267.12
Social Care Services,ASSURED CARE (STOCKPORT) LTD,Services to People,Care Payments,07/03/2023,267.12
Social Care Services,ASSURED CARE (STOCKPORT) LTD,Services to People,Care Payments,07/03/2023,267.12
Social Care Services,ASSURED CARE (STOCKPORT) LTD,Services to People,Care Payments,07/03/2023,257.58
Social Care Services,ASSURED CARE (STOCKPORT) LTD,Services to People,Care Payments,07/03/2023,257.58
Social Care Services,ASSURED CARE (STOCKPORT) LTD,Services to People,Care Payments,07/03/2023,238.5
Social Care Services,ASSURED CARE (STOCKPORT) LTD,Services to People,Care Payments,07/03/2023,228.96
Social Care Services,ASSURED CARE (STOCKPORT) LTD,Services to People,Care Payments,07/03/2023,228.96
Social Care Services,ASSURED CARE (STOCKPORT) LTD,Services to People,Care Payments,07/03/2023,200.34
Social Care Services,ASSURED CARE (STOCKPORT) LTD,Services to People,Care Payments,07/03/2023,171.72
Social Care Services,ASSURED CARE (STOCKPORT) LTD,Services to People,Care Payments,07/03/2023,143.1
Social Care Services,ASSURED CARE (STOCKPORT) LTD,Services to People,Care Payments,07/03/2023,143.1
Social Care Services,ASSURED CARE (STOCKPORT) LTD,Services to People,Care Payments,07/03/2023,133.56
Social Care Services,ASSURED CARE (STOCKPORT) LTD,Services to People,Care Payments,07/03/2023,133.56
Social Care Services,ASSURED CARE (STOCKPORT) LTD,Services to People,Care Payments,07/03/2023,133.56
Social Care Services,ASSURED CARE (STOCKPORT) LTD,Services to People,Care Payments,07/03/2023,133.56
Social Care Services,ASSURED CARE (STOCKPORT) LTD,Services to People,Care Payments,07/03/2023,133.56
Social Care Services,ASSURED CARE (STOCKPORT) LTD,Services to People,Care Payments,07/03/2023,104.94
Social Care Services,ASSURED CARE (STOCKPORT) LTD,Services to People,Care Payments,07/03/2023,95.4
Social Care Services,ASSURED CARE (STOCKPORT) LTD,Services to People,Care Payments,07/03/2023,95.4
Social Care Services,ASSURED CARE (STOCKPORT) LTD,Services to People,Care Payments,07/03/2023,91.99
Social Care Services,ASSURED CARE (STOCKPORT) LTD,Services to People,Care Payments,07/03/2023,66.78
Social Care Services,ASSURED CARE (STOCKPORT) LTD,Services to People,Care Payments,07/03/2023,47.7
Social Care Services,ASSURED CARE (STOCKPORT) LTD,Services to People,Care Payments,07/03/2023,-400.68
Social Care Services,ASSURED CARE (STOCKPORT) LTD,Services to People,Care Payments,07/03/2023,-419.76
Social Care Services,ASSURED CARE (STOCKPORT) LTD,Services to People,Care Payments,07/03/2023,-438.84
Social Care Services,ASSURED CARE (STOCKPORT) LTD,Services to People,Care Payments,07/03/2023,-462.69
Social Care Services,ASSURED CARE (STOCKPORT) LTD,Services to People,Care Payments,07/03/2023,-467.46
Social Care Services,ASSURED CARE (STOCKPORT) LTD,Services to People,Care Payments,07/03/2023,-467.46
Social Care Services,ASSURED CARE (STOCKPORT) LTD,Services to People,Care Payments,07/03/2023,-467.46
Social Care Services,ASSURED CARE (STOCKPORT) LTD,Services to People,Care Payments,07/03/2023,-467.46
Social Care Services,ASSURED CARE (STOCKPORT) LTD,Services to People,Care Payments,07/03/2023,-467.46
Social Care Services,ASSURED CARE (STOCKPORT) LTD,Services to People,Care Payments,07/03/2023,-467.46
Social Care Services,ASSURED CARE (STOCKPORT) LTD,Services to People,Care Payments,07/03/2023,-505.62
Social Care Services,ASSURED CARE (STOCKPORT) LTD,Services to People,Care Payments,07/03/2023,868.14
Social Care Services,ASSURED CARE (STOCKPORT) LTD,Services to People,Care Payments,07/03/2023,467.46
Social Care Services,ASSURED CARE (STOCKPORT) LTD,Services to People,Care Payments,07/03/2023,410.22
Social Care Services,ASSURED CARE (STOCKPORT) LTD,Services to People,Care Payments,07/03/2023,400.68
Social Care Services,ASSURED CARE (STOCKPORT) LTD,Services to People,Care Payments,07/03/2023,400.68
Social Care Services,ASSURED CARE (STOCKPORT) LTD,Services to People,Care Payments,07/03/2023,314.82
Social Care Services,ASSURED CARE (STOCKPORT) LTD,Services to People,Care Payments,07/03/2023,248.04
Social Care Services,ASSURED CARE (STOCKPORT) LTD,Services to People,Care Payments,07/03/2023,228.96
Social Care Services,ASSURED CARE (STOCKPORT) LTD,Services to People,Care Payments,07/03/2023,228.96
Social Care Services,ASSURED CARE (STOCKPORT) LTD,Services to People,Care Payments,07/03/2023,200.34
Social Care Services,ASSURED CARE (STOCKPORT) LTD,Services to People,Care Payments,07/03/2023,152.64
Social Care Services,ASSURED CARE (STOCKPORT) LTD,Services to People,Care Payments,07/03/2023,152.64
Social Care Services,ASSURED CARE (STOCKPORT) LTD,Services to People,Care Payments,07/03/2023,143.1
Social Care Services,ASSURED CARE (STOCKPORT) LTD,Services to People,Care Payments,07/03/2023,133.56
Social Care Services,ASSURED CARE (STOCKPORT) LTD,Services to People,Care Payments,07/03/2023,133.56
Social Care Services,ASSURED CARE (STOCKPORT) LTD,Services to People,Care Payments,07/03/2023,95.4
Social Care Services,ASSURED CARE (STOCKPORT) LTD,Services to People,Care Payments,07/03/2023,-228.96
Social Care Services,ASSURED CARE (STOCKPORT) LTD,Services to People,Care Payments,07/03/2023,667.8
Social Care Services,ASSURED CARE (STOCKPORT) LTD,Services to People,Care Payments,07/03/2023,601.02
Social Care Services,ASSURED CARE (STOCKPORT) LTD,Services to People,Care Payments,07/03/2023,601.02
Social Care Services,ASSURED CARE (STOCKPORT) LTD,Services to People,Care Payments,07/03/2023,562.86
Social Care Services,ASSURED CARE (STOCKPORT) LTD,Services to People,Care Payments,07/03/2023,515.16
Social Care Services,ASSURED CARE (STOCKPORT) LTD,Services to People,Care Payments,07/03/2023,419.76
Social Care Services,ASSURED CARE (STOCKPORT) LTD,Services to People,Care Payments,07/03/2023,381.6
Social Care Services,ASSURED CARE (STOCKPORT) LTD,Services to People,Care Payments,07/03/2023,343.44
Social Care Services,ASSURED CARE (STOCKPORT) LTD,Services to People,Care Payments,07/03/2023,276.66
Social Care Services,ASSURED CARE (STOCKPORT) LTD,Services to People,Care Payments,07/03/2023,267.12
Social Care Services,ASSURED CARE (STOCKPORT) LTD,Services to People,Care Payments,07/03/2023,267.12
Social Care Services,ASSURED CARE (STOCKPORT) LTD,Services to People,Care Payments,07/03/2023,257.58
Social Care Services,ASSURED CARE (STOCKPORT) LTD,Services to People,Care Payments,07/03/2023,133.56
Social Care Services,ASSURED CARE (STOCKPORT) LTD,Services to People,Care Payments,07/03/2023,124.02
Social Care Services,ASSURED CARE (STOCKPORT) LTD,Services to People,Care Payments,07/03/2023,114.48
Social Care Services,ASSURED CARE (STOCKPORT) LTD,Services to People,Care Payments,07/03/2023,66.78
Social Care Services,ASSURED CARE (STOCKPORT) LTD,Services to People,Care Payments,07/03/2023,66.78
Social Care Services,ASSURED CARE (STOCKPORT) LTD,Services to People,Care Payments,07/03/2023,19.08
Social Care Services,ASSURED CARE (STOCKPORT) LTD,Services to People,Care Payments,07/03/2023,152.64
Social Care Services,ASSURED CARE (STOCKPORT) LTD,Services to People,Care Payments,07/03/2023,543.78
Social Care Services,ASSURED CARE (STOCKPORT) LTD,Services to People,Care Payments,07/03/2023,410.22
Social Care Services,ASSURED CARE (STOCKPORT) LTD,Services to People,Care Payments,07/03/2023,114.48
Social Care Services,ASSURED CARE (STOCKPORT) LTD,Services to People,Care Payments,07/03/2023,104.94
Social Care Services,BRIDGE CARE SERVICES LTD,Services to People,Care Payments,07/03/2023,163.08
Social Care Services,BRIDGE CARE SERVICES LTD,Services to People,Care Payments,07/03/2023,697.62
Social Care Services,BRIDGE CARE SERVICES LTD,Services to People,Care Payments,07/03/2023,697.62
Social Care Services,BRIDGE CARE SERVICES LTD,Services to People,Care Payments,07/03/2023,661.38
Social Care Services,BRIDGE CARE SERVICES LTD,Services to People,Care Payments,07/03/2023,561.72
Social Care Services,BRIDGE CARE SERVICES LTD,Services to People,Care Payments,07/03/2023,471.12
Social Care Services,BRIDGE CARE SERVICES LTD,Services to People,Care Payments,07/03/2023,335.22
Social Care Services,BRIDGE CARE SERVICES LTD,Services to People,Care Payments,07/03/2023,317.1
Social Care Services,BRIDGE CARE SERVICES LTD,Services to People,Care Payments,07/03/2023,298.98
Social Care Services,BRIDGE CARE SERVICES LTD,Services to People,Care Payments,07/03/2023,289.92
Social Care Services,BRIDGE CARE SERVICES LTD,Services to People,Care Payments,07/03/2023,163.08
Social Care Services,BRIDGE CARE SERVICES LTD,Services to People,Care Payments,07/03/2023,36.24
Social Care Services,BRIDGE CARE SERVICES LTD,Services to People,Care Payments,07/03/2023,-36.24
Social Care Services,BRIDGE CARE SERVICES LTD,Services to People,Care Payments,07/03/2023,951.3
Social Care Services,BRIDGE CARE SERVICES LTD,Services to People,Care Payments,07/03/2023,824.46
Social Care Services,BRIDGE CARE SERVICES LTD,Services to People,Care Payments,07/03/2023,679.5
Social Care Services,BRIDGE CARE SERVICES LTD,Services to People,Care Payments,07/03/2023,507.36
Social Care Services,BRIDGE CARE SERVICES LTD,Services to People,Care Payments,07/03/2023,498.3
Social Care Services,BRIDGE CARE SERVICES LTD,Services to People,Care Payments,07/03/2023,380.52
Social Care Services,BRIDGE CARE SERVICES LTD,Services to People,Care Payments,07/03/2023,375.99
Social Care Services,BRIDGE CARE SERVICES LTD,Services to People,Care Payments,07/03/2023,308.04
Social Care Services,BRIDGE CARE SERVICES LTD,Services to People,Care Payments,07/03/2023,253.68
Social Care Services,BRIDGE CARE SERVICES LTD,Services to People,Care Payments,07/03/2023,158.4
Social Care Services,BRIDGE CARE SERVICES LTD,Services to People,Care Payments,07/03/2023,144.96
Social Care Services,BRIDGE CARE SERVICES LTD,Services to People,Care Payments,07/03/2023,126.84
Social Care Services,BRIDGE CARE SERVICES LTD,Services to People,Care Payments,07/03/2023,398.64
Social Care Services,CARE NEEDS LTD,Services to People,Care Payments,07/03/2023,534.24
Social Care Services,CARE NEEDS LTD,Services to People,Care Payments,07/03/2023,534.24
Social Care Services,CARE NEEDS LTD,Services to People,Care Payments,07/03/2023,267.12
Social Care Services,CARE NEEDS LTD,Services to People,Care Payments,07/03/2023,267.12
Social Care Services,CARE NEEDS LTD,Services to People,Care Payments,07/03/2023,133.56
Social Care Services,CARE NEEDS LTD,Services to People,Care Payments,07/03/2023,133.56
Social Care Services,CARE NEEDS LTD,Services to People,Care Payments,07/03/2023,133.56
Social Care Services,CARE NEEDS LTD,Services to People,Care Payments,07/03/2023,-76.32
Social Care Services,CARE NEEDS LTD,Services to People,Care Payments,07/03/2023,-76.32
Social Care Services,CARE NEEDS LTD,Services to People,Care Payments,07/03/2023,801.36
Social Care Services,CARE NEEDS LTD,Services to People,Care Payments,07/03/2023,801.36
Social Care Services,CARE NEEDS LTD,Services to People,Care Payments,07/03/2023,601.02
Social Care Services,CARE NEEDS LTD,Services to People,Care Payments,07/03/2023,601.02
Social Care Services,CARE NEEDS LTD,Services to People,Care Payments,07/03/2023,601.02
Social Care Services,CARE NEEDS LTD,Services to People,Care Payments,07/03/2023,601.02
Social Care Services,CARE NEEDS LTD,Services to People,Care Payments,07/03/2023,534.24
Social Care Services,CARE NEEDS LTD,Services to People,Care Payments,07/03/2023,534.24
Social Care Services,CARE NEEDS LTD,Services to People,Care Payments,07/03/2023,467.46
Social Care Services,CARE NEEDS LTD,Services to People,Care Payments,07/03/2023,467.46
Social Care Services,CARE NEEDS LTD,Services to People,Care Payments,07/03/2023,133.56
Social Care Services,CARE NEEDS LTD,Services to People,Care Payments,07/03/2023,-95.4
Social Care Services,CARE NEEDS LTD,Services to People,Care Payments,07/03/2023,-95.4
Social Care Services,CARE NEEDS LTD,Services to People,Care Payments,07/03/2023,534.24
Social Care Services,CARE NEEDS LTD,Services to People,Care Payments,07/03/2023,534.24
Social Care Services,CARE NEEDS LTD,Services to People,Care Payments,07/03/2023,667.8
Social Care Services,CARE NEEDS LTD,Services to People,Care Payments,07/03/2023,667.8
Social Care Services,CARE NEEDS LTD,Services to People,Care Payments,07/03/2023,667.8
Social Care Services,CARE NEEDS LTD,Services to People,Care Payments,07/03/2023,667.8
Social Care Services,CARE NEEDS LTD,Services to People,Care Payments,07/03/2023,601.02
Social Care Services,CARE NEEDS LTD,Services to People,Care Payments,07/03/2023,601.02
Social Care Services,CARE NEEDS LTD,Services to People,Care Payments,07/03/2023,534.24
Social Care Services,CARE NEEDS LTD,Services to People,Care Payments,07/03/2023,534.24
Social Care Services,CARE NEEDS LTD,Services to People,Care Payments,07/03/2023,486.54
Social Care Services,CARE NEEDS LTD,Services to People,Care Payments,07/03/2023,400.68
Social Care Services,CARE NEEDS LTD,Services to People,Care Payments,07/03/2023,400.68
Social Care Services,CARE NEEDS LTD,Services to People,Care Payments,07/03/2023,400.68
Social Care Services,CARE NEEDS LTD,Services to People,Care Payments,07/03/2023,267.12
Social Care Services,CARE NEEDS LTD,Services to People,Care Payments,07/03/2023,982.62
Social Care Services,CARE NEEDS LTD,Services to People,Care Payments,07/03/2023,868.14
Social Care Services,CARE NEEDS LTD,Services to People,Care Payments,07/03/2023,534.24
Social Care Services,CARE NEEDS LTD,Services to People,Care Payments,07/03/2023,534.24
Social Care Services,CARE NEEDS LTD,Services to People,Care Payments,07/03/2023,276.66
Social Care Services,CARE NEEDS LTD,Services to People,Care Payments,07/03/2023,276.66
Social Care Services,CARE NEEDS LTD,Services to People,Care Payments,07/03/2023,267.12
Social Care Services,CARE NEEDS LTD,Services to People,Care Payments,07/03/2023,267.12
Social Care Services,CARE NEEDS LTD,Services to People,Care Payments,07/03/2023,200.34
Social Care Services,CARE NEEDS LTD,Services to People,Care Payments,07/03/2023,200.34
Social Care Services,CARE NEEDS LTD,Services to People,Care Payments,07/03/2023,133.56
Social Care Services,CARE NEEDS LTD,Services to People,Care Payments,07/03/2023,133.56
Social Care Services,CARE NEEDS LTD,Services to People,Care Payments,07/03/2023,-104.94
Social Care Services,CARE NEEDS LTD,Services to People,Care Payments,07/03/2023,-104.94
Social Care Services,CARE NEEDS LTD,Services to People,Care Payments,07/03/2023,534.24
Social Care Services,CARE NEEDS LTD,Services to People,Care Payments,07/03/2023,534.24
Social Care Services,CARE NEEDS LTD,Services to People,Care Payments,07/03/2023,400.68
Social Care Services,CARE NEEDS LTD,Services to People,Care Payments,07/03/2023,400.68
Social Care Services,CARE NEEDS LTD,Services to People,Care Payments,07/03/2023,267.12
Social Care Services,CARE NEEDS LTD,Services to People,Care Payments,07/03/2023,267.12
Social Care Services,CARE NEEDS LTD,Services to People,Care Payments,07/03/2023,534.24
Social Care Services,CARE NEEDS LTD,Services to People,Care Payments,07/03/2023,534.24
Social Care Services,CARE NEEDS LTD,Services to People,Care Payments,07/03/2023,467.46
Social Care Services,CARE NEEDS LTD,Services to People,Care Payments,07/03/2023,467.46
Social Care Services,CARE NEEDS LTD,Services to People,Care Payments,07/03/2023,467.46
Social Care Services,CARE NEEDS LTD,Services to People,Care Payments,07/03/2023,448.38
Social Care Services,CARE NEEDS LTD,Services to People,Care Payments,07/03/2023,448.38
Social Care Services,CARE NEEDS LTD,Services to People,Care Payments,07/03/2023,400.68
Social Care Services,CARE NEEDS LTD,Services to People,Care Payments,07/03/2023,386.37
Social Care Services,CARE NEEDS LTD,Services to People,Care Payments,07/03/2023,386.37
Social Care Services,CARE NEEDS LTD,Services to People,Care Payments,07/03/2023,305.28
Social Care Services,CARE NEEDS LTD,Services to People,Care Payments,07/03/2023,286.2
Social Care Services,CARE NEEDS LTD,Services to People,Care Payments,07/03/2023,286.2
Social Care Services,CARE NEEDS LTD,Services to People,Care Payments,07/03/2023,267.12
Social Care Services,CARE NEEDS LTD,Services to People,Care Payments,07/03/2023,267.12
Social Care Services,CARE NEEDS LTD,Services to People,Care Payments,07/03/2023,267.12
Social Care Services,CARE NEEDS LTD,Services to People,Care Payments,07/03/2023,267.12
Social Care Services,CARE NEEDS LTD,Services to People,Care Payments,07/03/2023,267.12
Social Care Services,CARE NEEDS LTD,Services to People,Care Payments,07/03/2023,228.96
Social Care Services,CARE NEEDS LTD,Services to People,Care Payments,07/03/2023,190.8
Social Care Services,CARE NEEDS LTD,Services to People,Care Payments,07/03/2023,66.78
Social Care Services,CARE NEEDS LTD,Services to People,Care Payments,07/03/2023,534.24
Social Care Services,CARE NEEDS LTD,Services to People,Care Payments,07/03/2023,534.24
Social Care Services,CARE NEEDS LTD,Services to People,Care Payments,07/03/2023,300.51
Social Care Services,CARE NEEDS LTD,Services to People,Care Payments,07/03/2023,300.51
Social Care Services,CARE NEEDS LTD,Services to People,Care Payments,07/03/2023,133.56
Social Care Services,CARE NEEDS LTD,Services to People,Care Payments,07/03/2023,133.56
Social Care Services,CARE NEEDS LTD,Services to People,Care Payments,07/03/2023,-176.49
Social Care Services,CARE NEEDS LTD,Services to People,Care Payments,07/03/2023,-176.49
Social Care Services,CARE NEEDS LTD,Services to People,Care Payments,07/03/2023,267.12
Social Care Services,CARE NEEDS LTD,Services to People,Care Payments,07/03/2023,267.12
Social Care Services,CARE NEEDS LTD,Services to People,Care Payments,07/03/2023,133.56
Social Care Services,HG CARE SERVICES LTD,Services to People,Care Payments,07/03/2023,868.14
Social Care Services,HG CARE SERVICES LTD,Services to People,Care Payments,07/03/2023,868.14
Social Care Services,HG CARE SERVICES LTD,Services to People,Care Payments,07/03/2023,114.48
Social Care Services,HG CARE SERVICES LTD,Services to People,Care Payments,07/03/2023,66.78
Social Care Services,HG CARE SERVICES LTD,Services to People,Care Payments,07/03/2023,57.24
Social Care Services,HG CARE SERVICES LTD,Services to People,Care Payments,07/03/2023,57.24
Social Care Services,HG CARE SERVICES LTD,Services to People,Care Payments,07/03/2023,-243.27
Social Care Services,HG CARE SERVICES LTD,Services to People,Care Payments,07/03/2023,-243.27
Social Care Services,HG CARE SERVICES LTD,Services to People,Care Payments,07/03/2023,963.54
Social Care Services,HG CARE SERVICES LTD,Services to People,Care Payments,07/03/2023,801.36
Social Care Services,HG CARE SERVICES LTD,Services to People,Care Payments,07/03/2023,801.36
Social Care Services,HG CARE SERVICES LTD,Services to People,Care Payments,07/03/2023,801.36
Social Care Services,HG CARE SERVICES LTD,Services to People,Care Payments,07/03/2023,534.24
Social Care Services,HG CARE SERVICES LTD,Services to People,Care Payments,07/03/2023,534.24
Social Care Services,HG CARE SERVICES LTD,Services to People,Care Payments,07/03/2023,534.24
Social Care Services,HG CARE SERVICES LTD,Services to People,Care Payments,07/03/2023,505.62
Social Care Services,HG CARE SERVICES LTD,Services to People,Care Payments,07/03/2023,505.62
Social Care Services,HG CARE SERVICES LTD,Services to People,Care Payments,07/03/2023,400.68
Social Care Services,HG CARE SERVICES LTD,Services to People,Care Payments,07/03/2023,267.12
Social Care Services,HG CARE SERVICES LTD,Services to People,Care Payments,07/03/2023,267.12
Social Care Services,HG CARE SERVICES LTD,Services to People,Care Payments,07/03/2023,267.12
Social Care Services,HG CARE SERVICES LTD,Services to People,Care Payments,07/03/2023,601.02
Social Care Services,HG CARE SERVICES LTD,Services to People,Care Payments,07/03/2023,601.02
Social Care Services,HG CARE SERVICES LTD,Services to People,Care Payments,07/03/2023,534.24
Social Care Services,HG CARE SERVICES LTD,Services to People,Care Payments,07/03/2023,534.24
Social Care Services,HG CARE SERVICES LTD,Services to People,Care Payments,07/03/2023,534.24
Social Care Services,HG CARE SERVICES LTD,Services to People,Care Payments,07/03/2023,267.12
Social Care Services,HG CARE SERVICES LTD,Services to People,Care Payments,07/03/2023,181.26
Social Care Services,HG CARE SERVICES LTD,Services to People,Care Payments,07/03/2023,133.56
Social Care Services,HG CARE SERVICES LTD,Services to People,Care Payments,07/03/2023,133.56
Social Care Services,HG CARE SERVICES LTD,Services to People,Care Payments,07/03/2023,744.12
Social Care Services,HG CARE SERVICES LTD,Services to People,Care Payments,07/03/2023,610.56
Social Care Services,HG CARE SERVICES LTD,Services to People,Care Payments,07/03/2023,601.02
Social Care Services,HG CARE SERVICES LTD,Services to People,Care Payments,07/03/2023,591.48
Social Care Services,HG CARE SERVICES LTD,Services to People,Care Payments,07/03/2023,553.32
Social Care Services,HG CARE SERVICES LTD,Services to People,Care Payments,07/03/2023,534.24
Social Care Services,HG CARE SERVICES LTD,Services to People,Care Payments,07/03/2023,515.16
Social Care Services,HG CARE SERVICES LTD,Services to People,Care Payments,07/03/2023,410.22
Social Care Services,HG CARE SERVICES LTD,Services to People,Care Payments,07/03/2023,400.68
Social Care Services,HG CARE SERVICES LTD,Services to People,Care Payments,07/03/2023,324.36
Social Care Services,HG CARE SERVICES LTD,Services to People,Care Payments,07/03/2023,286.2
Social Care Services,HG CARE SERVICES LTD,Services to People,Care Payments,07/03/2023,276.66
Social Care Services,HG CARE SERVICES LTD,Services to People,Care Payments,07/03/2023,267.12
Social Care Services,HG CARE SERVICES LTD,Services to People,Care Payments,07/03/2023,133.56
Social Care Services,HG CARE SERVICES LTD,Services to People,Care Payments,07/03/2023,38.16
Social Care Services,HG CARE SERVICES LTD,Services to People,Care Payments,07/03/2023,-19.08
Social Care Services,HG CARE SERVICES LTD,Services to People,Care Payments,07/03/2023,887.22
Social Care Services,HG CARE SERVICES LTD,Services to People,Care Payments,07/03/2023,601.02
Social Care Services,HG CARE SERVICES LTD,Services to People,Care Payments,07/03/2023,400.68
Social Care Services,HG CARE SERVICES LTD,Services to People,Care Payments,07/03/2023,400.68
Social Care Services,HG CARE SERVICES LTD,Services to People,Care Payments,07/03/2023,257.58
Social Care Services,HG CARE SERVICES LTD,Services to People,Care Payments,07/03/2023,114.48
Social Care Services,HG CARE SERVICES LTD,Services to People,Care Payments,07/03/2023,-38.16
Social Care Services,HG CARE SERVICES LTD,Services to People,Care Payments,07/03/2023,343.44
Social Care Services,HG CARE SERVICES LTD,Services to People,Care Payments,07/03/2023,267.12
Social Care Services,QUALITY CARE OF CHEADLE,Services to People,Care Payments,07/03/2023,267.12
Social Care Services,QUALITY CARE OF CHEADLE,Services to People,Care Payments,07/03/2023,133.56
Social Care Services,QUALITY CARE OF CHEADLE,Services to People,Care Payments,07/03/2023,410.22
Social Care Services,QUALITY CARE OF CHEADLE,Services to People,Care Payments,07/03/2023,667.8
Social Care Services,QUALITY CARE OF CHEADLE,Services to People,Care Payments,07/03/2023,534.24
Social Care Services,QUALITY CARE OF CHEADLE,Services to People,Care Payments,07/03/2023,324.36
Social Care Services,QUALITY CARE OF CHEADLE,Services to People,Care Payments,07/03/2023,267.12
Social Care Services,QUALITY CARE OF CHEADLE,Services to People,Care Payments,07/03/2023,267.12
Social Care Services,QUALITY CARE OF CHEADLE,Services to People,Care Payments,07/03/2023,152.64
Social Care Services,QUALITY CARE OF CHEADLE,Services to People,Care Payments,07/03/2023,133.56
Social Care Services,QUALITY CARE OF CHEADLE,Services to People,Care Payments,07/03/2023,868.14
Social Care Services,QUALITY CARE OF CHEADLE,Services to People,Care Payments,07/03/2023,601.02
Social Care Services,QUALITY CARE OF CHEADLE,Services to People,Care Payments,07/03/2023,534.24
Social Care Services,QUALITY CARE OF CHEADLE,Services to People,Care Payments,07/03/2023,395.91
Social Care Services,QUALITY CARE OF CHEADLE,Services to People,Care Payments,07/03/2023,171.72
Social Care Services,QUALITY CARE OF CHEADLE,Services to People,Care Payments,07/03/2023,133.56
Social Care Services,QUALITY CARE OF CHEADLE,Services to People,Care Payments,07/03/2023,-181.26
Social Care Services,QUALITY CARE OF CHEADLE,Services to People,Care Payments,07/03/2023,868.14
Social Care Services,QUALITY CARE OF CHEADLE,Services to People,Care Payments,07/03/2023,734.58
Social Care Services,QUALITY CARE OF CHEADLE,Services to People,Care Payments,07/03/2023,734.58
Social Care Services,QUALITY CARE OF CHEADLE,Services to People,Care Payments,07/03/2023,725.04
Social Care Services,QUALITY CARE OF CHEADLE,Services to People,Care Payments,07/03/2023,572.4
Social Care Services,QUALITY CARE OF CHEADLE,Services to People,Care Payments,07/03/2023,267.12
Social Care Services,QUALITY CARE OF CHEADLE,Services to People,Care Payments,07/03/2023,186.03
Social Care Services,QUALITY CARE OF CHEADLE,Services to People,Care Payments,07/03/2023,333.9
Social Care Services,QUALITY CARE OF CHEADLE,Services to People,Care Payments,07/03/2023,286.2
Social Care Services,QUALITY CARE OF CHEADLE,Services to People,Care Payments,07/03/2023,257.58
Social Care Services,QUALITY CARE OF CHEADLE,Services to People,Care Payments,07/03/2023,133.56
Social Care Services,HARBEX NURSING & CARE,Services to People,Care Payments,07/03/2023,561.72
Social Care Services,HSL Care Ltd,Services to People,Care Payments,07/03/2023,505.62
Social Care Services,HSL Care Ltd,Services to People,Care Payments,07/03/2023,76.32
Social Care Services,HSL Care Ltd,Services to People,Care Payments,07/03/2023,868.14
Social Care Services,HSL Care Ltd,Services to People,Care Payments,07/03/2023,868.14
Social Care Services,HSL Care Ltd,Services to People,Care Payments,07/03/2023,868.14
Social Care Services,HSL Care Ltd,Services to People,Care Payments,07/03/2023,868.14
Social Care Services,HSL Care Ltd,Services to People,Care Payments,07/03/2023,868.14
Social Care Services,HSL Care Ltd,Services to People,Care Payments,07/03/2023,868.14
Social Care Services,HSL Care Ltd,Services to People,Care Payments,07/03/2023,601.02
Social Care Services,HSL Care Ltd,Services to People,Care Payments,07/03/2023,601.02
Social Care Services,HSL Care Ltd,Services to People,Care Payments,07/03/2023,477
Social Care Services,HSL Care Ltd,Services to People,Care Payments,07/03/2023,419.76
Social Care Services,HSL Care Ltd,Services to People,Care Payments,07/03/2023,381.6
Social Care Services,HSL Care Ltd,Services to People,Care Payments,07/03/2023,200.34
Social Care Services,HSL Care Ltd,Services to People,Care Payments,07/03/2023,171.72
Social Care Services,HSL Care Ltd,Services to People,Care Payments,07/03/2023,133.56
Social Care Services,HSL Care Ltd,Services to People,Care Payments,07/03/2023,133.56
Social Care Services,HSL Care Ltd,Services to People,Care Payments,07/03/2023,133.56
Social Care Services,HSL Care Ltd,Services to People,Care Payments,07/03/2023,76.32
Social Care Services,HSL Care Ltd,Services to People,Care Payments,07/03/2023,4.77
Social Care Services,HSL Care Ltd,Services to People,Care Payments,07/03/2023,4.77
Social Care Services,HSL Care Ltd,Services to People,Care Payments,07/03/2023,438.84
Social Care Services,HSL Care Ltd,Services to People,Care Payments,07/03/2023,133.56
Social Care Services,HSL Care Ltd,Services to People,Care Payments,07/03/2023,57.24
Social Care Services,HSL Care Ltd,Services to People,Care Payments,07/03/2023,-38.16
Social Care Services,HSL Care Ltd,Services to People,Care Payments,07/03/2023,76.32
Social Care Services,Abacus Homecare,Services to People,Care Payments,07/03/2023,849.06
Social Care Services,Abacus Homecare,Services to People,Care Payments,07/03/2023,753.66
Social Care Services,Abacus Homecare,Services to People,Care Payments,07/03/2023,753.66
Social Care Services,Abacus Homecare,Services to People,Care Payments,07/03/2023,744.12
Social Care Services,Abacus Homecare,Services to People,Care Payments,07/03/2023,734.58
Social Care Services,Abacus Homecare,Services to People,Care Payments,07/03/2023,734.58
Social Care Services,Abacus Homecare,Services to People,Care Payments,07/03/2023,734.58
Social Care Services,Abacus Homecare,Services to People,Care Payments,07/03/2023,653.49
Social Care Services,Abacus Homecare,Services to People,Care Payments,07/03/2023,639.18
Social Care Services,Abacus Homecare,Services to People,Care Payments,07/03/2023,601.02
Social Care Services,Abacus Homecare,Services to People,Care Payments,07/03/2023,601.02
Social Care Services,Abacus Homecare,Services to People,Care Payments,07/03/2023,601.02
Social Care Services,Abacus Homecare,Services to People,Care Payments,07/03/2023,591.48
Social Care Services,Abacus Homecare,Services to People,Care Payments,07/03/2023,567.63
Social Care Services,Abacus Homecare,Services to People,Care Payments,07/03/2023,534.24
Social Care Services,Abacus Homecare,Services to People,Care Payments,07/03/2023,534.24
Social Care Services,Abacus Homecare,Services to People,Care Payments,07/03/2023,534.24
Social Care Services,Abacus Homecare,Services to People,Care Payments,07/03/2023,534.24
Social Care Services,Abacus Homecare,Services to People,Care Payments,07/03/2023,524.7
Social Care Services,Abacus Homecare,Services to People,Care Payments,07/03/2023,519.93
Social Care Services,Abacus Homecare,Services to People,Care Payments,07/03/2023,500.85
Social Care Services,Abacus Homecare,Services to People,Care Payments,07/03/2023,477
Social Care Services,Abacus Homecare,Services to People,Care Payments,07/03/2023,472.23
Social Care Services,Abacus Homecare,Services to People,Care Payments,07/03/2023,467.46
Social Care Services,Abacus Homecare,Services to People,Care Payments,07/03/2023,467.46
Social Care Services,Abacus Homecare,Services to People,Care Payments,07/03/2023,453.15
Social Care Services,Abacus Homecare,Services to People,Care Payments,07/03/2023,448.38
Social Care Services,Abacus Homecare,Services to People,Care Payments,07/03/2023,419.76
Social Care Services,Abacus Homecare,Services to People,Care Payments,07/03/2023,395.91
Social Care Services,Abacus Homecare,Services to People,Care Payments,07/03/2023,391.14
Social Care Services,Abacus Homecare,Services to People,Care Payments,07/03/2023,367.29
Social Care Services,Abacus Homecare,Services to People,Care Payments,07/03/2023,343.44
Social Care Services,Abacus Homecare,Services to People,Care Payments,07/03/2023,338.67
Social Care Services,Abacus Homecare,Services to People,Care Payments,07/03/2023,333.9
Social Care Services,Abacus Homecare,Services to People,Care Payments,07/03/2023,333.9
Social Care Services,Abacus Homecare,Services to People,Care Payments,07/03/2023,333.9
Social Care Services,Abacus Homecare,Services to People,Care Payments,07/03/2023,290.97
Social Care Services,Abacus Homecare,Services to People,Care Payments,07/03/2023,271.89
Social Care Services,Abacus Homecare,Services to People,Care Payments,07/03/2023,267.12
Social Care Services,Abacus Homecare,Services to People,Care Payments,07/03/2023,267.12
Social Care Services,Abacus Homecare,Services to People,Care Payments,07/03/2023,267.12
Social Care Services,Abacus Homecare,Services to People,Care Payments,07/03/2023,262.35
Social Care Services,Abacus Homecare,Services to People,Care Payments,07/03/2023,257.58
Social Care Services,Abacus Homecare,Services to People,Care Payments,07/03/2023,219.42
Social Care Services,Abacus Homecare,Services to People,Care Payments,07/03/2023,209.88
Social Care Services,Abacus Homecare,Services to People,Care Payments,07/03/2023,200.34
Social Care Services,Abacus Homecare,Services to People,Care Payments,07/03/2023,200.34
Social Care Services,Abacus Homecare,Services to People,Care Payments,07/03/2023,143.1
Social Care Services,Abacus Homecare,Services to People,Care Payments,07/03/2023,138.33
Social Care Services,Abacus Homecare,Services to People,Care Payments,07/03/2023,138.33
Social Care Services,Abacus Homecare,Services to People,Care Payments,07/03/2023,133.56
Social Care Services,Abacus Homecare,Services to People,Care Payments,07/03/2023,133.56
Social Care Services,Abacus Homecare,Services to People,Care Payments,07/03/2023,133.56
Social Care Services,Abacus Homecare,Services to People,Care Payments,07/03/2023,114.48
Social Care Services,Abacus Homecare,Services to People,Care Payments,07/03/2023,104.94
Social Care Services,Abacus Homecare,Services to People,Care Payments,07/03/2023,104.94
Social Care Services,Abacus Homecare,Services to People,Care Payments,07/03/2023,95.4
Social Care Services,Abacus Homecare,Services to People,Care Payments,07/03/2023,95.4
Social Care Services,Abacus Homecare,Services to People,Care Payments,07/03/2023,95.4
Social Care Services,Abacus Homecare,Services to People,Care Payments,07/03/2023,90.63
Social Care Services,Abacus Homecare,Services to People,Care Payments,07/03/2023,76.32
Social Care Services,Abacus Homecare,Services to People,Care Payments,07/03/2023,76.32
Social Care Services,Abacus Homecare,Services to People,Care Payments,07/03/2023,66.78
Social Care Services,Abacus Homecare,Services to People,Care Payments,07/03/2023,66.78
Social Care Services,Abacus Homecare,Services to People,Care Payments,07/03/2023,57.24
Social Care Services,Abacus Homecare,Services to People,Care Payments,07/03/2023,57.24
Social Care Services,Abacus Homecare,Services to People,Care Payments,07/03/2023,57.24
Social Care Services,Abacus Homecare,Services to People,Care Payments,07/03/2023,57.24
Social Care Services,Abacus Homecare,Services to People,Care Payments,07/03/2023,57.24
Social Care Services,Abacus Homecare,Services to People,Care Payments,07/03/2023,38.16
Social Care Services,Abacus Homecare,Services to People,Care Payments,07/03/2023,38.16
Social Care Services,Abacus Homecare,Services to People,Care Payments,07/03/2023,28.62
Social Care Services,Abacus Homecare,Services to People,Care Payments,07/03/2023,28.62
Social Care Services,Abacus Homecare,Services to People,Care Payments,07/03/2023,28.62
Social Care Services,Abacus Homecare,Services to People,Care Payments,07/03/2023,28.62
Social Care Services,Abacus Homecare,Services to People,Care Payments,07/03/2023,28.62
Social Care Services,Abacus Homecare,Services to People,Care Payments,07/03/2023,28.62
Social Care Services,Abacus Homecare,Services to People,Care Payments,07/03/2023,28.62
Social Care Services,Abacus Homecare,Services to People,Care Payments,07/03/2023,28.62
Social Care Services,Abacus Homecare,Services to People,Care Payments,07/03/2023,28.62
Social Care Services,Abacus Homecare,Services to People,Care Payments,07/03/2023,20.44
Social Care Services,Abacus Homecare,Services to People,Care Payments,07/03/2023,16.35
Social Care Services,Abacus Homecare,Services to People,Care Payments,07/03/2023,-200.34
Social Care Services,Abacus Homecare,Services to People,Care Payments,07/03/2023,-333.9
Social Care Services,Abacus Homecare,Services to People,Care Payments,07/03/2023,686.88
Social Care Services,Abacus Homecare,Services to People,Care Payments,07/03/2023,686.88
Social Care Services,Abacus Homecare,Services to People,Care Payments,07/03/2023,629.64
Social Care Services,Abacus Homecare,Services to People,Care Payments,07/03/2023,629.64
Social Care Services,Abacus Homecare,Services to People,Care Payments,07/03/2023,591.48
Social Care Services,Abacus Homecare,Services to People,Care Payments,07/03/2023,534.24
Social Care Services,Abacus Homecare,Services to People,Care Payments,07/03/2023,534.24
Social Care Services,Abacus Homecare,Services to People,Care Payments,07/03/2023,534.24
Social Care Services,Abacus Homecare,Services to People,Care Payments,07/03/2023,472.23
Social Care Services,Abacus Homecare,Services to People,Care Payments,07/03/2023,472.23
Social Care Services,Abacus Homecare,Services to People,Care Payments,07/03/2023,429.3
Social Care Services,Abacus Homecare,Services to People,Care Payments,07/03/2023,419.76
Social Care Services,Abacus Homecare,Services to People,Care Payments,07/03/2023,400.68
Social Care Services,Abacus Homecare,Services to People,Care Payments,07/03/2023,400.68
Social Care Services,Abacus Homecare,Services to People,Care Payments,07/03/2023,400.68
Social Care Services,Abacus Homecare,Services to People,Care Payments,07/03/2023,400.68
Social Care Services,Abacus Homecare,Services to People,Care Payments,07/03/2023,391.14
Social Care Services,Abacus Homecare,Services to People,Care Payments,07/03/2023,381.6
Social Care Services,Abacus Homecare,Services to People,Care Payments,07/03/2023,267.12
Social Care Services,Abacus Homecare,Services to People,Care Payments,07/03/2023,267.12
Social Care Services,Abacus Homecare,Services to People,Care Payments,07/03/2023,195.57
Social Care Services,Abacus Homecare,Services to People,Care Payments,07/03/2023,181.26
Social Care Services,Abacus Homecare,Services to People,Care Payments,07/03/2023,162.18
Social Care Services,Abacus Homecare,Services to People,Care Payments,07/03/2023,152.64
Social Care Services,Abacus Homecare,Services to People,Care Payments,07/03/2023,143.1
Social Care Services,Abacus Homecare,Services to People,Care Payments,07/03/2023,133.56
Social Care Services,Abacus Homecare,Services to People,Care Payments,07/03/2023,133.56
Social Care Services,Abacus Homecare,Services to People,Care Payments,07/03/2023,133.56
Social Care Services,Abacus Homecare,Services to People,Care Payments,07/03/2023,95.4
Social Care Services,Abacus Homecare,Services to People,Care Payments,07/03/2023,95.4
Social Care Services,Abacus Homecare,Services to People,Care Payments,07/03/2023,95.4
Social Care Services,Abacus Homecare,Services to People,Care Payments,07/03/2023,62.01
Social Care Services,Abacus Homecare,Services to People,Care Payments,07/03/2023,19.08
Social Care Services,Abacus Homecare,Services to People,Care Payments,07/03/2023,-95.4
Social Care Services,Abacus Homecare,Services to People,Care Payments,07/03/2023,-95.4
Social Care Services,Abacus Homecare,Services to People,Care Payments,07/03/2023,-267.12
Social Care Services,Abacus Homecare,Services to People,Care Payments,07/03/2023,-267.12
Social Care Services,Abacus Homecare,Services to People,Care Payments,07/03/2023,138.33
Social Care Services,Abacus Homecare,Services to People,Care Payments,07/03/2023,119.25
Social Care Services,Abacus Homecare,Services to People,Care Payments,07/03/2023,620.1
Social Care Services,Helping Hands,Services to People,Care Payments,07/03/2023,3309.6
Social Care Services,Equality Homecare Services Ltd,Services to People,Care Payments,07/03/2023,634.2
Social Care Services,Equality Homecare Services Ltd,Services to People,Care Payments,07/03/2023,570.78
Social Care Services,Equality Homecare Services Ltd,Services to People,Care Payments,07/03/2023,507.36
Social Care Services,Equality Homecare Services Ltd,Services to People,Care Payments,07/03/2023,471.12
Social Care Services,Equality Homecare Services Ltd,Services to People,Care Payments,07/03/2023,326.16
Social Care Services,Equality Homecare Services Ltd,Services to People,Care Payments,07/03/2023,271.8
Social Care Services,Equality Homecare Services Ltd,Services to People,Care Payments,07/03/2023,253.68
Social Care Services,Equality Homecare Services Ltd,Services to People,Care Payments,07/03/2023,253.68
Social Care Services,Equality Homecare Services Ltd,Services to People,Care Payments,07/03/2023,190.26
Social Care Services,Equality Homecare Services Ltd,Services to People,Care Payments,07/03/2023,135.9
Social Care Services,Equality Homecare Services Ltd,Services to People,Care Payments,07/03/2023,126.84
Social Care Services,Equality Homecare Services Ltd,Services to People,Care Payments,07/03/2023,63.42
Social Care Services,Equality Homecare Services Ltd,Services to People,Care Payments,07/03/2023,36.24
Social Care Services,Equality Homecare Services Ltd,Services to People,Care Payments,07/03/2023,36.24
Social Care Services,Equality Homecare Services Ltd,Services to People,Care Payments,07/03/2023,-126.84
Social Care Services,Equality Homecare Services Ltd,Services to People,Care Payments,07/03/2023,81.54
Social Care Services,iCare Solutions Ltd,Services to People,Care Payments,07/03/2023,253.68
Social Care Services,iCare Solutions Ltd,Services to People,Care Payments,07/03/2023,253.68
Social Care Services,iCare Solutions Ltd,Services to People,Care Payments,07/03/2023,253.68
Social Care Services,iCare Solutions Ltd,Services to People,Care Payments,07/03/2023,190.26
Social Care Services,iCare Solutions Ltd,Services to People,Care Payments,07/03/2023,126.84
Social Care Services,iCare Solutions Ltd,Services to People,Care Payments,07/03/2023,126.84
Social Care Services,iCare Solutions Ltd,Services to People,Care Payments,07/03/2023,126.84
Social Care Services,iCare Solutions Ltd,Services to People,Care Payments,07/03/2023,126.84
Social Care Services,iCare Solutions Ltd,Services to People,Care Payments,07/03/2023,27.18
Social Care Services,iCare Solutions Ltd,Services to People,Care Payments,07/03/2023,15.53
Social Care Services,iCare Solutions Ltd,Services to People,Care Payments,07/03/2023,5.83
Social Care Services,iCare Solutions Ltd,Services to People,Care Payments,07/03/2023,-54.36
Social Care Services,iCare Solutions Ltd,Services to People,Care Payments,07/03/2023,507.36
Social Care Services,iCare Solutions Ltd,Services to People,Care Payments,07/03/2023,507.36
Social Care Services,iCare Solutions Ltd,Services to People,Care Payments,07/03/2023,507.36
Social Care Services,iCare Solutions Ltd,Services to People,Care Payments,07/03/2023,507.36
Social Care Services,iCare Solutions Ltd,Services to People,Care Payments,07/03/2023,507.36
Social Care Services,iCare Solutions Ltd,Services to People,Care Payments,07/03/2023,507.36
Social Care Services,iCare Solutions Ltd,Services to People,Care Payments,07/03/2023,117.78
Social Care Services,iCare Solutions Ltd,Services to People,Care Payments,07/03/2023,253.68
Social Care Services,iCare Solutions Ltd,Services to People,Care Payments,07/03/2023,126.84
Social Care Services,iCare Solutions Ltd,Services to People,Care Payments,07/03/2023,126.84
Social Care Services,iCare Solutions Ltd,Services to People,Care Payments,07/03/2023,108.72
Social Care Services,iCare Solutions Ltd,Services to People,Care Payments,07/03/2023,380.52
Social Care Services,iCare Solutions Ltd,Services to People,Care Payments,07/03/2023,144.96
Social Care Services,iCare Solutions Ltd,Services to People,Care Payments,07/03/2023,90.6
Social Care Services,iCare Solutions Ltd,Services to People,Care Payments,07/03/2023,58.89
Social Care Services,iCare Solutions Ltd,Services to People,Care Payments,07/03/2023,634.2
Social Care Services,iCare Solutions Ltd,Services to People,Care Payments,07/03/2023,634.2
Social Care Services,iCare Solutions Ltd,Services to People,Care Payments,07/03/2023,135.9
Social Care Services,iCare Solutions Ltd,Services to People,Care Payments,07/03/2023,63.42
Social Care Services,iCare Solutions Ltd,Services to People,Care Payments,07/03/2023,36.24
Social Care Services,iCare Solutions Ltd,Services to People,Care Payments,07/03/2023,625.14
Social Care Services,iCare Solutions Ltd,Services to People,Care Payments,07/03/2023,507.36
Social Care Services,iCare Solutions Ltd,Services to People,Care Payments,07/03/2023,507.36
Social Care Services,iCare Solutions Ltd,Services to People,Care Payments,07/03/2023,244.62
Social Care Services,iCare Solutions Ltd,Services to People,Care Payments,07/03/2023,1775.76
Social Care Services,iCare Solutions Ltd,Services to People,Care Payments,07/03/2023,887.88
Social Care Services,iCare Solutions Ltd,Services to People,Care Payments,07/03/2023,634.2
Social Care Services,iCare Solutions Ltd,Services to People,Care Payments,07/03/2023,634.2
Social Care Services,iCare Solutions Ltd,Services to People,Care Payments,07/03/2023,443.94
Social Care Services,iCare Solutions Ltd,Services to People,Care Payments,07/03/2023,407.7
Social Care Services,iCare Solutions Ltd,Services to People,Care Payments,07/03/2023,126.84
Social Care Services,iCare Solutions Ltd,Services to People,Care Payments,07/03/2023,942.24
Social Care Services,Bluebird Care,Services to People,Care Payments,07/03/2023,915.84
Social Care Services,Bluebird Care,Services to People,Care Payments,07/03/2023,801.36
Social Care Services,Bluebird Care,Services to People,Care Payments,07/03/2023,677.34
Social Care Services,Bluebird Care,Services to People,Care Payments,07/03/2023,667.8
Social Care Services,Bluebird Care,Services to People,Care Payments,07/03/2023,667.8
Social Care Services,Bluebird Care,Services to People,Care Payments,07/03/2023,333.9
Social Care Services,Bluebird Care,Services to People,Care Payments,07/03/2023,171.72
Social Care Services,Bluebird Care,Services to People,Care Payments,07/03/2023,133.56
Social Care Services,Bluebird Care,Services to People,Care Payments,07/03/2023,76.32
Social Care Services,Bluebird Care,Services to People,Care Payments,07/03/2023,76.32
Social Care Services,Bluebird Care,Services to People,Care Payments,07/03/2023,667.8
Social Care Services,Bluebird Care,Services to People,Care Payments,07/03/2023,534.24
Social Care Services,Bluebird Care,Services to People,Care Payments,07/03/2023,57.24
Social Care Services,Bluebird Care,Services to People,Care Payments,07/03/2023,601.02
Social Care Services,Bluebird Care,Services to People,Care Payments,07/03/2023,601.02
Social Care Services,Bluebird Care,Services to People,Care Payments,07/03/2023,534.24
Social Care Services,Bluebird Care,Services to People,Care Payments,07/03/2023,534.24
Social Care Services,Bluebird Care,Services to People,Care Payments,07/03/2023,534.24
Social Care Services,Bluebird Care,Services to People,Care Payments,07/03/2023,200.34
Social Care Services,Bluebird Care,Services to People,Care Payments,07/03/2023,200.34
Social Care Services,Bluebird Care,Services to People,Care Payments,07/03/2023,186.03
Social Care Services,Bluebird Care,Services to People,Care Payments,07/03/2023,667.8
Social Care Services,Bluebird Care,Services to People,Care Payments,07/03/2023,667.8
Social Care Services,Bluebird Care,Services to People,Care Payments,07/03/2023,419.76
Social Care Services,Bluebird Care,Services to People,Care Payments,07/03/2023,400.68
Social Care Services,Bluebird Care,Services to People,Care Payments,07/03/2023,267.12
Social Care Services,Bluebird Care,Services to People,Care Payments,07/03/2023,209.88
Social Care Services,Bluebird Care,Services to People,Care Payments,07/03/2023,152.64
Social Care Services,Bluebird Care,Services to People,Care Payments,07/03/2023,133.56
Social Care Services,Bluebird Care,Services to People,Care Payments,07/03/2023,114.48
Social Care Services,Bluebird Care,Services to People,Care Payments,07/03/2023,104.94
Social Care Services,Bluebird Care,Services to People,Care Payments,07/03/2023,95.4
Social Care Services,Bluebird Care,Services to People,Care Payments,07/03/2023,47.7
Social Care Services,Bluebird Care,Services to People,Care Payments,07/03/2023,629.64
Social Care Services,Bluebird Care,Services to People,Care Payments,07/03/2023,572.4
Social Care Services,Bluebird Care,Services to People,Care Payments,07/03/2023,534.24
Social Care Services,Bluebird Care,Services to People,Care Payments,07/03/2023,534.24
Social Care Services,Bluebird Care,Services to People,Care Payments,07/03/2023,534.24
Social Care Services,Bluebird Care,Services to People,Care Payments,07/03/2023,524.7
Social Care Services,Bluebird Care,Services to People,Care Payments,07/03/2023,352.98
Social Care Services,Bluebird Care,Services to People,Care Payments,07/03/2023,333.9
Social Care Services,Bluebird Care,Services to People,Care Payments,07/03/2023,333.9
Social Care Services,Bluebird Care,Services to People,Care Payments,07/03/2023,333.9
Social Care Services,Bluebird Care,Services to People,Care Payments,07/03/2023,333.9
Social Care Services,Bluebird Care,Services to People,Care Payments,07/03/2023,333.9
Social Care Services,Bluebird Care,Services to People,Care Payments,07/03/2023,267.12
Social Care Services,Bluebird Care,Services to People,Care Payments,07/03/2023,267.12
Social Care Services,Bluebird Care,Services to People,Care Payments,07/03/2023,267.12
Social Care Services,Bluebird Care,Services to People,Care Payments,07/03/2023,209.88
Social Care Services,Bluebird Care,Services to People,Care Payments,07/03/2023,200.34
Social Care Services,Bluebird Care,Services to People,Care Payments,07/03/2023,152.64
Social Care Services,Bluebird Care,Services to People,Care Payments,07/03/2023,152.64
Social Care Services,Bluebird Care,Services to People,Care Payments,07/03/2023,152.64
Social Care Services,Bluebird Care,Services to People,Care Payments,07/03/2023,152.64
Social Care Services,Bluebird Care,Services to People,Care Payments,07/03/2023,152.64
Social Care Services,Bluebird Care,Services to People,Care Payments,07/03/2023,152.64
Social Care Services,Bluebird Care,Services to People,Care Payments,07/03/2023,152.64
Social Care Services,Bluebird Care,Services to People,Care Payments,07/03/2023,147.87
Social Care Services,Bluebird Care,Services to People,Care Payments,07/03/2023,987.39
Social Care Services,Bluebird Care,Services to People,Care Payments,07/03/2023,601.02
Social Care Services,Bluebird Care,Services to People,Care Payments,07/03/2023,601.02
Social Care Services,Bluebird Care,Services to People,Care Payments,07/03/2023,601.02
Social Care Services,Bluebird Care,Services to People,Care Payments,07/03/2023,572.4
Social Care Services,Bluebird Care,Services to People,Care Payments,07/03/2023,572.4
Social Care Services,Bluebird Care,Services to People,Care Payments,07/03/2023,534.24
Social Care Services,Bluebird Care,Services to People,Care Payments,07/03/2023,352.98
Social Care Services,Bluebird Care,Services to People,Care Payments,07/03/2023,276.66
Social Care Services,Bluebird Care,Services to People,Care Payments,07/03/2023,267.12
Social Care Services,Bluebird Care,Services to People,Care Payments,07/03/2023,200.34
Social Care Services,Bluebird Care,Services to People,Care Payments,07/03/2023,162.18
Social Care Services,Bluebird Care,Services to People,Care Payments,07/03/2023,124.02
Social Care Services,Bluebird Care,Services to People,Care Payments,07/03/2023,28.62
Social Care Services,Bluebird Care,Services to People,Care Payments,07/03/2023,-601.02
Social Care Services,Bluebird Care,Services to People,Care Payments,07/03/2023,-601.02
Social Care Services,Bluebird Care,Services to People,Care Payments,07/03/2023,-601.02
Social Care Services,Bluebird Care,Services to People,Care Payments,07/03/2023,-601.02
Social Care Services,Bluebird Care,Services to People,Care Payments,07/03/2023,-601.02
Social Care Services,Bluebird Care,Services to People,Care Payments,07/03/2023,-677.34
Social Care Services,Bluebird Care,Services to People,Care Payments,07/03/2023,629.64
Social Care Services,Bluebird Care,Services to People,Care Payments,07/03/2023,448.38
Social Care Services,Bluebird Care,Services to People,Care Payments,07/03/2023,400.68
Social Care Services,Bluebird Care,Services to People,Care Payments,07/03/2023,381.6
Social Care Services,Bluebird Care,Services to People,Care Payments,07/03/2023,314.82
Social Care Services,Bluebird Care,Services to People,Care Payments,07/03/2023,114.48
Social Care Services,Bluebird Care,Services to People,Care Payments,07/03/2023,57.24
Social Care Services,Bluebird Care,Services to People,Care Payments,07/03/2023,-310.05
Social Care Services,Bluebird Care,Services to People,Care Payments,07/03/2023,868.14
Social Care Services,Bluebird Care,Services to People,Care Payments,07/03/2023,868.14
Social Care Services,Bluebird Care,Services to People,Care Payments,07/03/2023,534.24
Social Care Services,Bluebird Care,Services to People,Care Payments,07/03/2023,534.24
Social Care Services,Bluebird Care,Services to People,Care Payments,07/03/2023,438.84
Social Care Services,Bluebird Care,Services to People,Care Payments,07/03/2023,400.68
Social Care Services,Bluebird Care,Services to People,Care Payments,07/03/2023,267.12
Social Care Services,Bluebird Care,Services to People,Care Payments,07/03/2023,219.42
Social Care Services,Bluebird Care,Services to People,Care Payments,07/03/2023,95.4
Social Care Services,Bluebird Care,Services to People,Care Payments,07/03/2023,95.4
Social Care Services,Homecare4U Ltd,Services to People,Care Payments,07/03/2023,200.34
Social Care Services,Homecare4U Ltd,Services to People,Care Payments,07/03/2023,133.56
Social Care Services,Homecare4U Ltd,Services to People,Care Payments,07/03/2023,667.8
Social Care Services,Homecare4U Ltd,Services to People,Care Payments,07/03/2023,534.24
Social Care Services,Homecare4U Ltd,Services to People,Care Payments,07/03/2023,534.24
Social Care Services,Homecare4U Ltd,Services to People,Care Payments,07/03/2023,534.24
Social Care Services,Homecare4U Ltd,Services to People,Care Payments,07/03/2023,801.36
Social Care Services,Homecare4U Ltd,Services to People,Care Payments,07/03/2023,801.36
Social Care Services,Homecare4U Ltd,Services to People,Care Payments,07/03/2023,534.24
Social Care Services,Homecare4U Ltd,Services to People,Care Payments,07/03/2023,438.84
Social Care Services,Homecare4U Ltd,Services to People,Care Payments,07/03/2023,438.84
Social Care Services,Homecare4U Ltd,Services to People,Care Payments,07/03/2023,438.84
Social Care Services,Homecare4U Ltd,Services to People,Care Payments,07/03/2023,438.84
Social Care Services,Homecare4U Ltd,Services to People,Care Payments,07/03/2023,438.84
Social Care Services,Homecare4U Ltd,Services to People,Care Payments,07/03/2023,438.84
Social Care Services,Homecare4U Ltd,Services to People,Care Payments,07/03/2023,438.84
Social Care Services,Homecare4U Ltd,Services to People,Care Payments,07/03/2023,438.84
Social Care Services,Homecare4U Ltd,Services to People,Care Payments,07/03/2023,438.84
Social Care Services,Homecare4U Ltd,Services to People,Care Payments,07/03/2023,438.84
Social Care Services,Homecare4U Ltd,Services to People,Care Payments,07/03/2023,438.84
Social Care Services,Homecare4U Ltd,Services to People,Care Payments,07/03/2023,438.84
Social Care Services,Homecare4U Ltd,Services to People,Care Payments,07/03/2023,400.68
Social Care Services,Homecare4U Ltd,Services to People,Care Payments,07/03/2023,343.44
Social Care Services,Homecare4U Ltd,Services to People,Care Payments,07/03/2023,343.44
Social Care Services,Homecare4U Ltd,Services to People,Care Payments,07/03/2023,305.28
Social Care Services,Homecare4U Ltd,Services to People,Care Payments,07/03/2023,267.12
Social Care Services,Homecare4U Ltd,Services to People,Care Payments,07/03/2023,156.73
Social Care Services,Homecare4U Ltd,Services to People,Care Payments,07/03/2023,133.56
Social Care Services,Homecare4U Ltd,Services to People,Care Payments,07/03/2023,133.56
Social Care Services,Homecare4U Ltd,Services to People,Care Payments,07/03/2023,128.79
Social Care Services,Homecare4U Ltd,Services to People,Care Payments,07/03/2023,128.79
Social Care Services,Homecare4U Ltd,Services to People,Care Payments,07/03/2023,38.16
Social Care Services,Homecare4U Ltd,Services to People,Care Payments,07/03/2023,38.16
Social Care Services,Homecare4U Ltd,Services to People,Care Payments,07/03/2023,19.08
Social Care Services,Homecare4U Ltd,Services to People,Care Payments,07/03/2023,-76.32
Social Care Services,Homecare4U Ltd,Services to People,Care Payments,07/03/2023,-429.3
Social Care Services,Homecare4U Ltd,Services to People,Care Payments,07/03/2023,-438.84
Social Care Services,Homecare4U Ltd,Services to People,Care Payments,07/03/2023,-438.84
Social Care Services,Homecare4U Ltd,Services to People,Care Payments,07/03/2023,-438.84
Social Care Services,Homecare4U Ltd,Services to People,Care Payments,07/03/2023,-438.84
Social Care Services,Homecare4U Ltd,Services to People,Care Payments,07/03/2023,-438.84
Social Care Services,Homecare4U Ltd,Services to People,Care Payments,07/03/2023,-438.84
Social Care Services,Homecare4U Ltd,Services to People,Care Payments,07/03/2023,-438.84
Social Care Services,Homecare4U Ltd,Services to People,Care Payments,07/03/2023,-438.84
Social Care Services,Homecare4U Ltd,Services to People,Care Payments,07/03/2023,-438.84
Social Care Services,Homecare4U Ltd,Services to People,Care Payments,07/03/2023,-438.84
Social Care Services,Homecare4U Ltd,Services to People,Care Payments,07/03/2023,753.66
Social Care Services,Homecare4U Ltd,Services to People,Care Payments,07/03/2023,601.02
Social Care Services,Homecare4U Ltd,Services to People,Care Payments,07/03/2023,486.54
Social Care Services,Homecare4U Ltd,Services to People,Care Payments,07/03/2023,477
Social Care Services,Homecare4U Ltd,Services to People,Care Payments,07/03/2023,438.84
Social Care Services,Homecare4U Ltd,Services to People,Care Payments,07/03/2023,429.3
Social Care Services,Homecare4U Ltd,Services to People,Care Payments,07/03/2023,400.68
Social Care Services,Homecare4U Ltd,Services to People,Care Payments,07/03/2023,305.28
Social Care Services,Homecare4U Ltd,Services to People,Care Payments,07/03/2023,228.96
Social Care Services,Homecare4U Ltd,Services to People,Care Payments,07/03/2023,228.96
Social Care Services,Homecare4U Ltd,Services to People,Care Payments,07/03/2023,667.8
Social Care Services,Homecare4U Ltd,Services to People,Care Payments,07/03/2023,534.24
Social Care Services,Enterprise Care Group Limited,Services to People,Care Payments,07/03/2023,715.5
Social Care Services,Enterprise Care Group Limited,Services to People,Care Payments,07/03/2023,601.02
Social Care Services,Enterprise Care Group Limited,Services to People,Care Payments,07/03/2023,601.02
Social Care Services,Enterprise Care Group Limited,Services to People,Care Payments,07/03/2023,601.02
Social Care Services,Enterprise Care Group Limited,Services to People,Care Payments,07/03/2023,601.02
Social Care Services,Enterprise Care Group Limited,Services to People,Care Payments,07/03/2023,601.02
Social Care Services,Enterprise Care Group Limited,Services to People,Care Payments,07/03/2023,534.24
Social Care Services,Enterprise Care Group Limited,Services to People,Care Payments,07/03/2023,534.24
Social Care Services,Enterprise Care Group Limited,Services to People,Care Payments,07/03/2023,534.24
Social Care Services,Enterprise Care Group Limited,Services to People,Care Payments,07/03/2023,534.24
Social Care Services,Enterprise Care Group Limited,Services to People,Care Payments,07/03/2023,534.24
Social Care Services,Enterprise Care Group Limited,Services to People,Care Payments,07/03/2023,534.24
Social Care Services,Enterprise Care Group Limited,Services to People,Care Payments,07/03/2023,534.24
Social Care Services,Enterprise Care Group Limited,Services to People,Care Payments,07/03/2023,534.24
Social Care Services,Enterprise Care Group Limited,Services to People,Care Payments,07/03/2023,534.24
Social Care Services,Enterprise Care Group Limited,Services to People,Care Payments,07/03/2023,534.24
Social Care Services,Enterprise Care Group Limited,Services to People,Care Payments,07/03/2023,534.24
Social Care Services,Enterprise Care Group Limited,Services to People,Care Payments,07/03/2023,419.76
Social Care Services,Enterprise Care Group Limited,Services to People,Care Payments,07/03/2023,305.28
Social Care Services,Enterprise Care Group Limited,Services to People,Care Payments,07/03/2023,305.28
Social Care Services,Enterprise Care Group Limited,Services to People,Care Payments,07/03/2023,267.12
Social Care Services,Enterprise Care Group Limited,Services to People,Care Payments,07/03/2023,200.34
Social Care Services,Enterprise Care Group Limited,Services to People,Care Payments,07/03/2023,133.56
Social Care Services,Enterprise Care Group Limited,Services to People,Care Payments,07/03/2023,133.56
Social Care Services,Enterprise Care Group Limited,Services to People,Care Payments,07/03/2023,-76.32
Social Care Services,Enterprise Care Group Limited,Services to People,Care Payments,07/03/2023,-209.88
Social Care Services,Enterprise Care Group Limited,Services to People,Care Payments,07/03/2023,-343.44
Social Care Services,Enterprise Care Group Limited,Services to People,Care Payments,07/03/2023,-400.68
Social Care Services,Enterprise Care Group Limited,Services to People,Care Payments,07/03/2023,-400.68
Social Care Services,Enterprise Care Group Limited,Services to People,Care Payments,07/03/2023,-400.68
Social Care Services,Enterprise Care Group Limited,Services to People,Care Payments,07/03/2023,-400.68
Social Care Services,Enterprise Care Group Limited,Services to People,Care Payments,07/03/2023,-400.68
Social Care Services,Enterprise Care Group Limited,Services to People,Care Payments,07/03/2023,-400.68
Social Care Services,Enterprise Care Group Limited,Services to People,Care Payments,07/03/2023,-400.68
Social Care Services,Enterprise Care Group Limited,Services to People,Care Payments,07/03/2023,-438.84
Social Care Services,Enterprise Care Group Limited,Services to People,Care Payments,07/03/2023,-534.24
Social Care Services,Enterprise Care Group Limited,Services to People,Care Payments,07/03/2023,992.16
Social Care Services,Enterprise Care Group Limited,Services to People,Care Payments,07/03/2023,954
Social Care Services,Enterprise Care Group Limited,Services to People,Care Payments,07/03/2023,667.8
Social Care Services,Enterprise Care Group Limited,Services to People,Care Payments,07/03/2023,534.24
Social Care Services,Enterprise Care Group Limited,Services to People,Care Payments,07/03/2023,534.24
Social Care Services,Enterprise Care Group Limited,Services to People,Care Payments,07/03/2023,534.24
Social Care Services,Enterprise Care Group Limited,Services to People,Care Payments,07/03/2023,400.68
Social Care Services,Enterprise Care Group Limited,Services to People,Care Payments,07/03/2023,400.68
Social Care Services,Enterprise Care Group Limited,Services to People,Care Payments,07/03/2023,133.56
Social Care Services,Enterprise Care Group Limited,Services to People,Care Payments,07/03/2023,66.78
Social Care Services,Enterprise Care Group Limited,Services to People,Care Payments,07/03/2023,1068.48
Social Care Services,Enterprise Care Group Limited,Services to People,Care Payments,07/03/2023,801.36
Social Care Services,Enterprise Care Group Limited,Services to People,Care Payments,07/03/2023,801.36
Social Care Services,Enterprise Care Group Limited,Services to People,Care Payments,07/03/2023,667.8
Social Care Services,Enterprise Care Group Limited,Services to People,Care Payments,07/03/2023,667.8
Social Care Services,Enterprise Care Group Limited,Services to People,Care Payments,07/03/2023,534.24
Social Care Services,Enterprise Care Group Limited,Services to People,Care Payments,07/03/2023,534.24
Social Care Services,Enterprise Care Group Limited,Services to People,Care Payments,07/03/2023,438.84
Social Care Services,Enterprise Care Group Limited,Services to People,Care Payments,07/03/2023,400.68
Social Care Services,Enterprise Care Group Limited,Services to People,Care Payments,07/03/2023,267.12
Social Care Services,Enterprise Care Group Limited,Services to People,Care Payments,07/03/2023,200.34
Social Care Services,Enterprise Care Group Limited,Services to People,Care Payments,07/03/2023,200.34
Social Care Services,Enterprise Care Group Limited,Services to People,Care Payments,07/03/2023,200.34
Social Care Services,Enterprise Care Group Limited,Services to People,Care Payments,07/03/2023,133.56
Social Care Services,Enterprise Care Group Limited,Services to People,Care Payments,07/03/2023,133.56
Social Care Services,Enterprise Care Group Limited,Services to People,Care Payments,07/03/2023,104.94
Social Care Services,Enterprise Care Group Limited,Services to People,Care Payments,07/03/2023,801.36
Social Care Services,Enterprise Care Group Limited,Services to People,Care Payments,07/03/2023,801.36
Social Care Services,Enterprise Care Group Limited,Services to People,Care Payments,07/03/2023,667.8
Social Care Services,Enterprise Care Group Limited,Services to People,Care Payments,07/03/2023,667.8
Social Care Services,Enterprise Care Group Limited,Services to People,Care Payments,07/03/2023,667.8
Social Care Services,Enterprise Care Group Limited,Services to People,Care Payments,07/03/2023,667.8
Social Care Services,Enterprise Care Group Limited,Services to People,Care Payments,07/03/2023,601.02
Social Care Services,Enterprise Care Group Limited,Services to People,Care Payments,07/03/2023,601.02
Social Care Services,Enterprise Care Group Limited,Services to People,Care Payments,07/03/2023,601.02
Social Care Services,Enterprise Care Group Limited,Services to People,Care Payments,07/03/2023,601.02
Social Care Services,Enterprise Care Group Limited,Services to People,Care Payments,07/03/2023,534.24
Social Care Services,Enterprise Care Group Limited,Services to People,Care Payments,07/03/2023,534.24
Social Care Services,Enterprise Care Group Limited,Services to People,Care Payments,07/03/2023,133.56
Social Care Services,Enterprise Care Group Limited,Services to People,Care Payments,07/03/2023,915.84
Social Care Services,Enterprise Care Group Limited,Services to People,Care Payments,07/03/2023,820.44
Social Care Services,Enterprise Care Group Limited,Services to People,Care Payments,07/03/2023,667.8
Social Care Services,Enterprise Care Group Limited,Services to People,Care Payments,07/03/2023,667.8
Social Care Services,Enterprise Care Group Limited,Services to People,Care Payments,07/03/2023,314.82
Social Care Services,Enterprise Care Group Limited,Services to People,Care Payments,07/03/2023,200.34
Social Care Services,Enterprise Care Group Limited,Services to People,Care Payments,07/03/2023,200.34
Social Care Services,Enterprise Care Group Limited,Services to People,Care Payments,07/03/2023,85.86
Social Care Services,Enterprise Care Group Limited,Services to People,Care Payments,07/03/2023,934.92
Social Care Services,Enterprise Care Group Limited,Services to People,Care Payments,07/03/2023,934.92
Social Care Services,Enterprise Care Group Limited,Services to People,Care Payments,07/03/2023,534.24
Social Care Services,Enterprise Care Group Limited,Services to People,Care Payments,07/03/2023,462.69
Social Care Services,Enterprise Care Group Limited,Services to People,Care Payments,07/03/2023,434.07
Social Care Services,Enterprise Care Group Limited,Services to People,Care Payments,07/03/2023,267.12
Social Care Services,Enterprise Care Group Limited,Services to People,Care Payments,07/03/2023,267.12
Social Care Services,Enterprise Care Group Limited,Services to People,Care Payments,07/03/2023,267.12
Social Care Services,Enterprise Care Group Limited,Services to People,Care Payments,07/03/2023,267.12
Social Care Services,Enterprise Care Group Limited,Services to People,Care Payments,07/03/2023,133.56
Social Care Services,Enterprise Care Group Limited,Services to People,Care Payments,07/03/2023,534.24
Social Care Services,Enterprise Care Group Limited,Services to People,Care Payments,07/03/2023,534.24
Social Care Services,Enterprise Care Group Limited,Services to People,Care Payments,07/03/2023,267.12
Social Care Services,True Homecare,Services to People,Care Payments,07/03/2023,534.24
Social Care Services,True Homecare,Services to People,Care Payments,07/03/2023,38.16
Social Care Services,True Homecare,Services to People,Care Payments,07/03/2023,601.02
Social Care Services,True Homecare,Services to People,Care Payments,07/03/2023,601.02
Social Care Services,True Homecare,Services to People,Care Payments,07/03/2023,467.46
Social Care Services,True Homecare,Services to People,Care Payments,07/03/2023,400.68
Social Care Services,True Homecare,Services to People,Care Payments,07/03/2023,400.68
Social Care Services,True Homecare,Services to People,Care Payments,07/03/2023,400.68
Social Care Services,True Homecare,Services to People,Care Payments,07/03/2023,381.6
Social Care Services,True Homecare,Services to People,Care Payments,07/03/2023,333.9
Social Care Services,True Homecare,Services to People,Care Payments,07/03/2023,267.12
Social Care Services,True Homecare,Services to People,Care Payments,07/03/2023,248.04
Social Care Services,True Homecare,Services to People,Care Payments,07/03/2023,133.56
Social Care Services,True Homecare,Services to People,Care Payments,07/03/2023,133.56
Social Care Services,True Homecare,Services to People,Care Payments,07/03/2023,133.56
Social Care Services,True Homecare,Services to People,Care Payments,07/03/2023,114.48
Social Care Services,True Homecare,Services to People,Care Payments,07/03/2023,114.48
Social Care Services,True Homecare,Services to People,Care Payments,07/03/2023,114.48
Social Care Services,True Homecare,Services to People,Care Payments,07/03/2023,76.32
Social Care Services,True Homecare,Services to People,Care Payments,07/03/2023,534.24
Social Care Services,True Homecare,Services to People,Care Payments,07/03/2023,467.46
Social Care Services,True Homecare,Services to People,Care Payments,07/03/2023,324.36
Social Care Services,True Homecare,Services to People,Care Payments,07/03/2023,324.36
Social Care Services,True Homecare,Services to People,Care Payments,07/03/2023,267.12
Social Care Services,True Homecare,Services to People,Care Payments,07/03/2023,133.56
Social Care Services,True Homecare,Services to People,Care Payments,07/03/2023,114.48
Social Care Services,True Homecare,Services to People,Care Payments,07/03/2023,38.16
Social Care Services,Elite Homecare,Services to People,Care Payments,07/03/2023,944.46
Social Care Services,Elite Homecare,Services to People,Care Payments,07/03/2023,534.24
Social Care Services,Elite Homecare,Services to People,Care Payments,07/03/2023,324.36
Social Care Services,Elite Homecare,Services to People,Care Payments,07/03/2023,276.66
Social Care Services,Elite Homecare,Services to People,Care Payments,07/03/2023,686.88
Social Care Services,Elite Homecare,Services to People,Care Payments,07/03/2023,658.26
Social Care Services,Elite Homecare,Services to People,Care Payments,07/03/2023,591.48
Social Care Services,Elite Homecare,Services to People,Care Payments,07/03/2023,562.86
Social Care Services,Elite Homecare,Services to People,Care Payments,07/03/2023,419.76
Social Care Services,Elite Homecare,Services to People,Care Payments,07/03/2023,267.12
Social Care Services,Elite Homecare,Services to People,Care Payments,07/03/2023,267.12
Social Care Services,Elite Homecare,Services to People,Care Payments,07/03/2023,228.96
Social Care Services,Elite Homecare,Services to People,Care Payments,07/03/2023,133.56
Social Care Services,Elite Homecare,Services to People,Care Payments,07/03/2023,-9.54
Social Care Services,Absolute Care and Support (UK) Ltd,Services to People,Care Payments,07/03/2023,534.24
Social Care Services,Absolute Care and Support (UK) Ltd,Services to People,Care Payments,07/03/2023,515.16
Social Care Services,Absolute Care and Support (UK) Ltd,Services to People,Care Payments,07/03/2023,400.68
Social Care Services,Absolute Care and Support (UK) Ltd,Services to People,Care Payments,07/03/2023,57.24
Social Care Services,Absolute Care and Support (UK) Ltd,Services to People,Care Payments,07/03/2023,19.08
Social Care Services,Absolute Care and Support (UK) Ltd,Services to People,Care Payments,07/03/2023,133.56
Social Care Services,Absolute Care and Support (UK) Ltd,Services to People,Care Payments,07/03/2023,76.32
Social Care Services,Absolute Care and Support (UK) Ltd,Services to People,Care Payments,07/03/2023,228.96
Social Care Services,Absolute Care and Support (UK) Ltd,Services to People,Care Payments,07/03/2023,100
Social Care Services,Absolute Care and Support (UK) Ltd,Services to People,Care Payments,07/03/2023,896.76
Social Care Services,Absolute Care and Support (UK) Ltd,Services to People,Care Payments,07/03/2023,667.8
Social Care Services,Absolute Care and Support (UK) Ltd,Services to People,Care Payments,07/03/2023,667.8
Social Care Services,Absolute Care and Support (UK) Ltd,Services to People,Care Payments,07/03/2023,648.72
Social Care Services,Absolute Care and Support (UK) Ltd,Services to People,Care Payments,07/03/2023,648.72
Social Care Services,Absolute Care and Support (UK) Ltd,Services to People,Care Payments,07/03/2023,610.56
Social Care Services,Absolute Care and Support (UK) Ltd,Services to People,Care Payments,07/03/2023,601.02
Social Care Services,Absolute Care and Support (UK) Ltd,Services to People,Care Payments,07/03/2023,601.02
Social Care Services,Absolute Care and Support (UK) Ltd,Services to People,Care Payments,07/03/2023,567.63
Social Care Services,Absolute Care and Support (UK) Ltd,Services to People,Care Payments,07/03/2023,553.32
Social Care Services,Absolute Care and Support (UK) Ltd,Services to People,Care Payments,07/03/2023,543.78
Social Care Services,Absolute Care and Support (UK) Ltd,Services to People,Care Payments,07/03/2023,534.24
Social Care Services,Absolute Care and Support (UK) Ltd,Services to People,Care Payments,07/03/2023,534.24
Social Care Services,Absolute Care and Support (UK) Ltd,Services to People,Care Payments,07/03/2023,534.24
Social Care Services,Absolute Care and Support (UK) Ltd,Services to People,Care Payments,07/03/2023,534.24
Social Care Services,Absolute Care and Support (UK) Ltd,Services to People,Care Payments,07/03/2023,496.08
Social Care Services,Absolute Care and Support (UK) Ltd,Services to People,Care Payments,07/03/2023,467.46
Social Care Services,Absolute Care and Support (UK) Ltd,Services to People,Care Payments,07/03/2023,467.46
Social Care Services,Absolute Care and Support (UK) Ltd,Services to People,Care Payments,07/03/2023,467.46
Social Care Services,Absolute Care and Support (UK) Ltd,Services to People,Care Payments,07/03/2023,457.92
Social Care Services,Absolute Care and Support (UK) Ltd,Services to People,Care Payments,07/03/2023,457.92
Social Care Services,Absolute Care and Support (UK) Ltd,Services to People,Care Payments,07/03/2023,443.61
Social Care Services,Absolute Care and Support (UK) Ltd,Services to People,Care Payments,07/03/2023,400.68
Social Care Services,Absolute Care and Support (UK) Ltd,Services to People,Care Payments,07/03/2023,362.52
Social Care Services,Absolute Care and Support (UK) Ltd,Services to People,Care Payments,07/03/2023,333.9
Social Care Services,Absolute Care and Support (UK) Ltd,Services to People,Care Payments,07/03/2023,333.9
Social Care Services,Absolute Care and Support (UK) Ltd,Services to People,Care Payments,07/03/2023,333.9
Social Care Services,Absolute Care and Support (UK) Ltd,Services to People,Care Payments,07/03/2023,333.9
Social Care Services,Absolute Care and Support (UK) Ltd,Services to People,Care Payments,07/03/2023,333.9
Social Care Services,Absolute Care and Support (UK) Ltd,Services to People,Care Payments,07/03/2023,333.9
Social Care Services,Absolute Care and Support (UK) Ltd,Services to People,Care Payments,07/03/2023,333.9
Social Care Services,Absolute Care and Support (UK) Ltd,Services to People,Care Payments,07/03/2023,329.13
Social Care Services,Absolute Care and Support (UK) Ltd,Services to People,Care Payments,07/03/2023,305.28
Social Care Services,Absolute Care and Support (UK) Ltd,Services to People,Care Payments,07/03/2023,305.28
Social Care Services,Absolute Care and Support (UK) Ltd,Services to People,Care Payments,07/03/2023,286.2
Social Care Services,Absolute Care and Support (UK) Ltd,Services to People,Care Payments,07/03/2023,267.12
Social Care Services,Absolute Care and Support (UK) Ltd,Services to People,Care Payments,07/03/2023,267.12
Social Care Services,Absolute Care and Support (UK) Ltd,Services to People,Care Payments,07/03/2023,257.58
Social Care Services,Absolute Care and Support (UK) Ltd,Services to People,Care Payments,07/03/2023,209.88
Social Care Services,Absolute Care and Support (UK) Ltd,Services to People,Care Payments,07/03/2023,200.34
Social Care Services,Absolute Care and Support (UK) Ltd,Services to People,Care Payments,07/03/2023,200.34
Social Care Services,Absolute Care and Support (UK) Ltd,Services to People,Care Payments,07/03/2023,152.64
Social Care Services,Absolute Care and Support (UK) Ltd,Services to People,Care Payments,07/03/2023,124.02
Social Care Services,Absolute Care and Support (UK) Ltd,Services to People,Care Payments,07/03/2023,114.48
Social Care Services,Absolute Care and Support (UK) Ltd,Services to People,Care Payments,07/03/2023,95.4
Social Care Services,Absolute Care and Support (UK) Ltd,Services to People,Care Payments,07/03/2023,95.4
Social Care Services,Absolute Care and Support (UK) Ltd,Services to People,Care Payments,07/03/2023,76.32
Social Care Services,Absolute Care and Support (UK) Ltd,Services to People,Care Payments,07/03/2023,57.24
Social Care Services,Absolute Care and Support (UK) Ltd,Services to People,Care Payments,07/03/2023,38.16
Social Care Services,Absolute Care and Support (UK) Ltd,Services to People,Care Payments,07/03/2023,9.54
Social Care Services,Absolute Care and Support (UK) Ltd,Services to People,Care Payments,07/03/2023,-19.08
Social Care Services,Absolute Care and Support (UK) Ltd,Services to People,Care Payments,07/03/2023,648.72
Social Care Services,Absolute Care and Support (UK) Ltd,Services to People,Care Payments,07/03/2023,553.32
Social Care Services,Absolute Care and Support (UK) Ltd,Services to People,Care Payments,07/03/2023,515.16
Social Care Services,Absolute Care and Support (UK) Ltd,Services to People,Care Payments,07/03/2023,467.46
Social Care Services,Absolute Care and Support (UK) Ltd,Services to People,Care Payments,07/03/2023,400.68
Social Care Services,Absolute Care and Support (UK) Ltd,Services to People,Care Payments,07/03/2023,343.44
Social Care Services,Absolute Care and Support (UK) Ltd,Services to People,Care Payments,07/03/2023,333.9
Social Care Services,Absolute Care and Support (UK) Ltd,Services to People,Care Payments,07/03/2023,286.2
Social Care Services,Absolute Care and Support (UK) Ltd,Services to People,Care Payments,07/03/2023,267.12
Social Care Services,Absolute Care and Support (UK) Ltd,Services to People,Care Payments,07/03/2023,267.12
Social Care Services,Absolute Care and Support (UK) Ltd,Services to People,Care Payments,07/03/2023,248.04
Social Care Services,Absolute Care and Support (UK) Ltd,Services to People,Care Payments,07/03/2023,248.04
Social Care Services,Absolute Care and Support (UK) Ltd,Services to People,Care Payments,07/03/2023,171.72
Social Care Services,Absolute Care and Support (UK) Ltd,Services to People,Care Payments,07/03/2023,143.1
Social Care Services,Absolute Care and Support (UK) Ltd,Services to People,Care Payments,07/03/2023,133.56
Social Care Services,Absolute Care and Support (UK) Ltd,Services to People,Care Payments,07/03/2023,124.02
Social Care Services,Absolute Care and Support (UK) Ltd,Services to People,Care Payments,07/03/2023,114.48
Social Care Services,Absolute Care and Support (UK) Ltd,Services to People,Care Payments,07/03/2023,95.4
Social Care Services,Absolute Care and Support (UK) Ltd,Services to People,Care Payments,07/03/2023,38.16
Social Care Services,Absolute Care and Support (UK) Ltd,Services to People,Care Payments,07/03/2023,38.16
Social Care Services,Care 24,Services to People,Care Payments,07/03/2023,507.36
Social Care Services,Care 24,Services to People,Care Payments,07/03/2023,244.62
Social Care Services,Care 24,Services to People,Care Payments,07/03/2023,235.56
Social Care Services,Care 24,Services to People,Care Payments,07/03/2023,235.56
Social Care Services,Care 24,Services to People,Care Payments,07/03/2023,90.6
Social Care Services,Care 24,Services to People,Care Payments,07/03/2023,1340.88
Social Care Services,Care 24,Services to People,Care Payments,07/03/2023,559.91
Social Care Services,Care 24,Services to People,Care Payments,07/03/2023,507.36
Social Care Services,Care 24,Services to People,Care Payments,07/03/2023,380.52
Social Care Services,Care 24,Services to People,Care Payments,07/03/2023,380.52
Social Care Services,Care 24,Services to People,Care Payments,07/03/2023,253.68
Social Care Services,Care 24,Services to People,Care Payments,07/03/2023,1078.14
Social Care Services,Care 24,Services to People,Care Payments,07/03/2023,1014.72
Social Care Services,Care 24,Services to People,Care Payments,07/03/2023,570.78
Social Care Services,Care 24,Services to People,Care Payments,07/03/2023,570.78
Social Care Services,Care 24,Services to People,Care Payments,07/03/2023,317.1
Social Care Services,Care 24,Services to People,Care Payments,07/03/2023,253.68
Social Care Services,Care 24,Services to People,Care Payments,07/03/2023,190.26
Social Care Services,Care 24,Services to People,Care Payments,07/03/2023,154.02
Social Care Services,Care 24,Services to People,Care Payments,07/03/2023,2074.74
Social Care Services,Care 24,Services to People,Care Payments,07/03/2023,715.74
Social Care Services,Care 24,Services to People,Care Payments,07/03/2023,634.2
Social Care Services,Care 24,Services to People,Care Payments,07/03/2023,634.2
Social Care Services,Care 24,Services to People,Care Payments,07/03/2023,262.74
Social Care Services,Care 24,Services to People,Care Payments,07/03/2023,190.26
Social Care Services,Care 24,Services to People,Care Payments,07/03/2023,90.6
Social Care Services,Care 24,Services to People,Care Payments,07/03/2023,453
Social Care Services,Angel Home Care Services,Services to People,Care Payments,07/03/2023,601.02
Social Care Services,Angel Home Care Services,Services to People,Care Payments,07/03/2023,343.44
Social Care Services,Angel Home Care Services,Services to People,Care Payments,07/03/2023,305.28
Social Care Services,Angel Home Care Services,Services to People,Care Payments,07/03/2023,267.12
Social Care Services,Angel Home Care Services,Services to People,Care Payments,07/03/2023,133.56
Social Care Services,Angel Home Care Services,Services to People,Care Payments,07/03/2023,2003.4
Social Care Services,Angel Home Care Services,Services to People,Care Payments,07/03/2023,1335.6
Social Care Services,Angel Home Care Services,Services to People,Care Payments,07/03/2023,877.68
Social Care Services,Angel Home Care Services,Services to People,Care Payments,07/03/2023,801.36
Social Care Services,Angel Home Care Services,Services to People,Care Payments,07/03/2023,801.36
Social Care Services,Angel Home Care Services,Services to People,Care Payments,07/03/2023,677.34
Social Care Services,Angel Home Care Services,Services to People,Care Payments,07/03/2023,667.8
Social Care Services,Angel Home Care Services,Services to People,Care Payments,07/03/2023,667.8
Social Care Services,Angel Home Care Services,Services to People,Care Payments,07/03/2023,667.8
Social Care Services,Angel Home Care Services,Services to People,Care Payments,07/03/2023,667.8
Social Care Services,Angel Home Care Services,Services to People,Care Payments,07/03/2023,620.1
Social Care Services,Angel Home Care Services,Services to People,Care Payments,07/03/2023,601.02
Social Care Services,Angel Home Care Services,Services to People,Care Payments,07/03/2023,601.02
Social Care Services,Angel Home Care Services,Services to People,Care Payments,07/03/2023,601.02
Social Care Services,Angel Home Care Services,Services to People,Care Payments,07/03/2023,601.02
